Ref No,Fund Type,Dept,Cost Centre Description    ,Description    ,Creditor Name    ,GL Code Net Amount,Payment date        ,
2,Revenue,CAHD,Bed Purchasing - South,Permanent Residential,.,2112.00, 14-Feb-2017,
3,Revenue,CAHD,South Glos Users in South Glos Homes,Permanent Nursing,.,625.00, 14-Feb-2017,
4,Revenue,CAHD,Bed Purchasing - North,Permanent Nursing,.,3252.00, 14-Feb-2017,
5,Revenue,CAHD,Bed Purchasing - South,Permanent Nursing,.,3252.00, 14-Feb-2017,
6,Revenue,CAHD,South Glos Users in South Glos Homes,Permanent Nursing,.,625.00, 14-Feb-2017,
7,Revenue,CAHD,Bed Purchasing - North,Permanent Nursing,.,3252.00, 14-Feb-2017,
8,Revenue,CAHD,South Glos Users in South Glos Homes,Permanent Nursing,.,625.00, 14-Feb-2017,
9,Revenue,CAHD,South Glos Users in South Glos Homes,Permanent Nursing,.,625.00, 14-Feb-2017,
10,Revenue,CAHD,Bed Purchasing - South,Permanent Nursing,.,3252.00, 14-Feb-2017,
11,Revenue,CAHD,South Glos Users in South Glos Homes,Permanent Nursing,.,625.00, 14-Feb-2017,
12,Revenue,CAHD,South Glos Users in South Glos Homes,Permanent Nursing,.,714.29, 14-Feb-2017,
13,Revenue,CAHD,South Glos Users in South Glos Homes,Permanent Nursing,.,625.00, 14-Feb-2017,
14,Revenue,CAHD,South Glos Users in South Glos Homes,Permanent Nursing,.,625.00, 14-Feb-2017,
15,Revenue,CAHD,Bed Purchasing - North,Permanent Residential,.,4200.00, 14-Feb-2017,
16,Revenue,CAHD,South Glos Users in South Glos Homes,Permanent Nursing,.,625.00, 14-Feb-2017,
17,Revenue,CAHD,Bed Purchasing - South,Permanent Nursing,.,3575.00, 14-Feb-2017,
18,Revenue,CAHD,South Glos Users in South Glos Homes,Permanent Nursing,.,625.00, 14-Feb-2017,
19,Revenue,CAHD,Bed Purchasing - North,Permanent Nursing,.,4975.00, 14-Feb-2017,
20,Revenue,CAHD,South Glos Users in South Glos Homes,Permanent Nursing,.,625.00, 14-Feb-2017,
21,Revenue,CAHD,Bed Purchasing - Southmead Hospital,Permanent Nursing,.,3775.00, 14-Feb-2017,
22,Revenue,CAHD,South Glos Users in South Glos Homes,Permanent Nursing,.,625.00, 14-Feb-2017,
23,Revenue,CAHD,South Glos Users in South Glos Homes,Permanent Nursing,.,691.96, 14-Feb-2017,
24,Revenue,CAHD,South Glos Users in South Glos Homes,Permanent Nursing,.,625.00, 14-Feb-2017,
25,Revenue,CAHD,South Glos Users in South Glos Homes,Permanent Nursing,.,625.00, 14-Feb-2017,
26,Revenue,CAHD,South Glos Users in South Glos Homes,Permanent Nursing,.,625.00, 14-Feb-2017,
27,Revenue,CAHD,South Glos Users in South Glos Homes,Permanent Nursing,.,625.00, 14-Feb-2017,
28,Revenue,CAHD,South Glos Users in South Glos Homes,Permanent Nursing,.,625.00, 14-Feb-2017,
29,Revenue,CAHD,South Glos Users in South Glos Homes,Permanent Nursing,.,625.00, 14-Feb-2017,
30,Revenue,CAHD,South Glos Users in South Glos Homes,Permanent Nursing,.,625.00, 14-Feb-2017,
31,Revenue,CAHD,South Glos Users in South Glos Homes,Permanent Nursing,.,625.00, 14-Feb-2017,
32,Revenue,CAHD,South Glos Users in South Glos Homes,Permanent Nursing,.,625.00, 14-Feb-2017,
33,Revenue,CAHD,South Glos Users in South Glos Homes,Permanent Nursing,.,625.00, 14-Feb-2017,
34,Revenue,CAHD,South Glos Users in South Glos Homes,Permanent Nursing,.,625.00, 14-Feb-2017,
35,Revenue,CAHD,South Glos Users in South Glos Homes,Permanent Nursing,.,625.00, 14-Feb-2017,
36,Revenue,CAHD,South Glos Users in South Glos Homes,Permanent Nursing,.,625.00, 14-Feb-2017,
37,Revenue,CAHD,South Glos Users in South Glos Homes,Permanent Nursing,.,625.00, 14-Feb-2017,
38,Revenue,CAHD,South Glos Users in South Glos Homes,Permanent Nursing,.,1629.46, 14-Feb-2017,
39,Revenue,CAHD,South Glos Users in South Glos Homes,Permanent Nursing,.,625.00, 14-Feb-2017,
40,Revenue,CAHD,South Glos Users in South Glos Homes,Permanent Nursing,.,1830.36, 14-Feb-2017,
41,Revenue,CAHD,South Glos Users in South Glos Homes,Permanent Nursing,.,625.00, 14-Feb-2017,
42,Revenue,CAHD,South Glos Users in South Glos Homes,Permanent Nursing,.,625.00, 14-Feb-2017,
43,Revenue,CAHD,South Glos Users in South Glos Homes,Permanent Nursing,.,625.00, 14-Feb-2017,
44,Revenue,CAHD,South Glos Users in South Glos Homes,Permanent Nursing,.,602.68, 14-Feb-2017,
45,Revenue,CAHD,Bed Purchasing - South,Fees & Charges Income - General,.,522.97, 14-Feb-2017,
46,Revenue,CAHD,Bed Purchasing - North,Permanent Nursing,.,3075.00, 14-Feb-2017,
47,Revenue,CAHD,South Glos Users in South Glos Homes,Permanent Nursing,.,625.00, 14-Feb-2017,
48,Revenue,CAHD,Bed Purchasing - North,Permanent Nursing,.,3252.00, 14-Feb-2017,
49,Revenue,CAHD,South Glos Users in South Glos Homes,Permanent Nursing,.,625.00, 14-Feb-2017,
50,Revenue,CAHD,South Glos Users in South Glos Homes,Permanent Nursing,.,2656.25, 14-Feb-2017,
51,Revenue,CAHD,South Glos Users in South Glos Homes,Permanent Nursing,.,625.00, 14-Feb-2017,
52,Revenue,CAHD,South Glos Users in South Glos Homes,Permanent Nursing,.,625.00, 14-Feb-2017,
53,Revenue,CAHD,Bed Purchasing - North,Permanent Residential,.,3750.00, 14-Feb-2017,
54,Revenue,CAHD,18-25 Year Olds,Permanent Residential,1 St Georges House,13858.04, 14-Feb-2017,
55,Revenue,CAHD,Supporting People Programme,Grants to Voluntary Bodies,1625 Independent People,17102.16, 01-Feb-2017,
56,Revenue,CAHD,Home Care - Elderly - North,Supported Living,2430 The Quadrant,5041.76, 14-Feb-2017,
57,Revenue,CAHD,Home Care - Elderly - North,Supported Living,2430 The Quadrant,5041.76, 14-Feb-2017,
58,Revenue,CAHD,Home Care - Elderly - South,Day Care / Social Activities,3 Trees Community Support Ltd,92.20, 07-Feb-2017,
59,Revenue,CAHD,Home Care - Elderly - North,Day Care / Social Activities,3 Trees Community Support Ltd,1355.34, 07-Feb-2017,
60,Revenue,CAHD,Home Care - Elderly - North,Other Small Contracts,3 Trees Community Support Ltd,700.72, 07-Feb-2017,
61,Revenue,CAHD,Home Care - Elderly - North,Supported Living,3 Trees Community Support Ltd,8636.56, 07-Feb-2017,
62,Revenue,CAHD,Bed Purchasing - South,Permanent Residential,5Th Floor Harlech Court,16863.44, 14-Feb-2017,
63,Revenue,CAHD,18-25 Year Olds,Permanent Residential,5Th Floor Harlech Court,14432.04, 14-Feb-2017,
64,Revenue,CAHD,18-25 Year Olds,Permanent Residential,5Th Floor Harlech Court,14570.60, 14-Feb-2017,
65,Revenue,CAHD,18-25 Year Olds,Permanent Residential,5Th Floor Harlech Court,12962.24, 14-Feb-2017,
66,Revenue,CAHD,Bed Purchasing - North,Permanent Residential,5Th Floor Harlech Court,15666.92, 14-Feb-2017,
67,Revenue,CAHD,Bed Purchasing - North,Permanent Residential,5Th Floor Harlech Court,13923.28, 14-Feb-2017,
68,Revenue,CAHD,Jointly Funded H&SC Packages,Permanent Residential,5Th Floor Harlech Court,3445.36, 14-Feb-2017,
69,Revenue,CAHD,18-25 Year Olds,Permanent Residential,5Th Floor Harlech Court,16489.68, 14-Feb-2017,
70,Revenue,CAHD,Bed Purchasing - South,Permanent Residential,5Th Floor Harlech Court,9857.44, 14-Feb-2017,
71,Revenue,CAHD,Bed purchasing - S28A Under 65 - South,Permanent Residential,5Th Floor Harlech Court,10316.44, 14-Feb-2017,
72,Revenue,CAHD,Bed Purchasing - South,Permanent Residential,5Th Floor Harlech Court,10819.48, 14-Feb-2017,
73,Revenue,CAHD,Alexandra Way,Premises Maintenance by Contractor,A E Horder (Contracting) Limited,498.55, 24-Feb-2017,
74,Revenue,CAHD,Bed Purchasing - North,Permanent Nursing,ABI Development Limited,7494.40, 14-Feb-2017,
75,Revenue,CAHD,School Admissions Related Expenses,Training Expenses,ACE Education Training LLP,992.00, 10-Feb-2017,
76,Revenue,CAHD,Training - Adult Services,Training Expenses,Acorn Health & Safety Limited,465.00, 01-Feb-2017,
77,Revenue,CAHD,Training - Adult Services,Training Expenses,Acorn Health & Safety Limited,465.00, 14-Feb-2017,
78,Revenue,CAHD,Training - Adult Services,Training Expenses,Acorn Health & Safety Limited,465.00, 20-Feb-2017,
79,Revenue,CAHD,Training - Adult Services,Training Expenses,Acorn Health & Safety Limited,624.50, 28-Feb-2017,
80,Revenue,CAHD,CSC - Agency Fostering,Foster Parent Allowances,Action for Children,3352.43, 22-Feb-2017,
81,Revenue,CAHD,Bed and Breakfast,Storage & Removal,Advanced Removals and Storage,437.50, 21-Feb-2017,
82,Revenue,CAHD,Home Care - Elderly - South,Other Small Contracts,Agincare UK Limited,1853.30, 13-Feb-2017,
83,Revenue,CAHD,Home Care - Elderly - North,Other Small Contracts,Agincare UK Limited,533.20, 13-Feb-2017,
84,Revenue,CAHD,Home Care - Elderly - South,Other Small Contracts,Agincare UK Limited,1638.30, 13-Feb-2017,
85,Revenue,CAHD,Home Care - Elderly - South,Other Small Contracts,Agincare UK Limited,1935.00, 14-Feb-2017,
86,Revenue,CAHD,Home Care - Elderly - North,Other Small Contracts,Agincare UK Limited,567.60, 14-Feb-2017,
87,Revenue,CAHD,Home Care - Elderly - South,Other Small Contracts,Agincare UK Limited,1866.20, 21-Feb-2017,
88,Revenue,CAHD,Home Care - Elderly - North,Other Small Contracts,Agincare UK Limited,700.90, 21-Feb-2017,
89,Revenue,CAHD,Home Care - Elderly - South,Other Small Contracts,Agincare UK Limited,2085.50, 21-Feb-2017,
90,Revenue,CAHD,Home Care - Elderly - North,Other Small Contracts,Agincare UK Limited,700.90, 21-Feb-2017,
91,Revenue,CAHD,Home Care - Elderly - South,Other Small Contracts,Agincare UK Limited,1603.90, 21-Feb-2017,
92,Revenue,CAHD,Home Care - Elderly - North,Other Small Contracts,Agincare UK Limited,666.50, 21-Feb-2017,
93,Revenue,CAHD,Home Care - Elderly - South,Other Small Contracts,Agincare UK Limited,1423.30, 21-Feb-2017,
94,Revenue,CAHD,Home Care - Elderly - North,Other Small Contracts,Agincare UK Limited,653.60, 21-Feb-2017,
95,Revenue,CAHD,Prison Assessments & Costs,Other Supplies & Services,Agincare UK Limited,6998.47, 17-Feb-2017,
96,Revenue,CAHD,Home Care - Elderly - North,Day Care / Social Activities,Agincare UK Nutfield,193.50, 21-Feb-2017,
97,Revenue,CAHD,Home Care - Elderly - North,Other Small Contracts,Agincare UK Nutfield,1685.60, 21-Feb-2017,
98,Revenue,CAHD,Home care - Elderly MH - South,Other Small Contracts,Agincare UK Nutfield,64.50, 21-Feb-2017,
99,Revenue,CAHD,Home Care - Elderly - North,Day Care / Social Activities,Agincare UK Nutfield,180.60, 21-Feb-2017,
100,Revenue,CAHD,Home Care - Elderly - North,Other Small Contracts,Agincare UK Nutfield,1668.40, 21-Feb-2017,
101,Revenue,CAHD,Home care - Elderly MH - South,Other Small Contracts,Agincare UK Nutfield,68.80, 21-Feb-2017,
102,Revenue,CAHD,Home Care - Elderly - North,Day Care / Social Activities,Agincare UK Nutfield,180.60, 21-Feb-2017,
103,Revenue,CAHD,Home Care - Elderly - North,Other Small Contracts,Agincare UK Nutfield,1801.70, 21-Feb-2017,
104,Revenue,CAHD,Home care - Elderly MH - South,Other Small Contracts,Agincare UK Nutfield,68.80, 21-Feb-2017,
105,Revenue,CAHD,Training Budget - Children`s Social Serv,Training Expenses,Alan Fazakerley,587.80, 24-Feb-2017,
106,Revenue,CAHD,Home Care - Elderly - South,Other Small Contracts,AliMo Care Ltd,1710.54, 03-Feb-2017,
107,Revenue,CAHD,Home Care - Elderly - South,Other Small Contracts,AliMo Care Ltd,1657.50, 10-Feb-2017,
108,Revenue,CAHD,Home Care - Elderly - South,Other Small Contracts,AliMo Care Ltd,1547.00, 24-Feb-2017,
109,Revenue,CAHD,Home Care - Elderly - South,Other Small Contracts,AliMo Care Ltd,1498.38, 24-Feb-2017,
110,Revenue,CAHD,CSC - Vinney Green Secure Unit,Service Contracts (Premises),Allday Time Systems Limited,816.75, 16-Feb-2017,
111,Revenue,CAHD,ASSIST - Health Promotion in Schools,Other Supplies & Services,AlterEgo Creative Solutions Ltd,4790.00, 22-Feb-2017,
112,Revenue,CAHD,Bed Purchasing - South,Permanent Nursing,Ambleside Nusing Home,2098.88, 14-Feb-2017,
113,Revenue,CAHD,Bed Purchasing - Southmead Hospital,Respite Planned - Nursing,Ambleside Nusing Home,876.75, 14-Feb-2017,
114,Revenue,CAHD,Bed Purchasing - Southmead Hospital,Permanent Nursing,Amerind Grove Nursing Home,2537.76, 14-Feb-2017,
115,Revenue,CAHD,Bed Purchasing - Southmead Hospital,Permanent Nursing,Amerind Grove Nursing Home,2234.08, 14-Feb-2017,
116,Revenue,CAHD,CSC - Agency Fostering,Foster Parent Allowances,Amicus Foster Care Ltd,5398.14, 07-Feb-2017,
117,Revenue,CAHD,Supporting People Programme,Grants to Voluntary Bodies,Anchor Housing,812.50, 01-Feb-2017,
118,Revenue,CAHD,CSC - Adoption Support Fund,Post Adoption,Anna Binnie-Dawson,650.00, 16-Feb-2017,
119,Revenue,CAHD,CAHC - Complaints & Advocacy Service,Complaints External Expenses,Annette Upshall,3975.50, 03-Feb-2017,
120,Revenue,CAHD,CSC - Safeguarding Board,Training Expenses,Anthony Domaille,1275.00, 06-Feb-2017,
121,Revenue,CAHD,CSC - Safeguarding Board,Training Expenses,Anthony Domaille,850.00, 21-Feb-2017,
122,Revenue,CAHD,CSC - LAT Placements,Training Expenses,Archway Community College,1440.00, 14-Feb-2017,
123,Revenue,CAHD,Bed Purchasing - North,Permanent Residential,Ark Care Homes Ltd,10895.08, 14-Feb-2017,
124,Revenue,CAHD,Bed Purchasing - South,Permanent Residential,Ash View House,6180.00, 14-Feb-2017,
125,Revenue,CAHD,Bed Purchasing - South,Permanent Residential,Ash View House,2869.29, 14-Feb-2017,
126,Revenue,CAHD,S117 Placements PCT,Permanent Residential,Ash View House,7148.68, 14-Feb-2017,
127,Revenue,CAHD,18-25 Year Olds,Permanent Residential,Ash View House,6716.52, 14-Feb-2017,
128,Revenue,CAHD,Section 117 Placements MH Younger,Permanent Residential,Ash View House,4658.52, 14-Feb-2017,
129,Revenue,CAHD,Jointly Funded H&SC Packages,Permanent Residential,Ash View House,1996.52, 14-Feb-2017,
130,Revenue,CAHD,Bed purchasing - Elderly S117 - South,Permanent Residential,Ash View House,6331.72, 14-Feb-2017,
131,Revenue,CAHD,Bed Purchasing - North,Permanent Residential,Aspects 2 Limited,6841.76, 14-Feb-2017,
132,Revenue,CAHD,Supporting People Programme,Grants to Voluntary Bodies,Aspects and Milestones Trust,3298.58, 01-Feb-2017,
133,Revenue,CAHD,Supporting People Programme,Grants to Voluntary Bodies,Aspects and Milestones Trust,1653.75, 01-Feb-2017,
134,Revenue,CAHD,Supporting People Programme,Grants to Voluntary Bodies,Aspects and Milestones Trust,2014.33, 01-Feb-2017,
135,Revenue,CAHD,Tenancy Start Up Scheme,Other Supplies & Services,Attwoods Estate and Letting Agents,1700.00, 03-Feb-2017,
136,Revenue,CAHD,Independent Special Placements - Pre 16,Other Private Contractors,Aurora Care & Education,25535.73, 06-Feb-2017,
137,Revenue,CAHD,Independent Special Placements - Pre 16,Other Private Contractors,Aurora Hedgeway School,3778.67, 20-Feb-2017,
138,Revenue,CAHD,Independent Special Placements - Pre 16,Other Private Contractors,Aurora Hedgeway School,5585.57, 09-Feb-2017,
139,Revenue,CAHD,Independent Special Placements - Pre 16,Other Private Contractors,Aurora Hedgeway School,5585.57, 09-Feb-2017,
140,Revenue,CAHD,Independent Special Placements - Pre 16,Other Private Contractors,Aurora Hedgeway School,5585.57, 09-Feb-2017,
141,Revenue,CAHD,Independent Special Placements - Pre 16,Other Private Contractors,Aurora Hedgeway School,15154.33, 02-Feb-2017,
142,Revenue,CAHD,Independent Special Placements - Pre 16,Other Private Contractors,Aurora Hedgeway School,15114.67, 02-Feb-2017,
143,Revenue,CAHD,Independent Special Placements - Pre 16,Other Private Contractors,Aurora Hedgeway School,15114.67, 02-Feb-2017,
144,Revenue,CAHD,Independent Special Placements - Pre 16,Other Private Contractors,Aurora Hedgeway School,15187.67, 02-Feb-2017,
145,Revenue,CAHD,Independent Special Placements - Pre 16,Other Private Contractors,Aurora Hedgeway School,15154.33, 02-Feb-2017,
146,Revenue,CAHD,Independent Special Placements - Pre 16,Other Private Contractors,Aurora Hedgeway School,15154.33, 02-Feb-2017,
147,Revenue,CAHD,Independent Special Placements - Pre 16,Other Private Contractors,Aurora Hedgeway School,15154.33, 02-Feb-2017,
148,Revenue,CAHD,Independent Special Placements - Pre 16,Other Private Contractors,Aurora Hedgeway School,15154.33, 02-Feb-2017,
149,Revenue,CAHD,Independent Special Placements - Pre 16,Other Private Contractors,Aurora Hedgeway School,15154.33, 02-Feb-2017,
150,Revenue,CAHD,Bed Purchasing - South,Permanent Residential,Autism Specialised Care Homes,6155.84, 14-Feb-2017,
151,Revenue,CAHD,CSC - LAT Placements,Insurances - Liability,Avon & Wiltshire Mental Health,1568.50, 15-Feb-2017,
152,Revenue,CAHD,Younger Adult Mental Health,Health Services (Third Party Payments),Avon & Wiltshire Mental Health,1666.00, 03-Feb-2017,
153,Revenue,CAHD,Minor Adaptations Service,Operational Equipment,Avon Motor and Engineering Supplies Ltd,699.00, 14-Feb-2017,
154,Revenue,CAHD,CSC - Legal Fees,Legal Fees,Barcan+Kirby LLP,465.00, 27-Feb-2017,
155,Revenue,CAHD,CSC - Family Group Conferencing,Grants to Voluntary Bodies,Barnardo Services Limited,5350.00, 14-Feb-2017,
156,Revenue,CAHD,CSC - Family Group Conferencing,Grants to Voluntary Bodies,Barnardo Services Limited,5350.00, 14-Feb-2017,
157,Revenue,CAHD,Purchase of RAC places,Other L.A.'s - General,Bath & North East Somerset Council,5759.00, 02-Feb-2017,
158,Revenue,CAHD,Purchase of RAC places,Other L.A.'s - General,Bath & North East Somerset Council,1207.60, 15-Feb-2017,
159,Revenue,CAHD,Purchase of RAC places,Other L.A.'s - General,Bath & North East Somerset Council,1772.00, 15-Feb-2017,
160,Revenue,CAHD,Pensions - Non DSG,Annual Pension,Bath & North East Somerset Council,113613.95, 27-Feb-2017,
161,Revenue,CAHD,Bed Purchasing - Southmead Hospital,Permanent Nursing,Bayview Nursing & Residential Home,2026.76, 14-Feb-2017,
162,Revenue,CAHD,Pathway 3 - (Complex Beds),Permanent Nursing,Beaufort Care Ltd,5271.00, 22-Feb-2017,
163,Revenue,CAHD,South Glos Users in South Glos Homes,Permanent Nursing,Beaufort Grange Care Home,1875.00, 14-Feb-2017,
164,Revenue,CAHD,South Glos Users in South Glos Homes,Permanent Nursing,Beaufort Grange Care Home,1875.00, 14-Feb-2017,
165,Revenue,CAHD,South Glos Users in South Glos Homes,Permanent Nursing,Beaufort Grange Care Home,1875.00, 14-Feb-2017,
166,Revenue,CAHD,Bed Purchasing - North,Respite Planned - Nursing,Beaufort Grange Care Home,1071.43, 14-Feb-2017,
167,Revenue,CAHD,South Glos Users in South Glos Homes,Permanent Nursing,Beaufort Grange Care Home,1450.89, 14-Feb-2017,
168,Revenue,CAHD,South Glos Users in South Glos Homes,Permanent Nursing,Beaufort Grange Care Home,1875.00, 14-Feb-2017,
169,Revenue,CAHD,South Glos Users in South Glos Homes,Permanent Nursing,Beaufort Grange Care Home,1875.00, 14-Feb-2017,
170,Revenue,CAHD,South Glos Users in South Glos Homes,Permanent Nursing,Beaufort Grange Care Home,1875.00, 14-Feb-2017,
171,Revenue,CAHD,South Glos Users in South Glos Homes,Permanent Nursing,Beaufort Grange Care Home,1875.00, 14-Feb-2017,
172,Revenue,CAHD,South Glos Users in South Glos Homes,Permanent Nursing,Beaufort Grange Care Home,1875.00, 14-Feb-2017,
173,Revenue,CAHD,South Glos Users in South Glos Homes,Permanent Nursing,Beaufort Grange Care Home,1875.00, 14-Feb-2017,
174,Revenue,CAHD,South Glos Users in South Glos Homes,Permanent Nursing,Beaufort Grange Care Home,1875.00, 14-Feb-2017,
175,Revenue,CAHD,South Glos Users in South Glos Homes,Permanent Nursing,Beaufort Grange Care Home,1875.00, 14-Feb-2017,
176,Revenue,CAHD,South Glos Users in South Glos Homes,Permanent Nursing,Beaufort Grange Care Home,1875.00, 14-Feb-2017,
177,Revenue,CAHD,South Glos Users in South Glos Homes,Permanent Nursing,Beaufort Grange Care Home,1875.00, 14-Feb-2017,
178,Revenue,CAHD,Bed Purchasing - Elderly S117- North,Permanent Nursing,Beaufort Grange Care Home,13233.60, 14-Feb-2017,
179,Revenue,CAHD,South Glos Users in South Glos Homes,Permanent Nursing,Beaufort Grange Care Home,1875.00, 14-Feb-2017,
180,Revenue,CAHD,South Glos Users in South Glos Homes,Permanent Nursing,Beaufort Grange Care Home,1875.00, 14-Feb-2017,
181,Revenue,CAHD,Bed Purchasing - Elderly S117- North,Permanent Nursing,Beaufort Grange Care Home,13841.76, 14-Feb-2017,
182,Revenue,CAHD,South Glos Users in South Glos Homes,Permanent Nursing,Beaufort Grange Care Home,1875.00, 14-Feb-2017,
183,Revenue,CAHD,South Glos Users in South Glos Homes,Permanent Nursing,Beaufort Grange Care Home,1875.00, 14-Feb-2017,
184,Revenue,CAHD,South Glos Users in South Glos Homes,Permanent Nursing,Beaufort Grange Care Home,1875.00, 14-Feb-2017,
185,Revenue,CAHD,South Glos Users in South Glos Homes,Permanent Nursing,Beaufort Grange Care Home,1875.00, 14-Feb-2017,
186,Revenue,CAHD,South Glos Users in South Glos Homes,Permanent Nursing,Beaufort Grange Care Home,1875.00, 14-Feb-2017,
187,Revenue,CAHD,South Glos Users in South Glos Homes,Permanent Nursing,Beaufort Grange Care Home,1875.00, 14-Feb-2017,
188,Revenue,CAHD,South Glos Users in South Glos Homes,Permanent Nursing,Beaufort Grange Care Home,1875.00, 14-Feb-2017,
189,Revenue,CAHD,South Glos Users in South Glos Homes,Permanent Nursing,Beaufort Grange Care Home,1875.00, 14-Feb-2017,
190,Revenue,CAHD,Bed Purchasing - North,Permanent Residential,Beaufort House,2412.00, 14-Feb-2017,
191,Revenue,CAHD,Bed Purchasing - North,Permanent Residential,Beaufort House,2432.64, 14-Feb-2017,
192,Revenue,CAHD,Bed Purchasing - South,Permanent Residential,Beaufort House,2400.00, 14-Feb-2017,
193,Revenue,CAHD,Bed Purchasing - South,Permanent Residential,Beaufort House,2309.36, 14-Feb-2017,
194,Revenue,CAHD,Bed Purchasing - Southmead Hospital,Permanent Residential,Beaufort House,2432.64, 14-Feb-2017,
195,Revenue,CAHD,Bed Purchasing - North,Permanent Residential,Beaufort House,2376.92, 14-Feb-2017,
196,Revenue,CAHD,Bed Purchasing - North,Permanent Residential,Beaufort House,2376.92, 14-Feb-2017,
197,Revenue,CAHD,Bed Purchasing - North,Permanent Residential,Beaufort House,2554.28, 14-Feb-2017,
198,Revenue,CAHD,Bed Purchasing - Southmead Hospital,Permanent Residential,Beaufort House,2432.64, 14-Feb-2017,
199,Revenue,CAHD,Bed Purchasing - South,Permanent Residential,Bedrock Lodge,3583.08, 14-Feb-2017,
200,Revenue,CAHD,Bed Purchasing - South,Permanent Residential,Bedrock Lodge,3527.36, 14-Feb-2017,
201,Revenue,CAHD,Section 117 Placements MH Younger,Permanent Residential,Bedrock Lodge,1925.00, 14-Feb-2017,
202,Revenue,CAHD,South Glos Users in South Glos Homes,Permanent Nursing,Beech House,625.00, 14-Feb-2017,
203,Revenue,CAHD,Bed Purchasing - South,Permanent Residential,Beech House,2800.00, 14-Feb-2017,
204,Revenue,CAHD,South Glos Users in South Glos Homes,Permanent Nursing,Beech House,625.00, 14-Feb-2017,
205,Revenue,CAHD,Bed Purchasing - North,Permanent Nursing,Beech House,2675.00, 14-Feb-2017,
206,Revenue,CAHD,South Glos Users in South Glos Homes,Permanent Nursing,Beech House,625.00, 14-Feb-2017,
207,Revenue,CAHD,South Glos Users in South Glos Homes,Permanent Nursing,Beech House,625.00, 14-Feb-2017,
208,Revenue,CAHD,South Glos Users in South Glos Homes,Permanent Nursing,Beech House,625.00, 14-Feb-2017,
209,Revenue,CAHD,South Glos Users in South Glos Homes,Permanent Nursing,Beech House,625.00, 14-Feb-2017,
210,Revenue,CAHD,Bed Purchasing - North,Permanent Nursing,Beech House,2992.16, 14-Feb-2017,
211,Revenue,CAHD,South Glos Users in South Glos Homes,Permanent Nursing,Beech House,625.00, 14-Feb-2017,
212,Revenue,CAHD,Bed Purchasing - North,Permanent Residential,Beech House,2800.00, 14-Feb-2017,
213,Revenue,CAHD,South Glos Users in South Glos Homes,Permanent Nursing,Beech House,625.00, 14-Feb-2017,
214,Revenue,CAHD,South Glos Users in South Glos Homes,Permanent Nursing,Beech House,625.00, 14-Feb-2017,
215,Revenue,CAHD,South Glos Users in South Glos Homes,Permanent Nursing,Beech House,625.00, 14-Feb-2017,
216,Revenue,CAHD,South Glos Users in South Glos Homes,Permanent Nursing,Beech House,625.00, 14-Feb-2017,
217,Revenue,CAHD,South Glos Users in South Glos Homes,Permanent Nursing,Beech House,625.00, 14-Feb-2017,
218,Revenue,CAHD,South Glos Users in South Glos Homes,Permanent Nursing,Beech House,625.00, 14-Feb-2017,
219,Revenue,CAHD,South Glos Users in South Glos Homes,Permanent Nursing,Beech House,625.00, 14-Feb-2017,
220,Revenue,CAHD,South Glos Users in South Glos Homes,Permanent Nursing,Beech House,625.00, 14-Feb-2017,
221,Revenue,CAHD,South Glos Users in South Glos Homes,Permanent Nursing,Beech House,625.00, 14-Feb-2017,
222,Revenue,CAHD,Bed Purchasing - North,Permanent Residential,Beech House,3400.00, 14-Feb-2017,
223,Revenue,CAHD,Bed Purchasing - North,Permanent Residential,Beech House,2064.29, 14-Feb-2017,
224,Revenue,CAHD,South Glos Users in South Glos Homes,Permanent Nursing,Beech House,625.00, 14-Feb-2017,
225,Revenue,CAHD,South Glos Users in South Glos Homes,Permanent Nursing,Beech House,625.00, 14-Feb-2017,
226,Revenue,CAHD,Bed Purchasing - North,Permanent Nursing,Beech House,3129.00, 14-Feb-2017,
227,Revenue,CAHD,South Glos Users in South Glos Homes,Permanent Nursing,Beech House,625.00, 14-Feb-2017,
228,Revenue,CAHD,South Glos Users in South Glos Homes,Permanent Nursing,Beech House,625.00, 14-Feb-2017,
229,Revenue,CAHD,Bed Purchasing - North,Permanent Nursing,Beech House,2800.00, 14-Feb-2017,
230,Revenue,CAHD,South Glos Users in South Glos Homes,Permanent Nursing,Beech House,625.00, 14-Feb-2017,
231,Revenue,CAHD,South Glos Users in South Glos Homes,Permanent Nursing,Beech House,625.00, 14-Feb-2017,
232,Revenue,CAHD,South Glos Users in South Glos Homes,Permanent Nursing,Beech House,625.00, 14-Feb-2017,
233,Revenue,CAHD,South Glos Users in South Glos Homes,Permanent Nursing,Beech House,625.00, 14-Feb-2017,
234,Revenue,CAHD,South Glos Users in South Glos Homes,Permanent Nursing,Beech House,625.00, 14-Feb-2017,
235,Revenue,CAHD,Statemented Support Payments to OLAs,Other L.A.'s - General,Beechen Cliff School,716.64, 28-Feb-2017,
236,Revenue,CAHD,Post 16 High Needs Placements,Other Private Contractors,Beechwood Court Ltd,35149.41, 09-Feb-2017,
237,Revenue,CAHD,Post 16 High Needs Placements,Other Private Contractors,Beechwood Court Ltd,11016.97, 03-Feb-2017,
238,Revenue,CAHD,Post 16 High Needs Placements,Other Private Contractors,Beechwood Court Ltd,5246.18, 09-Feb-2017,
239,Revenue,CAHD,Implementation of Education Commission,Consultants Fees,Best Practice Network,965.00, 08-Feb-2017,
240,Revenue,CAHD,Implementation of Education Commission,Consultants Fees,Best Practice Network,965.00, 08-Feb-2017,
241,Revenue,CAHD,Implementation of Education Commission,Consultants Fees,Best Practice Network,965.00, 09-Feb-2017,
243,Revenue,CAHD,Home Care - Elderly - North,Other Small Contracts,Bibby Factors Bristol Limited,6952.58, 17-Feb-2017,
244,Revenue,CAHD,Home Care - Elderly - North,Other Small Contracts,Bibby Factors Bristol Limited,6814.04, 17-Feb-2017,
245,Revenue,CAHD,Home Care - Elderly - North,Other Small Contracts,Bibby Factors Bristol Limited,6460.14, 17-Feb-2017,
246,Revenue,CAHD,Home Care - Elderly - North,Other Small Contracts,Bibby Factors Bristol Limited,5737.88, 17-Feb-2017,
247,Revenue,CAHD,Home Care - Elderly - North,Other Small Contracts,Bibby Factors Bristol Limited,5576.24, 17-Feb-2017,
248,Revenue,CAHD,Home Care - Elderly - North,Other Small Contracts,Bibby Factors Bristol Limited,5119.22, 17-Feb-2017,
249,Revenue,CAHD,Home Care - Elderly - North,Other Small Contracts,Bibby Factors Bristol Limited,5141.14, 28-Feb-2017,
250,Revenue,CAHD,CSC - Care Leavers Support Costs,"Provisions (Food, etc)",Big Yellow Self Storage Company Limited,1607.81, 02-Feb-2017,
251,Revenue,CAHD,Bed Purchasing - North,Permanent Nursing,Blossom Field,3478.68, 14-Feb-2017,
252,Revenue,CAHD,South Glos Users in South Glos Homes,Permanent Nursing,Blossom Field,625.00, 14-Feb-2017,
253,Revenue,CAHD,Bed Purchasing - Elderly S117- North,Permanent Nursing,Blossom Field,3494.32, 14-Feb-2017,
254,Revenue,CAHD,South Glos Users in South Glos Homes,Permanent Nursing,Blossom Field,625.00, 14-Feb-2017,
255,Revenue,CAHD,South Glos Users in South Glos Homes,Permanent Nursing,Blossom Field,625.00, 14-Feb-2017,
256,Revenue,CAHD,Bed Purchasing - North,Permanent Nursing,Blossom Field,3775.00, 14-Feb-2017,
257,Revenue,CAHD,Bed Purchasing - Southmead Hospital,Permanent Nursing,Blossom Field,4800.00, 14-Feb-2017,
258,Revenue,CAHD,South Glos Users in South Glos Homes,Permanent Nursing,Blossom Field,625.00, 14-Feb-2017,
259,Revenue,CAHD,Bed Purchasing - North,Permanent Nursing,Blossom Field,3762.48, 14-Feb-2017,
260,Revenue,CAHD,South Glos Users in South Glos Homes,Permanent Nursing,Blossom Field,625.00, 14-Feb-2017,
261,Revenue,CAHD,South Glos Users in South Glos Homes,Permanent Nursing,Blossom Field,625.00, 14-Feb-2017,
262,Revenue,CAHD,South Glos Users in South Glos Homes,Permanent Nursing,Blossom Field,625.00, 14-Feb-2017,
263,Revenue,CAHD,South Glos Users in South Glos Homes,Permanent Nursing,Blossom Field,625.00, 14-Feb-2017,
264,Revenue,CAHD,South Glos Users in South Glos Homes,Permanent Nursing,Blossom Field,625.00, 14-Feb-2017,
265,Revenue,CAHD,South Glos Users in South Glos Homes,Permanent Nursing,Blossom Field,625.00, 14-Feb-2017,
266,Revenue,CAHD,Bed purchasing - Elderly S117 - South,Permanent Nursing,Blossom Field,4459.84, 14-Feb-2017,
267,Revenue,CAHD,South Glos Users in South Glos Homes,Permanent Nursing,Blossom Field,625.00, 14-Feb-2017,
268,Revenue,CAHD,South Glos Users in South Glos Homes,Permanent Nursing,Blossom Field,625.00, 14-Feb-2017,
269,Revenue,CAHD,South Glos Users in South Glos Homes,Permanent Nursing,Blossom Field,625.00, 14-Feb-2017,
270,Revenue,CAHD,Bed purchasing - Elderly S117 - South,Permanent Nursing,Blossom Field,4411.20, 14-Feb-2017,
271,Revenue,CAHD,South Glos Users in South Glos Homes,Permanent Nursing,Blossom Field,625.00, 14-Feb-2017,
272,Revenue,CAHD,South Glos Users in South Glos Homes,Permanent Nursing,Blossom Field,625.00, 14-Feb-2017,
273,Revenue,CAHD,South Glos Users in South Glos Homes,Permanent Nursing,Blossom Field,625.00, 14-Feb-2017,
274,Revenue,CAHD,South Glos Users in South Glos Homes,Permanent Nursing,Blossom Field,625.00, 14-Feb-2017,
275,Revenue,CAHD,South Glos Users in South Glos Homes,Permanent Nursing,Blossom Field,625.00, 14-Feb-2017,
276,Revenue,CAHD,South Glos Users in South Glos Homes,Permanent Nursing,Blossom Field,625.00, 14-Feb-2017,
277,Revenue,CAHD,South Glos Users in South Glos Homes,Permanent Nursing,Blossom Field,1160.71, 14-Feb-2017,
278,Revenue,CAHD,South Glos Users in South Glos Homes,Permanent Nursing,Blossom Field,625.00, 14-Feb-2017,
279,Revenue,CAHD,South Glos Users in South Glos Homes,Permanent Nursing,Blossom Field,1250.00, 14-Feb-2017,
280,Revenue,CAHD,South Glos Users in South Glos Homes,Permanent Nursing,Blossom Field,625.00, 14-Feb-2017,
281,Revenue,CAHD,South Glos Users in South Glos Homes,Permanent Nursing,Blossom Field,736.61, 14-Feb-2017,
282,Revenue,CAHD,South Glos Users in South Glos Homes,Permanent Nursing,Blossom Field,625.00, 14-Feb-2017,
283,Revenue,CAHD,South Glos Users in South Glos Homes,Permanent Nursing,Blossom Field,625.00, 14-Feb-2017,
284,Revenue,CAHD,Bed Purchasing - North,Permanent Nursing,Blossom Field,3494.32, 14-Feb-2017,
285,Revenue,CAHD,South Glos Users in South Glos Homes,Permanent Nursing,Blossom Field,625.00, 14-Feb-2017,
286,Revenue,CAHD,Bed Purchasing - North,Permanent Nursing,Blossom Field,3438.84, 14-Feb-2017,
287,Revenue,CAHD,South Glos Users in South Glos Homes,Permanent Nursing,Blossom Field,625.00, 14-Feb-2017,
288,Revenue,CAHD,South Glos Users in South Glos Homes,Permanent Nursing,Blossom Field,625.00, 14-Feb-2017,
289,Revenue,CAHD,South Glos Users in South Glos Homes,Permanent Nursing,Blossom Field,625.00, 14-Feb-2017,
290,Revenue,CAHD,South Glos Users in South Glos Homes,Permanent Nursing,Blossom Fields,625.00, 10-Feb-2017,
291,Revenue,CAHD,South Glos Users in South Glos Homes,Permanent Nursing,Blossom Fields,625.00, 10-Feb-2017,
292,Revenue,CAHD,South Glos Users in South Glos Homes,Permanent Nursing,Blossom Fields,625.00, 10-Feb-2017,
293,Revenue,CAHD,Bed Purchasing - North,Permanent Nursing,Blossom Fields,1860.16, 10-Feb-2017,
294,Revenue,CAHD,Bed Purchasing - Southmead Hospital,Permanent Nursing,Blossom Fields,2129.20, 10-Feb-2017,
295,Revenue,CAHD,Bed Purchasing - North,Permanent Nursing,Blossom Fields,2652.00, 10-Feb-2017,
296,Revenue,CAHD,Home Care - Elderly - South,Other Small Contracts,Bluebird Care (South Gloucestershire),597.38, 21-Feb-2017,
297,Revenue,CAHD,Home Care - Elderly - North,Other Small Contracts,Bluebird Care (South Gloucestershire),1271.70, 21-Feb-2017,
298,Revenue,CAHD,Home Care - Elderly - South,Other Small Contracts,Bluebird Care (South Gloucestershire),577.30, 21-Feb-2017,
299,Revenue,CAHD,Home Care - Elderly - North,Other Small Contracts,Bluebird Care (South Gloucestershire),1171.86, 21-Feb-2017,
300,Revenue,CAHD,Home Care - Elderly - South,Other Small Contracts,Bluebird Care (South Gloucestershire),597.38, 21-Feb-2017,
301,Revenue,CAHD,Home Care - Elderly - North,Other Small Contracts,Bluebird Care (South Gloucestershire),930.90, 21-Feb-2017,
302,Revenue,CAHD,Home Care - Elderly - South,Other Small Contracts,Bluebird Care (South Gloucestershire),597.38, 21-Feb-2017,
303,Revenue,CAHD,Home Care - Elderly - North,Other Small Contracts,Bluebird Care (South Gloucestershire),604.60, 21-Feb-2017,
304,Revenue,CAHD,Home Care - Elderly - South,Other Small Contracts,Bluebird Care (South Gloucestershire),592.36, 21-Feb-2017,
305,Revenue,CAHD,Home Care - Elderly - North,Other Small Contracts,Bluebird Care (South Gloucestershire),604.60, 21-Feb-2017,
306,Revenue,CAHD,Training - Adult Services,Training Expenses,Bob Dawson,1250.00, 13-Feb-2017,
307,Revenue,CAHD,CSC - Purchase/Sale of Placements,Other L.A.'s - General,Borough of Poole,18000.00, 22-Feb-2017,
308,Revenue,CAHD,Bed purchasing - S28A Under 65 - South,Permanent Residential,Bradbury House,4791.88, 14-Feb-2017,
309,Revenue,CAHD,Bed Purchasing - South,Permanent Residential,Bradbury House,8267.72, 14-Feb-2017,
310,Revenue,CAHD,Bed purchasing - S28A Under 65 - South,Permanent Residential,Bradbury House,7061.04, 14-Feb-2017,
311,Revenue,CAHD,18-25 Year Olds,Permanent Residential,Bradbury House,9382.12, 14-Feb-2017,
312,Revenue,CAHD,Bed purchasing - Elderly S117 - South,Permanent Residential,Bradbury House,8462.56, 14-Feb-2017,
313,Revenue,CAHD,Jointly Funded H&SC Packages,Permanent Residential,Bradbury House,3144.08, 14-Feb-2017,
314,Revenue,CAHD,Sexual Health,Other Small Contracts,Bradley Stoke Surgery,1022.04, 20-Feb-2017,
315,Revenue,CAHD,CSC - Residential Placements,Permanent Residential,Branas ISAF Ltd,19928.57, 22-Feb-2017,
316,Revenue,CAHD,CSC - Residential Placements,Permanent Residential,Branas ISAF Ltd,21035.71, 22-Feb-2017,
317,Revenue,CAHD,South Glos Users in South Glos Homes,Permanent Nursing,Brandon Trust,625.00, 14-Feb-2017,
318,Revenue,CAHD,South Glos Users in South Glos Homes,Permanent Nursing,Brandon Trust,625.00, 14-Feb-2017,
319,Revenue,CAHD,South Glos Users in South Glos Homes,Permanent Nursing,Brandon Trust,625.00, 14-Feb-2017,
320,Revenue,CAHD,Bed Purchasing - South,Permanent Nursing,Brandon Trust,5537.76, 14-Feb-2017,
321,Revenue,CAHD,South Glos Users in South Glos Homes,Permanent Nursing,Brandon Trust,625.00, 14-Feb-2017,
322,Revenue,CAHD,Bed Purchasing - South,Permanent Residential,Brandon Trust,10847.76, 14-Feb-2017,
323,Revenue,CAHD,Bed Purchasing - South,Permanent Residential,Brandon Trust,4495.92, 14-Feb-2017,
324,Revenue,CAHD,Bed Purchasing - Southmead Hospital,Permanent Nursing,Brandon Trust,5487.72, 14-Feb-2017,
325,Revenue,CAHD,South Glos Users in South Glos Homes,Permanent Nursing,Brandon Trust,625.00, 14-Feb-2017,
326,Revenue,CAHD,Bed Purchasing - South,Permanent Nursing,Brandon Trust,5487.72, 14-Feb-2017,
327,Revenue,CAHD,South Glos Users in South Glos Homes,Permanent Nursing,Brandon Trust,625.00, 14-Feb-2017,
328,Revenue,CAHD,Bed purchasing - S28A Under 65 - South,Permanent Nursing,Brandon Trust,5817.92, 14-Feb-2017,
329,Revenue,CAHD,South Glos Users in South Glos Homes,Permanent Nursing,Brandon Trust,625.00, 14-Feb-2017,
330,Revenue,CAHD,Bed purchasing - S28A Under 65 - South,Permanent Residential,Brandon Trust,5714.96, 14-Feb-2017,
331,Revenue,CAHD,Bed Purchasing - LD S28A- Over 65- South,Permanent Nursing,Brandon Trust,5817.92, 14-Feb-2017,
332,Revenue,CAHD,South Glos Users in South Glos Homes,Permanent Nursing,Brandon Trust,625.00, 14-Feb-2017,
333,Revenue,CAHD,Bed Purchasing - LD S28A- Over 65- South,Permanent Nursing,Brandon Trust,5487.72, 14-Feb-2017,
334,Revenue,CAHD,South Glos Users in South Glos Homes,Permanent Nursing,Brandon Trust,625.00, 14-Feb-2017,
335,Revenue,CAHD,Bed Purchasing - South,Permanent Residential,Brandon Trust,3708.68, 14-Feb-2017,
336,Revenue,CAHD,Bed purchasing - S28A Under 65 - South,Permanent Residential,Brandon Trust,5657.72, 14-Feb-2017,
337,Revenue,CAHD,Bed purchasing - S28A Under 65 - South,Permanent Residential,Brandon Trust,5714.76, 14-Feb-2017,
338,Revenue,CAHD,South Glos Users in South Glos Homes,Permanent Nursing,Brandon Trust,625.00, 14-Feb-2017,
339,Revenue,CAHD,Bed purchasing - S28A Under 65 - South,Permanent Nursing,Brandon Trust,5817.92, 14-Feb-2017,
340,Revenue,CAHD,South Glos Users in South Glos Homes,Permanent Nursing,Brandon Trust,625.00, 14-Feb-2017,
341,Revenue,CAHD,Bed purchasing -S28A  Under 65 - North,Permanent Nursing,Brandon Trust,5267.04, 14-Feb-2017,
342,Revenue,CAHD,Bed purchasing - S28A Under 65 - South,Permanent Residential,Brandon Trust,5714.76, 14-Feb-2017,
343,Revenue,CAHD,Bed Purchasing - LD S28A- Over 65- South,Permanent Residential,Brandon Trust,5372.72, 14-Feb-2017,
344,Revenue,CAHD,Social Lettings Agency,Fees - General,Individual,11.41, 03-Feb-2017,
345,Revenue,CAHD,Social Lettings Agency,Other Supplies & Services,Individual,746.54, 03-Feb-2017,
346,Revenue,CAHD,Tenancy Start Up Scheme,Other Supplies & Services,Individual,1095.25, 21-Feb-2017,
347,Revenue,CAHD,Bed Purchasing - Southmead Hospital,Permanent Residential,Bridge House Care Home,2392.00, 14-Feb-2017,
348,Revenue,CAHD,Bed Purchasing - North,Permanent Residential,Bridge House Care Home,2351.56, 14-Feb-2017,
349,Revenue,CAHD,Bed Purchasing - North,Permanent Residential,Bridge House Care Home,2163.68, 14-Feb-2017,
350,Revenue,CAHD,Bed Purchasing - North,Permanent Residential,Bridge House Care Home,2274.48, 14-Feb-2017,
351,Revenue,CAHD,Bed Purchasing - North,Permanent Residential,Bridgwater Court,10192.44, 14-Feb-2017,
352,Revenue,CAHD,Bed Purchasing - South,Permanent Residential,Brightbow,2654.68, 14-Feb-2017,
353,Revenue,CAHD,MH Purchasing - Younger,Permanent Residential,Brightbow,2179.12, 14-Feb-2017,
354,Revenue,CAHD,Statemented Support Academies,Schools Funding,Bristol & South Gloucestershire UTC,649.97, 28-Feb-2017,
355,Revenue,CAHD,Statemented Support Academies,Other Public Bodies,Bristol & South Gloucestershire UTC,812.50, 06-Feb-2017,
356,Revenue,CAHD,CSC - Care Leavers Independent Living,Independent Living,Bristol Children`s contact Services Ltd DO NOT,7947.06, 03-Feb-2017,
357,Revenue,CAHD,Minor Adaptations Service,Operational Equipment,Bristol City Council,7000.00, 10-Feb-2017,
358,Revenue,CAHD,Minor Adaptations Service,Operational Equipment,Bristol City Council,3135.04, 10-Feb-2017,
359,Revenue,CAHD,CSC - YOT Pooled Budget,Other Supplies & Services,Bristol City Council,4824.00, 22-Feb-2017,
360,Revenue,CAHD,CSC - Asylum Seekers - Unaccompanied,Personal Needs of Clients,Bristol City Council,540.00, 20-Feb-2017,
361,Revenue,CAHD,Statemented Support Payments to OLAs,Other L.A.'s - General,Bristol City Council - Schools,1374.97, 28-Feb-2017,
362,Revenue,CAHD,Statemented Support Payments to OLAs,Other L.A.'s - General,Bristol City Council - Schools,1091.64, 28-Feb-2017,
363,Revenue,CAHD,Statemented Support Payments to OLAs,Other L.A.'s - General,Bristol City Council - Schools,641.64, 28-Feb-2017,
364,Revenue,CAHD,Home Care - Elderly - North,Day Care / Social Activities,Bristol Community Links North,983.52, 14-Feb-2017,
365,Revenue,CAHD,Home Care - Elderly - North,Day Care / Social Activities,Bristol Community Links North,2458.80, 14-Feb-2017,
366,Revenue,CAHD,Statemented Support Payments to OLAs,Other L.A.'s - General,Bristol Free School,933.30, 28-Feb-2017,
367,Revenue,CAHD,Home Care - Elderly - South,Supported Living,Bristol Houses UK Limited,614.46, 28-Feb-2017,
368,Revenue,CAHD,Home Care - Elderly - South,Day Care / Social Activities,Bristol Houses UK Limited,1074.76, 28-Feb-2017,
369,Revenue,CAHD,Home Care - Elderly - North,Day Care / Social Activities,Bristol Houses UK Limited,1260.84, 28-Feb-2017,
370,Revenue,CAHD,Supporting People Programme,Grants to Voluntary Bodies,Bristol Missing Link,1464.83, 01-Feb-2017,
371,Revenue,CAHD,Newton House,Water Charges,Bristol Wessex Billing Services Limited,1481.79, 03-Feb-2017,
372,Revenue,CAHD,Alexandra Way,Water Charges,Bristol Wessex Billing Services Limited,550.19, 07-Feb-2017,
373,Revenue,CAHD,CSC - Vinney Green Secure Unit,Water Charges,Bristol Wessex Billing Services Limited,900.65, 07-Feb-2017,
374,Revenue,CAHD,Grange School Holding Account,Water Charges,Bristol Wessex Billing Services Limited,1031.76, 07-Feb-2017,
375,Revenue,CAHD,Woodleaze,Water Charges,Bristol Wessex Billing Services Limited,4065.36, 07-Feb-2017,
376,Revenue,CAHD,Grange School Holding Account,Water Charges,Bristol Wessex Billing Services Limited,992.77, 28-Feb-2017,
377,Revenue,CAHD,Alexandra Way,Water Charges,Bristol Wessex Billing Services Limited,694.59, 28-Feb-2017,
378,Revenue,CAHD,CSC - Vinney Green Secure Unit,Water Charges,Bristol Wessex Billing Services Limited,957.44, 28-Feb-2017,
379,Revenue,CAHD,CSC - Vinney Green Secure Unit,R & M by Departments,Bristolfridge,570.00, 07-Feb-2017,
380,Revenue,CAHD,18-25 Year Olds,SU Employment Support,Britannia House,702.96, 14-Feb-2017,
381,Revenue,CAHD,Home Care - Elderly - North,Day Care / Social Activities,Britannia House,937.28, 14-Feb-2017,
382,Revenue,CAHD,18-25 Year Olds,Day Care / Social Activities,Britannia House,702.96, 14-Feb-2017,
383,Revenue,CAHD,Home Care - Elderly - North,Day Care / Social Activities,Britannia House,702.96, 14-Feb-2017,
384,Revenue,CAHD,Home Care - Elderly - North,Day Care / Social Activities,Britannia House,937.28, 14-Feb-2017,
385,Revenue,CAHD,Home Care - Elderly - South,Day Care / Social Activities,Britannia House,937.28, 14-Feb-2017,
386,Revenue,CAHD,Home Care - Elderly - South,Day Care / Social Activities,Britannia House,702.96, 14-Feb-2017,
387,Revenue,CAHD,Home Care - Elderly - South,Day Care / Social Activities,Britannia House,702.96, 14-Feb-2017,
388,Revenue,CAHD,CSC - Care Leavers Independent Living,Independent Living,Bromford Housing Association,1884.90, 03-Feb-2017,
389,Revenue,CAHD,Supporting People Programme,Grants to Voluntary Bodies,Bromford Housing Group,14395.08, 01-Feb-2017,
390,Revenue,CAHD,Pathway 1 - Re-Ablement Home Care,Private & Voluntary Home Care,Brunelcare,24132.35, 06-Feb-2017,
391,Revenue,CAHD,Pathway 1 - Re-Ablement Home Care,Private & Voluntary Home Care,Brunelcare,24132.35, 13-Feb-2017,
392,Revenue,CAHD,Pathway 1 - Re-Ablement Home Care,Private & Voluntary Home Care,Brunelcare,24132.35, 20-Feb-2017,
393,Revenue,CAHD,Pathway 1 - Re-Ablement Home Care,Private & Voluntary Home Care,Brunelcare,24132.35, 27-Feb-2017,
394,Revenue,CAHD,Bed Purchasing - North,Permanent Nursing,Brunelcare,2228.72, 13-Feb-2017,
395,Revenue,CAHD,Bed purchasing - Elderly S117 - South,Permanent Nursing,Brunelcare,1128.29, 13-Feb-2017,
396,Revenue,CAHD,Bed purchasing - Elderly S117 - South,Permanent Nursing,Brunelcare,2497.86, 13-Feb-2017,
397,Revenue,CAHD,South Glos Users in South Glos Homes,Permanent Nursing,Brunelcare,691.96, 13-Feb-2017,
398,Revenue,CAHD,Bed Purchasing - Elderly S117- North,Permanent Nursing,Brunelcare,3179.71, 13-Feb-2017,
399,Revenue,CAHD,Bed Purchasing - Southmead Hospital,Respite Emergency - Nursing,Brunelcare,999.14, 13-Feb-2017,
400,Revenue,CAHD,Bed Purchasing - South,Respite Planned - Nursing,Brunelcare,1025.71, 13-Feb-2017,
401,Revenue,CAHD,Bed Purchasing - South,Permanent Nursing,Brunelcare,752.27, 13-Feb-2017,
402,Revenue,CAHD,South Glos Users in South Glos Homes,Permanent Nursing,Brunelcare,691.96, 13-Feb-2017,
403,Revenue,CAHD,Bed Purchasing - Elderly S117- North,Permanent Nursing,Brunelcare,3179.71, 13-Feb-2017,
404,Revenue,CAHD,South Glos Users in South Glos Homes,Permanent Nursing,Brunelcare,691.96, 13-Feb-2017,
405,Revenue,CAHD,Bed Purchasing - Southmead Hospital,Permanent Nursing,Brunelcare,1444.07, 13-Feb-2017,
406,Revenue,CAHD,South Glos Users in South Glos Homes,Permanent Nursing,Brunelcare,691.96, 13-Feb-2017,
407,Revenue,CAHD,Bed Purchasing - South,Permanent Nursing,Brunelcare,2385.49, 13-Feb-2017,
408,Revenue,CAHD,South Glos Users in South Glos Homes,Permanent Nursing,Brunelcare,691.96, 13-Feb-2017,
409,Revenue,CAHD,Bed Purchasing - South,Permanent Nursing,Brunelcare,2409.41, 13-Feb-2017,
410,Revenue,CAHD,South Glos Users in South Glos Homes,Permanent Nursing,Brunelcare,691.96, 13-Feb-2017,
411,Revenue,CAHD,Bed purchasing - Elderly S117 - South,Permanent Nursing,Brunelcare,3179.71, 13-Feb-2017,
412,Revenue,CAHD,South Glos Users in South Glos Homes,Permanent Nursing,Brunelcare,691.96, 13-Feb-2017,
413,Revenue,CAHD,Bed Purchasing - North,Permanent Nursing,Brunelcare,2529.78, 13-Feb-2017,
414,Revenue,CAHD,South Glos Users in South Glos Homes,Permanent Nursing,Brunelcare,691.96, 13-Feb-2017,
415,Revenue,CAHD,Bed Purchasing - Southmead Hospital,Permanent Nursing,Brunelcare,2430.09, 13-Feb-2017,
416,Revenue,CAHD,South Glos Users in South Glos Homes,Permanent Nursing,Brunelcare,691.96, 13-Feb-2017,
417,Revenue,CAHD,Bed Purchasing - North,Permanent Nursing,Brunelcare,2552.72, 13-Feb-2017,
418,Revenue,CAHD,South Glos Users in South Glos Homes,Permanent Nursing,Brunelcare,691.96, 13-Feb-2017,
419,Revenue,CAHD,Bed Purchasing - North,Permanent Nursing,Brunelcare,2600.90, 13-Feb-2017,
420,Revenue,CAHD,South Glos Users in South Glos Homes,Permanent Nursing,Brunelcare,691.96, 13-Feb-2017,
421,Revenue,CAHD,Bed Purchasing - Southmead Hospital,Permanent Nursing,Brunelcare,2600.90, 13-Feb-2017,
422,Revenue,CAHD,Bed Purchasing - Southmead Hospital,Permanent Nursing,Brunelcare,2600.90, 13-Feb-2017,
423,Revenue,CAHD,South Glos Users in South Glos Homes,Permanent Nursing,Brunelcare,691.96, 13-Feb-2017,
424,Revenue,CAHD,Bed Purchasing - Elderly S117- North,Permanent Nursing,Brunelcare,3179.71, 13-Feb-2017,
425,Revenue,CAHD,Bed Purchasing - South,Respite Planned - Nursing,Brunelcare,1230.86, 13-Feb-2017,
426,Revenue,CAHD,Bed Purchasing - South,Respite Planned - Nursing,Brunelcare,999.14, 13-Feb-2017,
427,Revenue,CAHD,Bed Purchasing - South,Respite Planned - Nursing,Brunelcare,820.57, 13-Feb-2017,
428,Revenue,CAHD,Bed Purchasing - South,Respite Planned - Nursing,Brunelcare,1641.14, 13-Feb-2017,
429,Revenue,CAHD,South Glos Users in South Glos Homes,Permanent Nursing,Brunelcare,758.93, 13-Feb-2017,
430,Revenue,CAHD,South Glos Users in South Glos Homes,Permanent Nursing,Brunelcare,513.39, 13-Feb-2017,
431,Revenue,CAHD,South Glos Users in South Glos Homes,Permanent Nursing,Brunelcare,3392.86, 13-Feb-2017,
432,Revenue,CAHD,Pathway 2 - (Interim Beds),Permanent Nursing,Brunelcare,51086.88, 07-Feb-2017,
433,Revenue,CAHD,Pathway 2 - (Interim Beds),Permanent Nursing,Brunelcare,15407.00, 17-Feb-2017,
434,Revenue,CAHD,Home Care - Elderly - South,Other Small Contracts,Brunelcare,2015.52, 01-Feb-2017,
435,Revenue,CAHD,Home Care - Elderly - North,Other Small Contracts,Brunelcare,1356.94, 01-Feb-2017,
436,Revenue,CAHD,Home Care - Elderly - South,Other Small Contracts,Brunelcare,1971.32, 01-Feb-2017,
437,Revenue,CAHD,Home Care - Elderly - North,Other Small Contracts,Brunelcare,1197.82, 01-Feb-2017,
438,Revenue,CAHD,Home Care - Elderly - South,Other Small Contracts,Brunelcare,2117.18, 01-Feb-2017,
439,Revenue,CAHD,Home Care - Elderly - North,Other Small Contracts,Brunelcare,1396.72, 01-Feb-2017,
440,Revenue,CAHD,Home Care - Elderly - South,Other Small Contracts,Brunelcare,2205.58, 15-Feb-2017,
441,Revenue,CAHD,Home Care - Elderly - North,Other Small Contracts,Brunelcare,1516.06, 15-Feb-2017,
442,Revenue,CAHD,Home Care - Elderly - South,Other Small Contracts,Brunelcare,2117.18, 15-Feb-2017,
443,Revenue,CAHD,Home Care - Elderly - North,Other Small Contracts,Brunelcare,1533.74, 15-Feb-2017,
444,Revenue,CAHD,Home Care - Elderly - South,Other Small Contracts,Brunelcare,2134.86, 15-Feb-2017,
445,Revenue,CAHD,Home Care - Elderly - North,Other Small Contracts,Brunelcare,1516.06, 15-Feb-2017,
446,Revenue,CAHD,Add cost non-residential care contracts,Other L.A.'s - General,Brunelcare,3220.00, 28-Feb-2017,
447,Revenue,CAHD,Woodleaze,Agency Staff (Admin/Support Staff) Pay,BS Project Services Limited,498.90, 02-Feb-2017,
448,Revenue,CAHD,Woodleaze,Agency Staff (Admin/Support Staff) Pay,BS Project Services Limited,665.20, 09-Feb-2017,
449,Revenue,CAHD,Woodleaze,Agency Staff (Admin/Support Staff) Pay,BS Project Services Limited,498.90, 22-Feb-2017,
450,Revenue,CAHD,Woodleaze,Cleaning & Domestic Services,Bunzl Cleaning & Hygiene Supplies,417.11, 09-Feb-2017,
451,Revenue,CAHD,CSC - Vinney Green Secure Unit,Catering Equipment,Bunzl Lockhart Catering Equiptment,432.57, 13-Feb-2017,
452,Revenue,CAHD,CSC - Vinney Green Secure Unit,Catering Equipment,Bunzl Lockhart Catering Equiptment,469.00, 10-Feb-2017,
453,Revenue,CAHD,Bed Purchasing - North,Permanent Nursing,Bupa Care Services  Bridge House,1740.00, 14-Feb-2017,
454,Revenue,CAHD,Jointly Funded H&SC Packages,Permanent Nursing,Bupa Care Services  Bridge House,4344.04, 14-Feb-2017,
455,Revenue,CAHD,South Glos Users in all other LA Homes,Permanent Nursing,Bupa Care Services  Bridge House,860.16, 14-Feb-2017,
456,Revenue,CAHD,CSC - Vinney Green Secure Unit,Service Contracts (Premises),BWS Security Systems Limited,2160.00, 06-Feb-2017,
457,Revenue,CAHD,CSC - Vinney Green Secure Unit,Service Contracts (Premises),BWS Security Systems Limited,1600.00, 03-Feb-2017,
458,Revenue,CAHD,CSC - Vinney Green Secure Unit,Service Contracts (Premises),BWS Security Systems Limited,1875.00, 06-Feb-2017,
459,Revenue,CAHD,CSC - Vinney Green Secure Unit,Service Contracts (Premises),BWS Security Systems Limited,5944.00, 13-Feb-2017,
460,Revenue,CAHD,Grange School Holding Account,Street Care - Grounds Maintenance,C P S (Grounds) Limited,1648.77, 02-Feb-2017,
461,Revenue,CAHD,Grange School Holding Account,Street Care - Grounds Maintenance,C P S (Grounds) Limited,1648.77, 02-Feb-2017,
462,Revenue,CAHD,Grange School Holding Account,Street Care - Grounds Maintenance,C P S (Grounds) Limited,1648.77, 03-Feb-2017,
463,Revenue,CAHD,Statemented Support Payments to OLAs,Other L.A.'s - General,Cabot Learning Federation,1099.97, 28-Feb-2017,
464,Revenue,CAHD,Statemented Support Academies,Other Public Bodies,Cabot Learning Federation,18637.50, 06-Feb-2017,
465,Revenue,CAHD,Academy Resource Base Funding,Other Public Bodies,Cabot Learning Federation,1231.51, 06-Feb-2017,
466,Revenue,CAHD,Academy Resource Base Funding,Other Public Bodies,Cabot Learning Federation,509.59, 06-Feb-2017,
467,Revenue,CAHD,Academy Resource Base Funding,Other Public Bodies,Cabot Learning Federation,1613.70, 06-Feb-2017,
468,Revenue,CAHD,Academy Resource Base Funding,Other Public Bodies,Cabot Learning Federation,509.59, 06-Feb-2017,
469,Revenue,CAHD,Academy Resource Base Funding,Other Public Bodies,Cabot Learning Federation,509.59, 06-Feb-2017,
470,Revenue,CAHD,Academy Resource Base Funding,Other Public Bodies,Cabot Learning Federation,509.59, 06-Feb-2017,
471,Revenue,CAHD,Academy Resource Base Funding,Other Public Bodies,Cabot Learning Federation,509.59, 06-Feb-2017,
472,Revenue,CAHD,Academy Resource Base Funding,Other Public Bodies,Cabot Learning Federation,1783.56, 06-Feb-2017,
473,Revenue,CAHD,Academy Resource Base Funding,Other Public Bodies,Cabot Learning Federation,509.59, 06-Feb-2017,
474,Revenue,CAHD,Academy Resource Base Funding,Other Public Bodies,Cabot Learning Federation,509.59, 06-Feb-2017,
475,Revenue,CAHD,Academy Resource Base Funding,Other Public Bodies,Cabot Learning Federation,1613.70, 06-Feb-2017,
476,Revenue,CAHD,Academy Resource Base Funding,Other Public Bodies,Cabot Learning Federation,509.59, 06-Feb-2017,
477,Revenue,CAHD,Academy Resource Base Funding,Other Public Bodies,Cabot Learning Federation,1613.70, 06-Feb-2017,
478,Revenue,CAHD,Academy Resource Base Funding,Other Public Bodies,Cabot Learning Federation,509.59, 06-Feb-2017,
479,Revenue,CAHD,Academy Resource Base Funding,Other Public Bodies,Cabot Learning Federation,509.59, 06-Feb-2017,
480,Revenue,CAHD,Academy Resource Base Funding,Other Public Bodies,Cabot Learning Federation,1613.70, 06-Feb-2017,
481,Revenue,CAHD,Academy Resource Base Funding,Other Public Bodies,Cabot Learning Federation,509.59, 06-Feb-2017,
482,Revenue,CAHD,Academy Resource Base Funding,Other Public Bodies,Cabot Learning Federation,509.59, 06-Feb-2017,
483,Revenue,CAHD,Academy Resource Base Funding,Other Public Bodies,Cabot Learning Federation,1613.70, 06-Feb-2017,
484,Revenue,CAHD,Academy Resource Base Funding,Other Public Bodies,Cabot Learning Federation,509.59, 06-Feb-2017,
485,Revenue,CAHD,Academy Resource Base Funding,Other Public Bodies,Cabot Learning Federation,509.59, 06-Feb-2017,
486,Revenue,CAHD,Academy Resource Base Funding,Other Public Bodies,Cabot Learning Federation,509.59, 06-Feb-2017,
487,Revenue,CAHD,Statemented Support Academies,Other Public Bodies,Cabot Learning Federation,12425.00, 06-Feb-2017,
488,Revenue,CAHD,Schools Specific Grant Income - from OLA,Other Public Bodies,Cabot Learning Federation,1899.99, 06-Feb-2017,
489,Revenue,CAHD,Academy Resource Base Funding,Other Public Bodies,Cabot Learning Federation,1457.53, 28-Feb-2017,
490,Revenue,CAHD,Academy Resource Base Funding,Other Public Bodies,Cabot Learning Federation,1112.33, 28-Feb-2017,
491,Revenue,CAHD,Academy Resource Base Funding,Other Public Bodies,Cabot Learning Federation,1610.96, 28-Feb-2017,
492,Revenue,CAHD,Academy Resource Base Funding,Other Public Bodies,Cabot Learning Federation,1457.53, 28-Feb-2017,
493,Revenue,CAHD,Academy Resource Base Funding,Other Public Bodies,Cabot Learning Federation,1457.53, 28-Feb-2017,
494,Revenue,CAHD,Academy Resource Base Funding,Other Public Bodies,Cabot Learning Federation,1457.53, 28-Feb-2017,
495,Revenue,CAHD,Academy Resource Base Funding,Other Public Bodies,Cabot Learning Federation,6142.47, 28-Feb-2017,
496,Revenue,CAHD,Academy Resource Base Funding,Other Public Bodies,Cabot Learning Federation,1457.53, 28-Feb-2017,
497,Revenue,CAHD,Academy Resource Base Funding,Other Public Bodies,Cabot Learning Federation,1457.53, 28-Feb-2017,
498,Revenue,CAHD,Statemented Support Academies,Other Public Bodies,Cabot Learning Federation,91743.75, 06-Feb-2017,
499,Revenue,CAHD,Schools Specific Grant Income - from OLA,Other Public Bodies,Cabot Learning Federation,633.33, 06-Feb-2017,
500,Revenue,CAHD,Statemented Support Payments to OLAs,Other L.A.'s - General,Cabot Learning Federation,524.97, 28-Feb-2017,
501,Revenue,CAHD,Statemented Support Academies,Schools Funding,Cabot Learning Federation,641.64, 28-Feb-2017,
502,Revenue,CAHD,Statemented Support Academies,Schools Funding,Cabot Learning Federation,691.64, 28-Feb-2017,
503,Revenue,CAHD,Statemented Support Academies,Schools Funding,Cabot Learning Federation,691.64, 28-Feb-2017,
504,Revenue,CAHD,Statemented Support Academies,Schools Funding,Cabot Learning Federation,624.97, 28-Feb-2017,
505,Revenue,CAHD,Statemented Support Academies,Schools Funding,Cabot Learning Federation,558.30, 28-Feb-2017,
506,Revenue,CAHD,Statemented Support Academies,Schools Funding,Cabot Learning Federation,583.30, 28-Feb-2017,
507,Revenue,CAHD,Statemented Support Academies,Schools Funding,Cabot Learning Federation,583.30, 28-Feb-2017,
508,Revenue,CAHD,Statemented Support Academies,Schools Funding,Cabot Learning Federation,1408.30, 28-Feb-2017,
509,Revenue,CAHD,Statemented Support Academies,Schools Funding,Cabot Learning Federation,599.97, 28-Feb-2017,
510,Revenue,CAHD,Statemented Support Academies,Schools Funding,Cabot Learning Federation,724.97, 28-Feb-2017,
511,Revenue,CAHD,Statemented Support Academies,Schools Funding,Cabot Learning Federation,691.64, 28-Feb-2017,
512,Revenue,CAHD,Statemented Support Academies,Schools Funding,Cabot Learning Federation,583.30, 28-Feb-2017,
513,Revenue,CAHD,Statemented Support Academies,Schools Funding,Cabot Learning Federation,1316.64, 28-Feb-2017,
514,Revenue,CAHD,Statemented Support Academies,Schools Funding,Cabot Learning Federation,624.97, 28-Feb-2017,
515,Revenue,CAHD,Statemented Support Academies,Schools Funding,Cabot Learning Federation,899.97, 28-Feb-2017,
516,Revenue,CAHD,Statemented Support Academies,Schools Funding,Cabot Learning Federation,683.30, 28-Feb-2017,
517,Revenue,CAHD,Statemented Support Academies,Schools Funding,Cabot Learning Federation,958.30, 28-Feb-2017,
518,Revenue,CAHD,Statemented Support Academies,Schools Funding,Cabot Learning Federation,749.97, 28-Feb-2017,
519,Revenue,CAHD,Statemented Support Academies,Schools Funding,Cabot Learning Federation,933.30, 28-Feb-2017,
520,Revenue,CAHD,Statemented Support Academies,Schools Funding,Cabot Learning Federation,549.97, 28-Feb-2017,
521,Revenue,CAHD,Statemented Support Payments to OLAs,Other L.A.'s - General,Cabot Learning Federation,583.30, 28-Feb-2017,
522,Revenue,CAHD,Statemented Support Academies,Schools Funding,Cabot Learning Federation,841.64, 28-Feb-2017,
523,Revenue,CAHD,Statemented Support Academies,Schools Funding,Cabot Learning Federation,1308.30, 28-Feb-2017,
524,Revenue,CAHD,Post 16 High Needs Placements,Other Private Contractors,Cambian Whinfell School Ltd,48238.15, 24-Feb-2017,
525,Revenue,CAHD,Home Care - Elderly - North,Day Care / Social Activities,Camphill Communities Thornbury Limited,654.11, 03-Feb-2017,
526,Revenue,CAHD,Home Care - Elderly - North,Other Small Contracts,Camphill Communities Thornbury Limited,158.04, 03-Feb-2017,
527,Revenue,CAHD,Home Care - Elderly - North,Supported Living,Camphill Communities Thornbury Limited,210.72, 03-Feb-2017,
528,Revenue,CAHD,Home Care - Elderly - North,Day Care / Social Activities,Camphill Communities Thornbury Limited,689.23, 10-Feb-2017,
529,Revenue,CAHD,Home Care - Elderly - North,Supported Living,Camphill Communities Thornbury Limited,864.83, 10-Feb-2017,
530,Revenue,CAHD,Home Care - Elderly - North,Day Care / Social Activities,Camphill Communities Thornbury Limited,1110.67, 23-Feb-2017,
531,Revenue,CAHD,Home Care - Elderly - North,Other Small Contracts,Camphill Communities Thornbury Limited,162.43, 23-Feb-2017,
532,Revenue,CAHD,Home Care - Elderly - North,Supported Living,Camphill Communities Thornbury Limited,970.19, 23-Feb-2017,
533,Revenue,CAHD,Home Care - Elderly - North,Day Care / Social Activities,Camphill Communities Thornbury Limited,1123.84, 24-Feb-2017,
534,Revenue,CAHD,Home Care - Elderly - North,Other Small Contracts,Camphill Communities Thornbury Limited,158.04, 24-Feb-2017,
535,Revenue,CAHD,Home Care - Elderly - North,Supported Living,Camphill Communities Thornbury Limited,983.36, 24-Feb-2017,
536,Revenue,CAHD,Bed Purchasing - Elderly S117- North,Permanent Residential,Canjayor,2391.32, 14-Feb-2017,
537,Revenue,CAHD,0-25  Service Staffing Team,Agency Staff (Admin/Support Staff) Pay,Capita Resourcing Limited,11340.00, 16-Feb-2017,
538,Revenue,CAHD,CAH Assistant Directors,Agency Staff (Admin/Support Staff) Pay,Capita Resourcing Limited,7320.00, 02-Feb-2017,
539,Revenue,CAHD,Home Care - Elderly - South,Other Small Contracts,Care 1st Homecare,4904.51, 16-Feb-2017,
540,Revenue,CAHD,Home Care - Elderly - North,Other Small Contracts,Care 1st Homecare,6872.74, 16-Feb-2017,
541,Revenue,CAHD,Home Care - Elderly - South,Other Small Contracts,Care 1st Homecare,4584.32, 16-Feb-2017,
542,Revenue,CAHD,Home Care - Elderly - North,Other Small Contracts,Care 1st Homecare,5962.34, 16-Feb-2017,
543,Revenue,CAHD,Home Care - Elderly - South,Other Small Contracts,Care 1st Homecare,4266.08, 16-Feb-2017,
544,Revenue,CAHD,Home Care - Elderly - North,Other Small Contracts,Care 1st Homecare,5692.72, 16-Feb-2017,
545,Revenue,CAHD,Home Care - Elderly - South,Other Small Contracts,Care 1st Homecare,4756.83, 16-Feb-2017,
546,Revenue,CAHD,Home Care - Elderly - North,Other Small Contracts,Care 1st Homecare,5745.76, 16-Feb-2017,
547,Revenue,CAHD,Home Care - Elderly - South,Other Small Contracts,Care Horizons Limited,428.64, 07-Feb-2017,
548,Revenue,CAHD,Home Care - Elderly - North,Day Care / Social Activities,Care Horizons Limited,538.08, 07-Feb-2017,
549,Revenue,CAHD,Home Care - Elderly - North,Other Small Contracts,Care Horizons Limited,784.32, 07-Feb-2017,
550,Revenue,CAHD,Home Care - Elderly - North,Other Small Contracts,Care Horizons Limited,3225.25, 03-Feb-2017,
551,Revenue,CAHD,Home Care - Elderly - South,Other Small Contracts,Carers R Us (Bristol) Limited,614.38, 21-Feb-2017,
552,Revenue,CAHD,Home Care - Elderly - North,Other Small Contracts,Carers R Us (Bristol) Limited,2219.19, 21-Feb-2017,
553,Revenue,CAHD,Home Care - Elderly - South,Other Small Contracts,Carers R Us (Bristol) Limited,579.02, 21-Feb-2017,
554,Revenue,CAHD,Home Care - Elderly - North,Other Small Contracts,Carers R Us (Bristol) Limited,2182.90, 21-Feb-2017,
555,Revenue,CAHD,Home Care - Elderly - South,Other Small Contracts,Carers R Us (Bristol) Limited,318.24, 21-Feb-2017,
556,Revenue,CAHD,Home Care - Elderly - North,Other Small Contracts,Carers R Us (Bristol) Limited,2211.98, 21-Feb-2017,
557,Revenue,CAHD,Home Care - Elderly - South,Other Small Contracts,Caring Comes 1st Ltd,1649.48, 08-Feb-2017,
558,Revenue,CAHD,Home Care - Elderly - North,Other Small Contracts,Caring Comes 1st Ltd,679.52, 09-Feb-2017,
559,Revenue,CAHD,Home Care - Elderly - South,Other Small Contracts,Caring Comes 1st Ltd,896.89, 24-Feb-2017,
560,Revenue,CAHD,Home Care - Elderly - South,Other Small Contracts,Caring Comes 1st Ltd,1002.84, 24-Feb-2017,
561,Revenue,CAHD,Home Care - Elderly - South,Other Small Contracts,Caring Comes 1st Ltd,1731.68, 28-Feb-2017,
562,Revenue,CAHD,Statemented Support Academies,Schools Funding,Castle School Education Trust,949.97, 28-Feb-2017,
563,Revenue,CAHD,Statemented Support Academies,Schools Funding,Castle School Education Trust,674.97, 28-Feb-2017,
564,Revenue,CAHD,Statemented Support Academies,Schools Funding,Castle School Education Trust,783.30, 28-Feb-2017,
565,Revenue,CAHD,Statemented Support Academies,Schools Funding,Castle School Education Trust,583.30, 28-Feb-2017,
566,Revenue,CAHD,Statemented Support Academies,Schools Funding,Castle School Education Trust,524.97, 28-Feb-2017,
567,Revenue,CAHD,Statemented Support Academies,Schools Funding,Castle School Education Trust,1324.97, 28-Feb-2017,
568,Revenue,CAHD,Statemented Support Academies,Schools Funding,Castle School Education Trust,591.64, 28-Feb-2017,
569,Revenue,CAHD,Statemented Support Academies,Schools Funding,Castle School Education Trust,1049.97, 28-Feb-2017,
570,Revenue,CAHD,Statemented Support Academies,Schools Funding,Castle School Education Trust,1083.30, 28-Feb-2017,
571,Revenue,CAHD,Statemented Support Academies,Schools Funding,Castle School Education Trust,649.97, 28-Feb-2017,
572,Revenue,CAHD,Statemented Support Academies,Schools Funding,Castle School Education Trust,1474.97, 28-Feb-2017,
573,Revenue,CAHD,Statemented Support Academies,Schools Funding,Castle School Education Trust,708.30, 28-Feb-2017,
574,Revenue,CAHD,Statemented Support Academies,Schools Funding,Castle School Education Trust,966.64, 28-Feb-2017,
575,Revenue,CAHD,Statemented Support Academies,Schools Funding,Castle School Education Trust,766.64, 28-Feb-2017,
576,Revenue,CAHD,Statemented Support Academies,Schools Funding,Castle School Education Trust,583.30, 28-Feb-2017,
577,Revenue,CAHD,Statemented Support Academies,Schools Funding,Castle School Education Trust,508.30, 28-Feb-2017,
578,Revenue,CAHD,Statemented Support Academies,Schools Funding,Castle School Education Trust,874.97, 28-Feb-2017,
579,Revenue,CAHD,Statemented Support Academies,Schools Funding,Castle School Education Trust,733.30, 28-Feb-2017,
580,Revenue,CAHD,Statemented Support Academies,Schools Funding,Castle School Education Trust,874.97, 28-Feb-2017,
581,Revenue,CAHD,Statemented Support Academies,Schools Funding,Castle School Education Trust,883.30, 28-Feb-2017,
582,Revenue,CAHD,Statemented Support Academies,Schools Funding,Castle School Education Trust,891.64, 28-Feb-2017,
583,Revenue,CAHD,Statemented Support Academies,Schools Funding,Castle School Education Trust,599.97, 28-Feb-2017,
584,Revenue,CAHD,Statemented Support Academies,Schools Funding,Castle School Education Trust,1166.64, 28-Feb-2017,
585,Revenue,CAHD,Statemented Support Academies,Schools Funding,Castle School Education Trust,658.30, 28-Feb-2017,
586,Revenue,CAHD,Statemented Support Academies,Schools Funding,Castle School Education Trust,608.30, 28-Feb-2017,
587,Revenue,CAHD,Statemented Support Academies,Other Public Bodies,Castle School Education Trust,85487.50, 06-Feb-2017,
588,Revenue,CAHD,Schools Specific Grant Income - from OLA,Other Public Bodies,Castle School Education Trust,1899.99, 06-Feb-2017,
589,Revenue,CAHD,Statemented Support Academies,Schools Funding,Castle School Education Trust,691.64, 28-Feb-2017,
590,Revenue,CAHD,Statemented Support Academies,Schools Funding,Castle School Education Trust,558.30, 28-Feb-2017,
591,Revenue,CAHD,Statemented Support Academies,Schools Funding,Castle School Education Trust,1133.30, 28-Feb-2017,
592,Revenue,CAHD,Grange School Holding Account,Schools Funding,Castle School Education Trust,96818.51, 07-Feb-2017,
593,Revenue,CAHD,Statemented Support Academies,Schools Funding,Castle School Education Trust,1283.30, 28-Feb-2017,
594,Revenue,CAHD,Independent Special Placements - Pre 16,Other Private Contractors,Catch 22 Charity Ltd,1341.55, 27-Feb-2017,
595,Revenue,CAHD,Social Lettings Agency,Fees - General,Individual,10.53, 01-Feb-2017,
596,Revenue,CAHD,Social Lettings Agency,Fees & Charges Income - General,Individual,595.11, 01-Feb-2017,
597,Revenue,CAHD,Bed Purchasing - Elderly S117- North,Permanent Nursing,Cedar Care Homes Limited,4352.00, 14-Feb-2017,
598,Revenue,CAHD,CSC - Legal Fees,Legal Fees,CFAB,5000.00, 23-Feb-2017,
599,Revenue,CAHD,Bed Purchasing - North,Permanent Residential,Charlton House,1831.32, 14-Feb-2017,
600,Revenue,CAHD,Sexual Health,Other Small Contracts,Chelsea and Westminster Hospital,782.55, 03-Feb-2017,
601,Revenue,CAHD,CSC - Vinney Green Secure Unit,R & M by Departments,Cheltenham Mowers Limited,672.75, 10-Feb-2017,
602,Revenue,CAHD,Home Care - Elderly - South,Other Small Contracts,Cherish Able Care Limited,5029.96, 03-Feb-2017,
603,Revenue,CAHD,Home Care - Elderly - North,Other Small Contracts,Cherish Able Care Limited,247.52, 03-Feb-2017,
604,Revenue,CAHD,Home Care - Elderly - South,Other Small Contracts,Cherish Able Care Limited,5626.66, 10-Feb-2017,
605,Revenue,CAHD,Home Care - Elderly - North,Other Small Contracts,Cherish Able Care Limited,256.36, 10-Feb-2017,
606,Revenue,CAHD,Home Care - Elderly - South,Other Small Contracts,Cherish Able Care Limited,5926.62, 17-Feb-2017,
607,Revenue,CAHD,Home Care - Elderly - North,Other Small Contracts,Cherish Able Care Limited,251.94, 17-Feb-2017,
608,Revenue,CAHD,Home Care - Elderly - South,Other Small Contracts,Cherish Able Care Limited,6071.98, 23-Feb-2017,
609,Revenue,CAHD,Home Care - Elderly - North,Other Small Contracts,Cherish Able Care Limited,251.94, 23-Feb-2017,
610,Revenue,CAHD,Bed purchasing -S28A  Under 65 - North,Permanent Residential,Chescombe Lodge,9237.72, 14-Feb-2017,
611,Revenue,CAHD,18-25 Year Olds,Permanent Residential,Chosen Care Ltd  Citibase Watford,7591.04, 14-Feb-2017,
612,Revenue,CAHD,Bed Purchasing - Elderly S117- North,Permanent Residential,Chosen Care Ltd  Citibase Watford,4995.72, 14-Feb-2017,
613,Revenue,CAHD,Jointly Funded H&SC Packages,Permanent Residential,Chosen Care Ltd  Citibase Watford,4995.68, 14-Feb-2017,
614,Revenue,CAHD,18-25 Year Olds,Permanent Residential,Chosen Care Ltd  Citibase Watford,5995.48, 14-Feb-2017,
615,Revenue,CAHD,Bed Purchasing - Southmead Hospital,Permanent Nursing,Churchill Property Services,2221.04, 14-Feb-2017,
616,Revenue,CAHD,Learning Difficulties,Other Supplies & Services,Circadian Trust,762.00, 03-Feb-2017,
617,Revenue,CAHD,Learning Difficulties,Other Supplies & Services,Circadian Trust,508.00, 23-Feb-2017,
618,Revenue,CAHD,Post 16 High Needs Placements,Other Private Contractors,City of Bristol College,61667.67, 08-Feb-2017,
619,Revenue,CAHD,Post 16 High Needs Placements,Other Private Contractors,City of Bristol College,61667.67, 16-Feb-2017,
620,Revenue,CAHD,Bed Purchasing - South,Permanent Residential,Cleeve Lodge,1196.28, 14-Feb-2017,
621,Revenue,CAHD,Bed Purchasing - South,Permanent Residential,Cleeve Lodge,2331.28, 14-Feb-2017,
622,Revenue,CAHD,Bed Purchasing - North,Respite Planned - Residential,Cleeve Lodge,1350.00, 14-Feb-2017,
623,Revenue,CAHD,Bed Purchasing - South,Permanent Residential,Cleeve Lodge,2493.44, 14-Feb-2017,
624,Revenue,CAHD,Bed Purchasing - South,Permanent Residential,Cleeve Lodge,2454.84, 14-Feb-2017,
625,Revenue,CAHD,"Education, Learning and Skills",Catering,Cleve Rugby Football Club Limited,349.58, 15-Feb-2017,
626,Revenue,CAHD,"Education, Learning and Skills",Premises Hire,Cleve Rugby Football Club Limited,265.00, 15-Feb-2017,
627,Revenue,CAHD,"Education, Learning and Skills",Catering,Cleve Rugby Football Club Limited,472.50, 24-Feb-2017,
628,Revenue,CAHD,"Education, Learning and Skills",Premises Hire,Cleve Rugby Football Club Limited,216.66, 24-Feb-2017,
629,Revenue,CAHD,Youth Centres South Locality,Other Supplies & Services,Climbing Wall Solutions,500.00, 17-Feb-2017,
630,Revenue,CAHD,NHS Health Checks & Tobacco Control,Drugs & Medical Supplies,Close Farm Surgery,670.00, 14-Feb-2017,
631,Revenue,CAHD,Sexual Health,Other Small Contracts,Close Farm Surgery,846.54, 20-Feb-2017,
632,Revenue,CAHD,CSC - Vinney Green Secure Unit,Premises Maintenance by Contractor,Co Channel Electronics Limited,1047.50, 23-Feb-2017,
633,Revenue,CAHD,Grange School Holding Account,Other Supplies & Services,Coachwise Limited,1185.88, 03-Feb-2017,
634,Revenue,CAHD,Bed Purchasing - South,Permanent Residential,Collingwood Residential Home,2120.40, 14-Feb-2017,
635,Revenue,CAHD,Bed Purchasing - Southmead Hospital,Respite Planned - Residential,Collingwood Residential Home,911.43, 14-Feb-2017,
636,Revenue,CAHD,Bed Purchasing - South,Fees & Charges Income - General,Collingwood Residential Home,14210.71, 14-Feb-2017,
637,Revenue,CAHD,Bed Purchasing - South,Fees & Charges Income - General,Collingwood Residential Home,6510.50, 14-Feb-2017,
638,Revenue,CAHD,Bed Purchasing - South,Permanent Residential,Collingwood Residential Home,2300.00, 14-Feb-2017,
639,Revenue,CAHD,Bed Purchasing - South,Permanent Residential,Collingwood Residential Home,21028.57, 14-Feb-2017,
640,Revenue,CAHD,Bed Purchasing - Southmead Hospital,Permanent Residential,Collingwood Residential Home,2320.00, 14-Feb-2017,
641,Revenue,CAHD,Bed Purchasing - South,Permanent Residential,Collingwood Residential Home,2120.40, 14-Feb-2017,
642,Revenue,CAHD,Home Care - Elderly - South,Day Care / Social Activities,Collingwood Residential Home,553.44, 14-Feb-2017,
643,Revenue,CAHD,Bed Purchasing - South,Permanent Residential,Collingwood Residential Home,1957.44, 14-Feb-2017,
644,Revenue,CAHD,Bed Purchasing - South,Permanent Nursing,Community Integrated Care,1877.56, 14-Feb-2017,
645,Revenue,CAHD,Sexual Health,Other Small Contracts,Concord Medical Centre,3014.50, 20-Feb-2017,
646,Revenue,CAHD,Sexual Health,Other Small Contracts,Coniston Medical Practice,732.98, 20-Feb-2017,
647,Revenue,CAHD,Bed and Breakfast,Bed & Breakfast,Connolly & Callaghan Limited,791.00, 21-Feb-2017,
648,Revenue,CAHD,Bed and Breakfast,Bed & Breakfast,Connolly & Callaghan Limited,476.00, 21-Feb-2017,
649,Revenue,CAHD,Bed and Breakfast,Bed & Breakfast,Connolly & Callaghan Limited,441.00, 21-Feb-2017,
650,Revenue,CAHD,Bed and Breakfast,Bed & Breakfast,Connolly & Callaghan Limited,441.00, 01-Feb-2017,
651,Revenue,CAHD,Bed and Breakfast,Bed & Breakfast,Connolly & Callaghan Limited,476.00, 01-Feb-2017,
652,Revenue,CAHD,Bed and Breakfast,Bed & Breakfast,Connolly & Callaghan Limited,476.00, 01-Feb-2017,
653,Revenue,CAHD,Bed and Breakfast,Bed & Breakfast,Connolly & Callaghan Limited,476.00, 21-Feb-2017,
654,Revenue,CAHD,Bed and Breakfast,Bed & Breakfast,Connolly & Callaghan Limited,546.00, 01-Feb-2017,
655,Revenue,CAHD,Bed and Breakfast,Bed & Breakfast,Connolly & Callaghan Limited,616.00, 01-Feb-2017,
656,Revenue,CAHD,Bed and Breakfast,Bed & Breakfast,Connolly & Callaghan Limited,616.00, 01-Feb-2017,
657,Revenue,CAHD,Bed and Breakfast,Bed & Breakfast,Connolly & Callaghan Limited,476.00, 01-Feb-2017,
658,Revenue,CAHD,Bed and Breakfast,Bed & Breakfast,Connolly & Callaghan Limited,476.00, 01-Feb-2017,
659,Revenue,CAHD,Bed and Breakfast,Bed & Breakfast,Connolly & Callaghan Limited,546.00, 01-Feb-2017,
660,Revenue,CAHD,Bed and Breakfast,Bed & Breakfast,Connolly & Callaghan Limited,686.00, 01-Feb-2017,
661,Revenue,CAHD,Bed and Breakfast,Bed & Breakfast,Connolly & Callaghan Limited,791.00, 01-Feb-2017,
662,Revenue,CAHD,Bed and Breakfast,Bed & Breakfast,Connolly & Callaghan Limited,616.00, 07-Feb-2017,
663,Revenue,CAHD,Bed and Breakfast,Bed & Breakfast,Connolly & Callaghan Limited,441.00, 07-Feb-2017,
664,Revenue,CAHD,Bed and Breakfast,Bed & Breakfast,Connolly & Callaghan Limited,476.00, 07-Feb-2017,
665,Revenue,CAHD,Bed and Breakfast,Bed & Breakfast,Connolly & Callaghan Limited,476.00, 07-Feb-2017,
666,Revenue,CAHD,Bed and Breakfast,Bed & Breakfast,Connolly & Callaghan Limited,546.00, 06-Feb-2017,
667,Revenue,CAHD,Bed and Breakfast,Bed & Breakfast,Connolly & Callaghan Limited,476.00, 07-Feb-2017,
668,Revenue,CAHD,Bed and Breakfast,Bed & Breakfast,Connolly & Callaghan Limited,546.00, 07-Feb-2017,
669,Revenue,CAHD,Tenancy Start Up Scheme,Other Supplies & Services,Connolly & Callaghan Limited,616.00, 07-Feb-2017,
670,Revenue,CAHD,Bed and Breakfast,Bed & Breakfast,Connolly & Callaghan Limited,476.00, 06-Feb-2017,
671,Revenue,CAHD,Bed and Breakfast,Bed & Breakfast,Connolly & Callaghan Limited,616.00, 07-Feb-2017,
672,Revenue,CAHD,Bed and Breakfast,Bed & Breakfast,Connolly & Callaghan Limited,476.00, 07-Feb-2017,
673,Revenue,CAHD,Bed and Breakfast,Bed & Breakfast,Connolly & Callaghan Limited,546.00, 07-Feb-2017,
674,Revenue,CAHD,Bed and Breakfast,Bed & Breakfast,Connolly & Callaghan Limited,791.00, 07-Feb-2017,
675,Revenue,CAHD,Bed and Breakfast,Bed & Breakfast,Connolly & Callaghan Limited,616.00, 10-Feb-2017,
676,Revenue,CAHD,Bed and Breakfast,Bed & Breakfast,Connolly & Callaghan Limited,441.00, 10-Feb-2017,
677,Revenue,CAHD,Bed and Breakfast,Bed & Breakfast,Connolly & Callaghan Limited,476.00, 10-Feb-2017,
678,Revenue,CAHD,Bed and Breakfast,Bed & Breakfast,Connolly & Callaghan Limited,476.00, 10-Feb-2017,
679,Revenue,CAHD,Bed and Breakfast,Bed & Breakfast,Connolly & Callaghan Limited,476.00, 14-Feb-2017,
680,Revenue,CAHD,Bed and Breakfast,Bed & Breakfast,Connolly & Callaghan Limited,546.00, 10-Feb-2017,
681,Revenue,CAHD,Tenancy Start Up Scheme,Other Supplies & Services,Connolly & Callaghan Limited,616.00, 10-Feb-2017,
682,Revenue,CAHD,Bed and Breakfast,Bed & Breakfast,Connolly & Callaghan Limited,476.00, 10-Feb-2017,
683,Revenue,CAHD,Bed and Breakfast,Bed & Breakfast,Connolly & Callaghan Limited,616.00, 10-Feb-2017,
684,Revenue,CAHD,Bed and Breakfast,Bed & Breakfast,Connolly & Callaghan Limited,476.00, 10-Feb-2017,
685,Revenue,CAHD,Bed and Breakfast,Bed & Breakfast,Connolly & Callaghan Limited,791.00, 10-Feb-2017,
686,Revenue,CAHD,Bed and Breakfast,Bed & Breakfast,Connolly & Callaghan Limited,616.00, 20-Feb-2017,
687,Revenue,CAHD,Bed and Breakfast,Bed & Breakfast,Connolly & Callaghan Limited,476.00, 23-Feb-2017,
688,Revenue,CAHD,Bed and Breakfast,Bed & Breakfast,Connolly & Callaghan Limited,476.00, 20-Feb-2017,
689,Revenue,CAHD,Bed and Breakfast,Bed & Breakfast,Connolly & Callaghan Limited,546.00, 20-Feb-2017,
690,Revenue,CAHD,Tenancy Start Up Scheme,Other Supplies & Services,Connolly & Callaghan Limited,616.00, 20-Feb-2017,
691,Revenue,CAHD,Bed and Breakfast,Bed & Breakfast,Connolly & Callaghan Limited,476.00, 20-Feb-2017,
692,Revenue,CAHD,Bed and Breakfast,Bed & Breakfast,Connolly & Callaghan Limited,616.00, 20-Feb-2017,
693,Revenue,CAHD,Bed and Breakfast,Bed & Breakfast,Connolly & Callaghan Limited,616.00, 28-Feb-2017,
694,Revenue,CAHD,Bed and Breakfast,Bed & Breakfast,Connolly & Callaghan Limited,476.00, 28-Feb-2017,
695,Revenue,CAHD,Bed and Breakfast,Bed & Breakfast,Connolly & Callaghan Limited,476.00, 28-Feb-2017,
696,Revenue,CAHD,Bed and Breakfast,Bed & Breakfast,Connolly & Callaghan Limited,546.00, 28-Feb-2017,
697,Revenue,CAHD,Bed and Breakfast,Bed & Breakfast,Connolly & Callaghan Limited,511.00, 28-Feb-2017,
698,Revenue,CAHD,Bed and Breakfast,Bed & Breakfast,Connolly & Callaghan Limited,616.00, 28-Feb-2017,
699,Revenue,CAHD,Bed and Breakfast,Bed & Breakfast,Connolly & Callaghan Limited,476.00, 28-Feb-2017,
700,Revenue,CAHD,Sexual Health,Other Small Contracts,Courtside Surgery,2302.16, 20-Feb-2017,
701,Revenue,CAHD,Mental Health and Emotional Wellbeing,Project Funding,CPTPC Ltd,12950.00, 10-Feb-2017,
702,Revenue,CAHD,Bed Purchasing - S28A - Over 65- North,Permanent Residential,Cream Ii Ltd  Longrun House,8765.56, 14-Feb-2017,
703,Revenue,CAHD,Bed Purchasing - South,Permanent Residential,Cream Ii Ltd  Longrun House,3083.64, 14-Feb-2017,
704,Revenue,CAHD,Jointly Funded H&SC Packages,Permanent Residential,Cream Ii Ltd  Longrun House,2683.04, 14-Feb-2017,
705,Revenue,CAHD,Bed purchasing -S28A  Under 65 - North,Permanent Residential,Creedy Court,10026.24, 14-Feb-2017,
706,Revenue,CAHD,Bed Purchasing - S28A - Over 65- North,Permanent Residential,Creedy Court,8424.52, 14-Feb-2017,
707,Revenue,CAHD,Bed Purchasing - North,Permanent Residential,Creedy Court,13295.84, 14-Feb-2017,
708,Revenue,CAHD,CSC - Residential Placements,Permanent Residential,Crossways Care Limited,18449.43, 14-Feb-2017,
709,Revenue,CAHD,TSG Practice Placements,Training Expenses,Cruidin Training and Consultancy Ltd,2101.45, 01-Feb-2017,
710,Revenue,CAHD,Bed Purchasing - South,Permanent Residential,Daneswood,11606.96, 14-Feb-2017,
711,Revenue,CAHD,Home Care - Elderly - South,Day Care / Social Activities,Daneswood,1337.28, 14-Feb-2017,
712,Revenue,CAHD,Bed Purchasing - North,Permanent Residential,Daneswood,9710.32, 14-Feb-2017,
713,Revenue,CAHD,Bed Purchasing - Elderly S117- North,Permanent Nursing,Danshell Healthcare Group,10285.72, 14-Feb-2017,
714,Revenue,CAHD,Jointly Funded H&SC Packages,Permanent Nursing,Danshell Healthcare Group,1526.28, 14-Feb-2017,
715,Revenue,CAHD,Learning Difficulties PSL,Other Supplies & Services,Individual,2105.50, 22-Feb-2017,
716,Revenue,CAHD,Home Care - Elderly - South,Supported Living,Design House,2711.04, 14-Feb-2017,
717,Revenue,CAHD,Home Care - Elderly - South,Supported Living,Design House,2898.08, 14-Feb-2017,
718,Revenue,CAHD,Home Care - Elderly - South,Supported Living,Design House,2964.08, 14-Feb-2017,
719,Revenue,CAHD,Home Care - Elderly - South,Supported Living,Design House,2832.08, 14-Feb-2017,
720,Revenue,CAHD,Home Care - Elderly - South,Supported Living,Design House,2496.52, 14-Feb-2017,
721,Revenue,CAHD,Home Care - Elderly - South,Supported Living,Design House,2496.52, 14-Feb-2017,
722,Revenue,CAHD,Home Care - Elderly - South,Supported Living,Design House,1838.64, 14-Feb-2017,
723,Revenue,CAHD,Home Care - Elderly - South,Supported Living,Design House,1794.40, 14-Feb-2017,
724,Revenue,CAHD,Home Care - Elderly - South,Supported Living,Design House,2381.04, 14-Feb-2017,
725,Revenue,CAHD,Home Care - Elderly - South,Supported Living,Design House,3852.08, 14-Feb-2017,
726,Revenue,CAHD,Home Care - Elderly - South,Supported Living,Design House,2889.80, 14-Feb-2017,
727,Revenue,CAHD,Home Care - Elderly - South,Supported Living,Design House,2744.04, 14-Feb-2017,
728,Revenue,CAHD,Home Care - Elderly - South,Supported Living,Design House,2793.56, 14-Feb-2017,
729,Revenue,CAHD,Home Care - Elderly - South,Supported Living,Design House,2135.92, 14-Feb-2017,
730,Revenue,CAHD,Home Care - Elderly - South,Supported Living,Design House,1794.40, 14-Feb-2017,
731,Revenue,CAHD,Home Care - Elderly - South,Supported Living,Design House,2135.92, 14-Feb-2017,
732,Revenue,CAHD,Bed Purchasing - South,Permanent Residential,Devon & Cornwall Autistic Community Trus,9403.80, 14-Feb-2017,
733,Revenue,CAHD,Bed Purchasing - South,Permanent Residential,Dimensions  Suite 2,5327.04, 14-Feb-2017,
734,Revenue,CAHD,CSC - Section 17 SOUTH,Other Supplies & Services,DNA Worldwide Group,500.00, 15-Feb-2017,
735,Revenue,CAHD,Home Care - Elderly - South,Day Care / Social Activities,DoCare Ltd,71.40, 21-Feb-2017,
736,Revenue,CAHD,Home Care - Elderly - South,Other Small Contracts,DoCare Ltd,828.10, 21-Feb-2017,
737,Revenue,CAHD,Home Care - Elderly - North,Other Small Contracts,DoCare Ltd,6822.40, 21-Feb-2017,
738,Revenue,CAHD,Home Care - Elderly - South,Day Care / Social Activities,DoCare Ltd,61.20, 21-Feb-2017,
739,Revenue,CAHD,Home Care - Elderly - South,Other Small Contracts,DoCare Ltd,812.80, 21-Feb-2017,
740,Revenue,CAHD,Home Care - Elderly - North,Other Small Contracts,DoCare Ltd,6637.80, 21-Feb-2017,
741,Revenue,CAHD,Home Care - Elderly - South,Day Care / Social Activities,DoCare Ltd,71.40, 21-Feb-2017,
742,Revenue,CAHD,Home Care - Elderly - South,Other Small Contracts,DoCare Ltd,792.40, 21-Feb-2017,
743,Revenue,CAHD,Home Care - Elderly - North,Other Small Contracts,DoCare Ltd,6311.90, 21-Feb-2017,
744,Revenue,CAHD,Home Care - Elderly - South,Day Care / Social Activities,DoCare Ltd,86.70, 21-Feb-2017,
745,Revenue,CAHD,Home Care - Elderly - South,Other Small Contracts,DoCare Ltd,843.40, 21-Feb-2017,
746,Revenue,CAHD,Home Care - Elderly - North,Other Small Contracts,DoCare Ltd,6751.20, 21-Feb-2017,
747,Revenue,CAHD,Tenancy Start Up Scheme,Other Supplies & Services,Dovetail Properties,1768.00, 07-Feb-2017,
748,Revenue,CAHD,Statemented Support Academies,Schools Funding,Downend School,583.30, 28-Feb-2017,
749,Revenue,CAHD,Statemented Support Academies,Schools Funding,Downend School,983.30, 28-Feb-2017,
750,Revenue,CAHD,Statemented Support Academies,Schools Funding,Downend School,574.97, 28-Feb-2017,
751,Revenue,CAHD,Statemented Support Academies,Schools Funding,Downend School,591.64, 28-Feb-2017,
752,Revenue,CAHD,Statemented Support Academies,Schools Funding,Downend School,1008.30, 28-Feb-2017,
753,Revenue,CAHD,Statemented Support Academies,Schools Funding,Downend School,666.64, 28-Feb-2017,
754,Revenue,CAHD,Statemented Support Academies,Schools Funding,Downend School,583.30, 28-Feb-2017,
755,Revenue,CAHD,Statemented Support Academies,Schools Funding,Downend School,583.30, 28-Feb-2017,
756,Revenue,CAHD,Statemented Support Academies,Other Public Bodies,Downend School,5162.50, 06-Feb-2017,
757,Revenue,CAHD,Social Lettings Agency,Other Supplies & Services,Individual,605.64, 24-Feb-2017,
758,Revenue,CAHD,Bed Purchasing - North,Permanent Nursing,Drakes Court,2259.56, 14-Feb-2017,
759,Revenue,CAHD,South Glos Users in South Glos Homes,Permanent Nursing,Drakes Court,625.00, 14-Feb-2017,
760,Revenue,CAHD,South Glos Users in South Glos Homes,Permanent Nursing,Drakes Court,625.00, 14-Feb-2017,
761,Revenue,CAHD,South Glos Users in South Glos Homes,Permanent Nursing,Drakes Court,625.00, 14-Feb-2017,
762,Revenue,CAHD,Bed Purchasing - Southmead Hospital,Permanent Nursing,Drakes Court,1966.72, 14-Feb-2017,
763,Revenue,CAHD,South Glos Users in South Glos Homes,Permanent Nursing,Drakes Court,625.00, 14-Feb-2017,
764,Revenue,CAHD,Bed Purchasing - Southmead Hospital,Permanent Nursing,Drakes Court,1888.64, 14-Feb-2017,
765,Revenue,CAHD,South Glos Users in South Glos Homes,Permanent Nursing,Drakes Court,625.00, 14-Feb-2017,
766,Revenue,CAHD,South Glos Users in South Glos Homes,Permanent Nursing,Drakes Court,625.00, 14-Feb-2017,
767,Revenue,CAHD,South Glos Users in South Glos Homes,Permanent Nursing,Drakes Court,625.00, 14-Feb-2017,
768,Revenue,CAHD,Bed Purchasing - North,Respite Planned - Nursing,Drakes Court,2700.00, 14-Feb-2017,
769,Revenue,CAHD,South Glos Users in South Glos Homes,Permanent Nursing,Drakes Court,625.00, 14-Feb-2017,
770,Revenue,CAHD,South Glos Users in South Glos Homes,Permanent Nursing,Drakes Court,625.00, 14-Feb-2017,
771,Revenue,CAHD,Bed Purchasing - North,Permanent Nursing,Drakes Court,1888.64, 14-Feb-2017,
772,Revenue,CAHD,Bed Purchasing - Southmead Hospital,Permanent Nursing,Drakes Court,1888.64, 14-Feb-2017,
773,Revenue,CAHD,South Glos Users in South Glos Homes,Permanent Nursing,Drakes Court,625.00, 14-Feb-2017,
774,Revenue,CAHD,Bed Purchasing - North,Permanent Residential,Drakes Court,1831.32, 14-Feb-2017,
775,Revenue,CAHD,Bed Purchasing - North,Permanent Nursing,Drakes Court,2254.00, 14-Feb-2017,
776,Revenue,CAHD,South Glos Users in South Glos Homes,Permanent Nursing,Drakes Court,625.00, 14-Feb-2017,
777,Revenue,CAHD,Bed Purchasing - North,Permanent Nursing,Drakes Court,1300.00, 14-Feb-2017,
778,Revenue,CAHD,South Glos Users in South Glos Homes,Permanent Nursing,Drakes Court,625.00, 14-Feb-2017,
779,Revenue,CAHD,South Glos Users in South Glos Homes,Permanent Nursing,Drakes Court,625.00, 14-Feb-2017,
780,Revenue,CAHD,South Glos Users in South Glos Homes,Permanent Nursing,Drakes Court,625.00, 14-Feb-2017,
781,Revenue,CAHD,MH Purchasing - Younger,Permanent Residential,Dunraven House,2243.80, 14-Feb-2017,
782,Revenue,CAHD,Bed and Breakfast,Bed & Breakfast,E J Bartlett,490.00, 01-Feb-2017,
783,Revenue,CAHD,Bed and Breakfast,Bed & Breakfast,E J Bartlett,490.00, 07-Feb-2017,
784,Revenue,CAHD,Bed and Breakfast,Bed & Breakfast,E J Bartlett,490.00, 14-Feb-2017,
785,Revenue,CAHD,Bed and Breakfast,Bed & Breakfast,E J Bartlett,490.00, 21-Feb-2017,
786,Revenue,CAHD,Bed and Breakfast,Bed & Breakfast,E J Bartlett,434.00, 21-Feb-2017,
787,Revenue,CAHD,Bed and Breakfast,Bed & Breakfast,E J Bartlett,490.00, 28-Feb-2017,
788,Revenue,CAHD,Bed and Breakfast,Bed & Breakfast,E J Bartlett,434.00, 28-Feb-2017,
789,Revenue,CAHD,Bed Purchasing - North,Permanent Residential,East Court,2614.48, 14-Feb-2017,
790,Revenue,CAHD,Home Care - Elderly - South,Day Care / Social Activities,Easton Community Centre,533.28, 14-Feb-2017,
791,Revenue,CAHD,Home Care - Elderly - South,Day Care / Social Activities,Easton Community Centre,533.28, 14-Feb-2017,
792,Revenue,CAHD,Home Care - Elderly - North,Day Care / Social Activities,Easton Community Centre,533.28, 14-Feb-2017,
793,Revenue,CAHD,Bed Purchasing - North,Permanent Residential,Edgecumbe Lodge,2260.00, 14-Feb-2017,
794,Revenue,CAHD,Bed Purchasing - South,Respite Emergency - Residential,Edgecumbe Lodge,4714.29, 14-Feb-2017,
795,Revenue,CAHD,Bed Purchasing - Southmead Hospital,Permanent Residential,Edgecumbe Lodge,1831.32, 14-Feb-2017,
796,Revenue,CAHD,Bed Purchasing - South,Permanent Residential,Edgecumbe Lodge,2101.44, 14-Feb-2017,
797,Revenue,CAHD,Bed Purchasing - South,Permanent Residential,Edgecumbe Lodge,2128.56, 14-Feb-2017,
798,Revenue,CAHD,Bed Purchasing - North,Permanent Residential,Edgecumbe Lodge,2290.72, 14-Feb-2017,
799,Revenue,CAHD,Bed Purchasing - South,Permanent Residential,Edgecumbe Lodge,2128.56, 14-Feb-2017,
800,Revenue,CAHD,Bed Purchasing - South,Permanent Residential,Edgecumbe Lodge,2400.00, 14-Feb-2017,
801,Revenue,CAHD,Bed Purchasing - Southmead Hospital,Permanent Residential,Edgecumbe Lodge,2400.00, 14-Feb-2017,
802,Revenue,CAHD,Bed Purchasing - North,Permanent Residential,Edgecumbe Lodge,2128.56, 14-Feb-2017,
803,Revenue,CAHD,Bed Purchasing - Southmead Hospital,Permanent Residential,Edgemont House Ltd,11357.14, 14-Feb-2017,
804,Revenue,CAHD,Bed Purchasing - Southmead Hospital,Permanent Residential,Edgemont House Ltd,857.14, 14-Feb-2017,
805,Revenue,CAHD,Bed Purchasing - Southmead Hospital,Fees & Charges Income - General,Edgemont House Ltd,3977.39, 14-Feb-2017,
806,Revenue,CAHD,Bed Purchasing - South,Permanent Residential,Edgemont House Ltd,2200.00, 14-Feb-2017,
807,Revenue,CAHD,Bed Purchasing - Southmead Hospital,Permanent Residential,Edgemont House Ltd,1824.48, 14-Feb-2017,
808,Revenue,CAHD,Bed Purchasing - South,Permanent Residential,Edgemont House Ltd,2160.00, 14-Feb-2017,
809,Revenue,CAHD,Bed Purchasing - Southmead Hospital,Respite Planned - Residential,Edgemont House Ltd,1822.86, 14-Feb-2017,
810,Revenue,CAHD,Bed Purchasing - South,Permanent Residential,Edgemont House Ltd,1954.68, 14-Feb-2017,
811,Revenue,CAHD,Bed Purchasing - South,Respite Planned - Residential,Edgemont House Ltd,994.29, 14-Feb-2017,
812,Revenue,CAHD,South Glos Users in South Glos Homes,Permanent Nursing,Edgemont View Nursing Home,625.00, 14-Feb-2017,
813,Revenue,CAHD,South Glos Users in South Glos Homes,Permanent Nursing,Edgemont View Nursing Home,625.00, 14-Feb-2017,
814,Revenue,CAHD,South Glos Users in South Glos Homes,Permanent Nursing,Edgemont View Nursing Home,625.00, 14-Feb-2017,
815,Revenue,CAHD,South Glos Users in South Glos Homes,Permanent Nursing,Edgemont View Nursing Home,625.00, 14-Feb-2017,
816,Revenue,CAHD,Bed Purchasing - South,Permanent Nursing,Edgemont View Nursing Home,2880.00, 14-Feb-2017,
817,Revenue,CAHD,South Glos Users in South Glos Homes,Permanent Nursing,Edgemont View Nursing Home,625.00, 14-Feb-2017,
818,Revenue,CAHD,South Glos Users in South Glos Homes,Permanent Nursing,Edgemont View Nursing Home,625.00, 14-Feb-2017,
819,Revenue,CAHD,South Glos Users in South Glos Homes,Permanent Nursing,Edgemont View Nursing Home,625.00, 14-Feb-2017,
820,Revenue,CAHD,South Glos Users in South Glos Homes,Permanent Nursing,Edgemont View Nursing Home,625.00, 14-Feb-2017,
821,Revenue,CAHD,South Glos Users in South Glos Homes,Permanent Nursing,Edgemont View Nursing Home,625.00, 14-Feb-2017,
822,Revenue,CAHD,Bed Purchasing - South,Permanent Nursing,Edgemont View Nursing Home,2299.08, 14-Feb-2017,
823,Revenue,CAHD,South Glos Users in South Glos Homes,Permanent Nursing,Edgemont View Nursing Home,625.00, 14-Feb-2017,
824,Revenue,CAHD,Bed Purchasing - South,Permanent Nursing,Edgemont View Nursing Home,2182.88, 14-Feb-2017,
825,Revenue,CAHD,South Glos Users in South Glos Homes,Permanent Nursing,Edgemont View Nursing Home,625.00, 14-Feb-2017,
826,Revenue,CAHD,South Glos Users in South Glos Homes,Permanent Nursing,Edgemont View Nursing Home,625.00, 14-Feb-2017,
827,Revenue,CAHD,South Glos Users in South Glos Homes,Permanent Nursing,Edgemont View Nursing Home,625.00, 14-Feb-2017,
828,Revenue,CAHD,South Glos Users in South Glos Homes,Permanent Nursing,Edgemont View Nursing Home,625.00, 14-Feb-2017,
829,Revenue,CAHD,South Glos Users in South Glos Homes,Permanent Nursing,Edgemont View Nursing Home,625.00, 14-Feb-2017,
830,Revenue,CAHD,Bed Purchasing - Southmead Hospital,Permanent Nursing,Edgemont View Nursing Home,2880.00, 14-Feb-2017,
831,Revenue,CAHD,South Glos Users in South Glos Homes,Permanent Nursing,Edgemont View Nursing Home,625.00, 14-Feb-2017,
832,Revenue,CAHD,Planning and Partnerships Procurement,Other Supplies & Services,Eldercare,3043.29, 02-Feb-2017,
833,Revenue,CAHD,Supporting People Programme,Grants to Voluntary Bodies,Elim Housing Association Limited,5139.16, 01-Feb-2017,
834,Revenue,CAHD,Home Care - Elderly - South,Day Care / Social Activities,Elite Home Care Ltd,183.68, 01-Feb-2017,
835,Revenue,CAHD,Home Care - Elderly - South,Other Small Contracts,Elite Home Care Ltd,6708.14, 01-Feb-2017,
836,Revenue,CAHD,Home Care - Elderly - North,Other Small Contracts,Elite Home Care Ltd,107.52, 01-Feb-2017,
837,Revenue,CAHD,Home Care - Elderly - South,Day Care / Social Activities,Elite Home Care Ltd,183.68, 01-Feb-2017,
838,Revenue,CAHD,Home Care - Elderly - South,Other Small Contracts,Elite Home Care Ltd,6597.14, 01-Feb-2017,
839,Revenue,CAHD,Home Care - Elderly - North,Other Small Contracts,Elite Home Care Ltd,107.52, 01-Feb-2017,
840,Revenue,CAHD,Home Care - Elderly - South,Day Care / Social Activities,Elite Home Care Ltd,179.20, 14-Feb-2017,
841,Revenue,CAHD,Home Care - Elderly - South,Other Small Contracts,Elite Home Care Ltd,6753.94, 14-Feb-2017,
842,Revenue,CAHD,Home Care - Elderly - North,Other Small Contracts,Elite Home Care Ltd,107.52, 14-Feb-2017,
843,Revenue,CAHD,Home Care - Elderly - South,Day Care / Social Activities,Elite Home Care Ltd,214.43, 14-Feb-2017,
844,Revenue,CAHD,Home Care - Elderly - South,Other Small Contracts,Elite Home Care Ltd,8860.08, 14-Feb-2017,
845,Revenue,CAHD,Home Care - Elderly - North,Other Small Contracts,Elite Home Care Ltd,125.52, 14-Feb-2017,
846,Revenue,CAHD,Bed Purchasing - North,Permanent Residential,Ellen House,5864.00, 09-Feb-2017,
847,Revenue,CAHD,Bed Purchasing - North,Fees & Charges Income - General,Ellen House,-522.80, 09-Feb-2017,
848,Revenue,CAHD,Bed Purchasing - North,Permanent Residential,Ellen House,5864.00, 14-Feb-2017,
849,Revenue,CAHD,Sexual Health,Other Small Contracts,Emersons Green Medical Centre,1042.70, 20-Feb-2017,
850,Revenue,CAHD,Bed Purchasing - North,Permanent Residential,Epworth House,2762.20, 14-Feb-2017,
851,Revenue,CAHD,Information Systems - Software,Software Support & Maintenance,Esteem Systems Plc,14497.96, 22-Feb-2017,
852,Revenue,CAHD,Home Care - Elderly - South,Other Small Contracts,Everycare (Bristol) Ltd,2532.66, 14-Feb-2017,
853,Revenue,CAHD,Home Care - Elderly - North,Other Small Contracts,Everycare (Bristol) Ltd,1984.58, 14-Feb-2017,
854,Revenue,CAHD,Home Care - Elderly - South,Other Small Contracts,Everycare (Bristol) Ltd,2360.28, 14-Feb-2017,
855,Revenue,CAHD,Home Care - Elderly - North,Other Small Contracts,Everycare (Bristol) Ltd,1971.32, 14-Feb-2017,
856,Revenue,CAHD,Learning Difficulties Development Fund,Other Supplies & Services,FACE,1375.00, 28-Feb-2017,
857,Revenue,CAHD,South Glos Users in South Glos Homes,Permanent Nursing,Fairview Court,625.00, 14-Feb-2017,
858,Revenue,CAHD,South Glos Users in South Glos Homes,Permanent Nursing,Fairview Court,625.00, 14-Feb-2017,
859,Revenue,CAHD,Bed Purchasing - South,Permanent Nursing,Fairview Court,2992.16, 14-Feb-2017,
860,Revenue,CAHD,South Glos Users in South Glos Homes,Permanent Nursing,Fairview Court,625.00, 14-Feb-2017,
861,Revenue,CAHD,Bed Purchasing - Southmead Hospital,Permanent Nursing,Fairview Court,2824.08, 14-Feb-2017,
862,Revenue,CAHD,South Glos Users in South Glos Homes,Permanent Nursing,Fairview Court,625.00, 14-Feb-2017,
863,Revenue,CAHD,Bed Purchasing - Southmead Hospital,Permanent Nursing,Fairview Court,3200.00, 14-Feb-2017,
864,Revenue,CAHD,South Glos Users in South Glos Homes,Permanent Nursing,Fairview Court,625.00, 14-Feb-2017,
865,Revenue,CAHD,South Glos Users in South Glos Homes,Permanent Nursing,Fairview Court,625.00, 14-Feb-2017,
866,Revenue,CAHD,South Glos Users in South Glos Homes,Permanent Nursing,Fairview Court,625.00, 14-Feb-2017,
867,Revenue,CAHD,Bed Purchasing - Southmead Hospital,Permanent Nursing,Fairview Court,2992.16, 14-Feb-2017,
868,Revenue,CAHD,South Glos Users in South Glos Homes,Permanent Nursing,Fairview Court,625.00, 14-Feb-2017,
869,Revenue,CAHD,Bed Purchasing - South,Permanent Nursing,Fairview Court,2417.68, 14-Feb-2017,
870,Revenue,CAHD,South Glos Users in South Glos Homes,Permanent Nursing,Fairview Court,625.00, 14-Feb-2017,
871,Revenue,CAHD,Bed purchasing - Elderly S117 - South,Permanent Nursing,Fairview Court,2947.08, 14-Feb-2017,
872,Revenue,CAHD,South Glos Users in South Glos Homes,Permanent Nursing,Fairview Court,625.00, 14-Feb-2017,
873,Revenue,CAHD,Bed Purchasing - South,Permanent Nursing,Fairview Court,2417.68, 14-Feb-2017,
874,Revenue,CAHD,South Glos Users in South Glos Homes,Permanent Nursing,Fairview Court,625.00, 14-Feb-2017,
875,Revenue,CAHD,Bed Purchasing - South,Fees & Charges Income - General,Fairview Court,854.76, 14-Feb-2017,
876,Revenue,CAHD,South Glos Users in South Glos Homes,Permanent Nursing,Fairview Court,625.00, 14-Feb-2017,
877,Revenue,CAHD,South Glos Users in South Glos Homes,Permanent Nursing,Fairview Court,625.00, 14-Feb-2017,
878,Revenue,CAHD,Bed Purchasing - South,Permanent Nursing,Fairview Court,3200.00, 14-Feb-2017,
879,Revenue,CAHD,South Glos Users in South Glos Homes,Permanent Nursing,Fairview Court,625.00, 14-Feb-2017,
880,Revenue,CAHD,South Glos Users in South Glos Homes,Permanent Nursing,Fairview Court,625.00, 14-Feb-2017,
881,Revenue,CAHD,South Glos Users in South Glos Homes,Permanent Nursing,Fairview Court,625.00, 14-Feb-2017,
882,Revenue,CAHD,Bed Purchasing - South,Permanent Nursing,Fairview Court,2992.16, 14-Feb-2017,
883,Revenue,CAHD,South Glos Users in South Glos Homes,Permanent Nursing,Fairview Court,625.00, 14-Feb-2017,
884,Revenue,CAHD,Bed Purchasing - Southmead Hospital,Permanent Nursing,Fairview Court,3200.00, 14-Feb-2017,
885,Revenue,CAHD,South Glos Users in South Glos Homes,Permanent Nursing,Fairview Court,625.00, 14-Feb-2017,
886,Revenue,CAHD,South Glos Users in South Glos Homes,Permanent Nursing,Fairview Court,625.00, 14-Feb-2017,
887,Revenue,CAHD,South Glos Users in South Glos Homes,Permanent Nursing,Fairview Court,625.00, 14-Feb-2017,
888,Revenue,CAHD,South Glos Users in South Glos Homes,Permanent Nursing,Fairview Court,625.00, 14-Feb-2017,
889,Revenue,CAHD,Bed Purchasing - Southmead Hospital,Permanent Nursing,Fairview Court,1387.50, 14-Feb-2017,
890,Revenue,CAHD,Bed Purchasing - Southmead Hospital,Permanent Nursing,Fairview Court,1387.50, 14-Feb-2017,
891,Revenue,CAHD,South Glos Users in South Glos Homes,Permanent Nursing,Fairview Court,625.00, 14-Feb-2017,
892,Revenue,CAHD,South Glos Users in South Glos Homes,Permanent Nursing,Fairview Court,625.00, 14-Feb-2017,
893,Revenue,CAHD,Bed Purchasing - South,Permanent Nursing,Fairview Court,2417.68, 14-Feb-2017,
894,Revenue,CAHD,South Glos Users in South Glos Homes,Permanent Nursing,Fairview Court,625.00, 14-Feb-2017,
895,Revenue,CAHD,Bed Purchasing - Southmead Hospital,Permanent Nursing,Fairview Court,3052.00, 14-Feb-2017,
896,Revenue,CAHD,South Glos Users in South Glos Homes,Permanent Nursing,Fairview Court,625.00, 14-Feb-2017,
897,Revenue,CAHD,Bed Purchasing - North,Permanent Nursing,Fairview Court,2992.16, 14-Feb-2017,
898,Revenue,CAHD,South Glos Users in South Glos Homes,Permanent Nursing,Fairview Court,625.00, 14-Feb-2017,
899,Revenue,CAHD,Bed Purchasing - South,Permanent Nursing,Fairview Court,2574.32, 14-Feb-2017,
900,Revenue,CAHD,South Glos Users in South Glos Homes,Permanent Nursing,Fairview Court,625.00, 14-Feb-2017,
901,Revenue,CAHD,Bed Purchasing - South,Permanent Nursing,Fairview Court,2558.56, 14-Feb-2017,
902,Revenue,CAHD,South Glos Users in South Glos Homes,Permanent Nursing,Fairview Court,625.00, 14-Feb-2017,
903,Revenue,CAHD,Bed purchasing - Elderly S117 - South,Permanent Residential,Fairview House,1998.08, 14-Feb-2017,
904,Revenue,CAHD,Bed Purchasing - Southmead Hospital,Permanent Residential,Fairview House,1831.32, 14-Feb-2017,
905,Revenue,CAHD,Bed Purchasing - South,Permanent Residential,Fairview House,2067.76, 14-Feb-2017,
906,Revenue,CAHD,Bed Purchasing - South,Permanent Residential,Fairview House,1831.32, 14-Feb-2017,
907,Revenue,CAHD,Bed Purchasing - South,Permanent Residential,Fairview House,1831.32, 14-Feb-2017,
908,Revenue,CAHD,Bed Purchasing - South,Permanent Residential,Fairview House,1831.32, 14-Feb-2017,
909,Revenue,CAHD,Bed Purchasing - South,Permanent Residential,Fairview House,1831.32, 14-Feb-2017,
910,Revenue,CAHD,Bed Purchasing - South,Permanent Residential,Fairview House,1831.32, 14-Feb-2017,
911,Revenue,CAHD,Bed Purchasing - South,Permanent Residential,Fairview House,1959.36, 14-Feb-2017,
912,Revenue,CAHD,Bed Purchasing - South,Permanent Residential,Fairview House,1861.52, 14-Feb-2017,
913,Revenue,CAHD,Bed Purchasing - South,Permanent Residential,Fairview House,2090.08, 14-Feb-2017,
914,Revenue,CAHD,Bed Purchasing - Southmead Hospital,Permanent Residential,Faith House,1980.52, 14-Feb-2017,
915,Revenue,CAHD,Bed Purchasing - North,Permanent Residential,Faith House,1764.29, 14-Feb-2017,
916,Revenue,CAHD,Bed Purchasing - North,Respite Planned - Residential,Faith House,1300.00, 14-Feb-2017,
917,Revenue,CAHD,Post 16 High Needs Placements,Other Private Contractors,Farleigh FEC-Frome Priory,20590.41, 22-Feb-2017,
918,Revenue,CAHD,Post 16 High Needs Placements,Other Private Contractors,Farleigh FEC-Frome Priory,22110.77, 22-Feb-2017,
919,Revenue,CAHD,Bed Purchasing - Southmead Hospital,Permanent Nursing,Field House Care Home,2995.00, 14-Feb-2017,
920,Revenue,CAHD,Bed Purchasing - Southmead Hospital,Permanent Nursing,Field House Care Home,3300.00, 14-Feb-2017,
921,Revenue,CAHD,Bed Purchasing - Southmead Hospital,Permanent Nursing,Field House Care Home,2876.00, 14-Feb-2017,
922,Revenue,CAHD,Bed Purchasing - Southmead Hospital,Permanent Nursing,Field House Care Home,3215.12, 14-Feb-2017,
923,Revenue,CAHD,Bed Purchasing - North,Respite Emergency - Residential,Fieldview,3400.00, 14-Feb-2017,
924,Revenue,CAHD,Bed Purchasing - North,Respite Planned - Nursing,Fieldview,3157.14, 14-Feb-2017,
925,Revenue,CAHD,MH Purchasing - Younger,Permanent Nursing,Fieldview,5200.00, 14-Feb-2017,
926,Revenue,CAHD,Bed Purchasing - South,Permanent Residential,Fig House,5900.00, 14-Feb-2017,
927,Revenue,CAHD,Bed Purchasing - South,Permanent Residential,Fig House,2800.00, 14-Feb-2017,
928,Revenue,CAHD,Bed Purchasing - North,Respite Planned - Residential,Fig House,700.00, 14-Feb-2017,
929,Revenue,CAHD,Statemented Support Payments to OLAs,Other L.A.'s - General,Filton Avenue Primary School,691.64, 28-Feb-2017,
930,Revenue,CAHD,Home Care - Elderly - South,Other Small Contracts,Firstpoint Homecare Ltd,1032.92, 14-Feb-2017,
931,Revenue,CAHD,Home Care - Elderly - North,Day Care / Social Activities,Firstpoint Homecare Ltd,130.20, 14-Feb-2017,
932,Revenue,CAHD,Home Care - Elderly - North,Other Small Contracts,Firstpoint Homecare Ltd,386.26, 14-Feb-2017,
933,Revenue,CAHD,Home Care - Elderly - South,Other Small Contracts,Firstpoint Homecare Ltd,1167.46, 14-Feb-2017,
934,Revenue,CAHD,Home Care - Elderly - North,Day Care / Social Activities,Firstpoint Homecare Ltd,130.20, 14-Feb-2017,
935,Revenue,CAHD,Home Care - Elderly - North,Other Small Contracts,Firstpoint Homecare Ltd,368.90, 14-Feb-2017,
936,Revenue,CAHD,Home Care - Elderly - South,Other Small Contracts,Firstpoint Homecare Ltd,733.46, 14-Feb-2017,
937,Revenue,CAHD,Home Care - Elderly - North,Day Care / Social Activities,Firstpoint Homecare Ltd,130.20, 14-Feb-2017,
938,Revenue,CAHD,Home Care - Elderly - North,Other Small Contracts,Firstpoint Homecare Ltd,377.58, 14-Feb-2017,
939,Revenue,CAHD,Home Care - Elderly - South,Other Small Contracts,Firstpoint Homecare Ltd,763.84, 14-Feb-2017,
940,Revenue,CAHD,Home Care - Elderly - North,Day Care / Social Activities,Firstpoint Homecare Ltd,134.54, 14-Feb-2017,
941,Revenue,CAHD,Home Care - Elderly - North,Other Small Contracts,Firstpoint Homecare Ltd,373.24, 14-Feb-2017,
942,Revenue,CAHD,Home Care - Elderly - South,Other Small Contracts,Firstpoint Homecare Ltd,933.10, 14-Feb-2017,
943,Revenue,CAHD,Home Care - Elderly - North,Day Care / Social Activities,Firstpoint Homecare Ltd,130.20, 14-Feb-2017,
944,Revenue,CAHD,Home Care - Elderly - North,Other Small Contracts,Firstpoint Homecare Ltd,325.50, 14-Feb-2017,
945,Revenue,CAHD,Home Care - Elderly - South,Other Small Contracts,Firstpoint Homecare Ltd,772.52, 14-Feb-2017,
946,Revenue,CAHD,Home Care - Elderly - North,Day Care / Social Activities,Firstpoint Homecare Ltd,130.20, 14-Feb-2017,
947,Revenue,CAHD,Home Care - Elderly - North,Other Small Contracts,Firstpoint Homecare Ltd,52.08, 14-Feb-2017,
948,Revenue,CAHD,CSC - Agency Fostering,Foster Parent Allowances,Five Rivers Child Care Limited,3336.60, 10-Feb-2017,
949,Revenue,CAHD,CSC - Agency Fostering,Foster Parent Allowances,Five Rivers Child Care Limited,3336.60, 10-Feb-2017,
950,Revenue,CAHD,Training - Adult Services,Training Expenses,Focal Point UK,443.45, 15-Feb-2017,
951,Revenue,CAHD,ASSIST - Health Promotion in Schools,Other Small Contracts,Foster & Brown Research LTD,8741.25, 27-Feb-2017,
952,Revenue,CAHD,Mental Health and Emotional Wellbeing,Project Funding,Foster & Brown Research LTD,2000.00, 27-Feb-2017,
953,Revenue,CAHD,CSC - Agency Fostering,Foster Parent Allowances,Foster Care Associates Limited,2257.50, 21-Feb-2017,
954,Revenue,CAHD,CSC - Agency Fostering,Foster Parent Allowances,Foster Care Associates Limited,3998.40, 21-Feb-2017,
955,Revenue,CAHD,CSC - Agency Fostering,Foster Parent Allowances,Foster Care Associates Limited,5132.36, 21-Feb-2017,
956,Revenue,CAHD,CSC - Agency Fostering,Foster Parent Allowances,Foster Care Associates Limited,2332.75, 17-Feb-2017,
957,Revenue,CAHD,CSC - Agency Fostering,Foster Parent Allowances,Foster Care Associates Limited,4131.68, 17-Feb-2017,
958,Revenue,CAHD,CSC - Asylum Seekers - Unaccompanied,Foster Parent Allowances,Foster Care Associates Limited,3231.76, 20-Feb-2017,
959,Revenue,CAHD,Home Care - Elderly - South,Day Care / Social Activities,Fourways Care Limited,134.96, 01-Feb-2017,
960,Revenue,CAHD,Home Care - Elderly - South,Other Small Contracts,Fourways Care Limited,6586.36, 01-Feb-2017,
961,Revenue,CAHD,Home Care - Elderly - North,Other Small Contracts,Fourways Care Limited,6010.98, 01-Feb-2017,
962,Revenue,CAHD,Younger MH non-res purchasing,Other Small Contracts,Fourways Care Limited,86.76, 01-Feb-2017,
963,Revenue,CAHD,Home Care - Elderly - South,Day Care / Social Activities,Fourways Care Limited,120.50, 07-Feb-2017,
964,Revenue,CAHD,Home Care - Elderly - South,Other Small Contracts,Fourways Care Limited,6476.80, 07-Feb-2017,
965,Revenue,CAHD,Home Care - Elderly - North,Other Small Contracts,Fourways Care Limited,5646.02, 07-Feb-2017,
966,Revenue,CAHD,Younger MH non-res purchasing,Other Small Contracts,Fourways Care Limited,81.94, 07-Feb-2017,
967,Revenue,CAHD,Home Care - Elderly - South,Day Care / Social Activities,Fourways Care Limited,154.24, 14-Feb-2017,
968,Revenue,CAHD,Home Care - Elderly - South,Other Small Contracts,Fourways Care Limited,6762.72, 14-Feb-2017,
969,Revenue,CAHD,Home Care - Elderly - North,Other Small Contracts,Fourways Care Limited,5702.50, 14-Feb-2017,
970,Revenue,CAHD,Younger MH non-res purchasing,Other Small Contracts,Fourways Care Limited,57.84, 14-Feb-2017,
971,Revenue,CAHD,Post 16 High Needs Placements,Other Private Contractors,Foxes Academy,19937.67, 01-Feb-2017,
972,Revenue,CAHD,Post 16 High Needs Placements,Other Private Contractors,Foxes Academy,16534.79, 01-Feb-2017,
973,Revenue,CAHD,Post 16 High Needs Placements,Other Private Contractors,Foxes Academy,15823.89, 01-Feb-2017,
974,Revenue,CAHD,"Education, Learning and Skills",Training Expenses,Foxfield Primary School,732.00, 06-Feb-2017,
975,Revenue,CAHD,Alexandra Way,Prop.Serv. General Repairs,Frank Bowtell Limited,780.00, 16-Feb-2017,
976,Revenue,CAHD,Supporting People Programme,Grants to Voluntary Bodies,Freeways Trust Limited,7530.70, 01-Feb-2017,
977,Revenue,CAHD,Freeways,Permanent Residential,Freeways Trust Limited,3627.12, 06-Feb-2017,
978,Revenue,CAHD,Freeways,Permanent Residential,Freeways Trust Limited,2331.13, 06-Feb-2017,
979,Revenue,CAHD,Freeways,Permanent Residential,Freeways Trust Limited,2409.93, 06-Feb-2017,
980,Revenue,CAHD,Freeways,Permanent Residential,Freeways Trust Limited,3393.81, 06-Feb-2017,
981,Revenue,CAHD,Freeways,Permanent Residential,Freeways Trust Limited,2331.13, 06-Feb-2017,
982,Revenue,CAHD,Freeways,Permanent Residential,Freeways Trust Limited,3454.92, 06-Feb-2017,
983,Revenue,CAHD,Freeways,Permanent Residential,Freeways Trust Limited,2603.48, 06-Feb-2017,
984,Revenue,CAHD,Freeways,Permanent Residential,Freeways Trust Limited,3614.51, 06-Feb-2017,
985,Revenue,CAHD,Freeways,Permanent Residential,Freeways Trust Limited,2208.93, 06-Feb-2017,
986,Revenue,CAHD,Freeways,Permanent Residential,Freeways Trust Limited,2749.17, 06-Feb-2017,
987,Revenue,CAHD,Freeways,Permanent Residential,Freeways Trust Limited,3508.85, 06-Feb-2017,
988,Revenue,CAHD,Freeways,Permanent Residential,Freeways Trust Limited,3079.53, 06-Feb-2017,
989,Revenue,CAHD,Freeways,Permanent Residential,Freeways Trust Limited,2331.13, 06-Feb-2017,
990,Revenue,CAHD,Freeways,Permanent Residential,Freeways Trust Limited,1319.80, 06-Feb-2017,
991,Revenue,CAHD,Freeways,Permanent Residential,Freeways Trust Limited,14402.99, 06-Feb-2017,
992,Revenue,CAHD,Freeways,Permanent Residential,Freeways Trust Limited,7455.24, 06-Feb-2017,
993,Revenue,CAHD,Freeways,Permanent Residential,Freeways Trust Limited,3627.12, 27-Feb-2017,
994,Revenue,CAHD,Freeways,Permanent Residential,Freeways Trust Limited,2331.13, 27-Feb-2017,
995,Revenue,CAHD,Freeways,Permanent Residential,Freeways Trust Limited,2331.13, 27-Feb-2017,
996,Revenue,CAHD,Freeways,Permanent Residential,Freeways Trust Limited,3393.81, 27-Feb-2017,
997,Revenue,CAHD,Freeways,Permanent Residential,Freeways Trust Limited,2331.13, 27-Feb-2017,
998,Revenue,CAHD,Freeways,Permanent Residential,Freeways Trust Limited,3454.92, 27-Feb-2017,
999,Revenue,CAHD,Freeways,Permanent Residential,Freeways Trust Limited,2603.48, 27-Feb-2017,
1000,Revenue,CAHD,Freeways,Permanent Residential,Freeways Trust Limited,3614.51, 27-Feb-2017,
1001,Revenue,CAHD,Freeways,Permanent Residential,Freeways Trust Limited,2208.93, 27-Feb-2017,
1002,Revenue,CAHD,Freeways,Permanent Residential,Freeways Trust Limited,2749.17, 27-Feb-2017,
1003,Revenue,CAHD,Freeways,Permanent Residential,Freeways Trust Limited,3508.85, 27-Feb-2017,
1004,Revenue,CAHD,Freeways,Permanent Residential,Freeways Trust Limited,3079.53, 27-Feb-2017,
1005,Revenue,CAHD,Freeways,Permanent Residential,Freeways Trust Limited,2331.13, 27-Feb-2017,
1006,Revenue,CAHD,Freeways,Permanent Residential,Freeways Trust Limited,1352.78, 27-Feb-2017,
1007,Revenue,CAHD,Freeways,Permanent Residential,Freeways Trust Limited,7455.24, 27-Feb-2017,
1008,Revenue,CAHD,Home Care - Elderly - North,Supported Living,Freeways Trust Ltd,800.00, 14-Feb-2017,
1009,Revenue,CAHD,Bed purchasing - S28A Under 65 - South,Permanent Residential,Freeways Trust Ltd,3546.28, 14-Feb-2017,
1010,Revenue,CAHD,Bed Purchasing - North,Permanent Residential,Freeways Trust Ltd,3560.40, 14-Feb-2017,
1011,Revenue,CAHD,Bed Purchasing - South,Permanent Residential,Freeways Trust Ltd,3776.08, 14-Feb-2017,
1012,Revenue,CAHD,Bed Purchasing - North,Permanent Residential,Freeways Trust Ltd,2851.24, 14-Feb-2017,
1013,Revenue,CAHD,Bed Purchasing - South,Permanent Residential,Freeways Trust Ltd,3004.60, 14-Feb-2017,
1014,Revenue,CAHD,Bed Purchasing - North,Permanent Residential,Freeways Trust Ltd,3149.08, 14-Feb-2017,
1015,Revenue,CAHD,Bed Purchasing - North,Permanent Residential,Freeways Trust Ltd,3769.20, 14-Feb-2017,
1016,Revenue,CAHD,18-25 Year Olds,Permanent Residential,Freeways Trust Ltd,3481.92, 14-Feb-2017,
1017,Revenue,CAHD,Bed Purchasing - North,Permanent Residential,Freeways Trust Ltd,4357.16, 14-Feb-2017,
1018,Revenue,CAHD,Pathway 3 - (Complex Beds),Permanent Nursing,Frenchay House,3162.00, 07-Feb-2017,
1019,Revenue,CAHD,CSC - Residential Placements,Permanent Residential,Friends Therapeutic Community Trust,14000.00, 22-Feb-2017,
1020,Revenue,CAHD,Sexual Health,Other Small Contracts,Frome Valley Medical Centre,588.44, 20-Feb-2017,
1021,Revenue,CAHD,Bed Purchasing - South,Permanent Nursing,Fshc  1St Floor,2587.52, 14-Feb-2017,
1022,Revenue,CAHD,South Glos Users in South Glos Homes,Permanent Nursing,Fshc  1St Floor,625.00, 14-Feb-2017,
1023,Revenue,CAHD,Bed Purchasing - South,Permanent Nursing,Fshc  1St Floor,2038.72, 14-Feb-2017,
1024,Revenue,CAHD,Bed Purchasing - Southmead Hospital,Permanent Nursing,Fshc  1St Floor,2252.00, 14-Feb-2017,
1025,Revenue,CAHD,Bed Purchasing - South,Permanent Nursing,Fshc  1St Floor,2038.72, 14-Feb-2017,
1026,Revenue,CAHD,South Glos Users in South Glos Homes,Permanent Nursing,Fshc  1St Floor,625.00, 14-Feb-2017,
1027,Revenue,CAHD,Bed Purchasing - Southmead Hospital,Permanent Nursing,Fshc  1St Floor,2040.00, 14-Feb-2017,
1028,Revenue,CAHD,Bed Purchasing - Southmead Hospital,Permanent Nursing,Fshc  1St Floor,874.29, 14-Feb-2017,
1029,Revenue,CAHD,Bed Purchasing - Southmead Hospital,Permanent Nursing,Fshc  1St Floor,2038.72, 14-Feb-2017,
1030,Revenue,CAHD,South Glos Users in South Glos Homes,Permanent Nursing,Fshc  1St Floor,625.00, 14-Feb-2017,
1031,Revenue,CAHD,South Glos Users in South Glos Homes,Permanent Nursing,Fshc  1St Floor,625.00, 14-Feb-2017,
1032,Revenue,CAHD,South Glos Users in South Glos Homes,Permanent Nursing,Fshc  1St Floor,6785.71, 14-Feb-2017,
1033,Revenue,CAHD,South Glos Users in South Glos Homes,Permanent Nursing,Fshc  1St Floor,5856.00, 14-Feb-2017,
1034,Revenue,CAHD,South Glos Users in South Glos Homes,Permanent Nursing,Fshc  1St Floor,1552.46, 14-Feb-2017,
1035,Revenue,CAHD,South Glos Users in South Glos Homes,Permanent Nursing,Fshc  1St Floor,625.00, 14-Feb-2017,
1036,Revenue,CAHD,Bed Purchasing - Southmead Hospital,Permanent Nursing,Fshc  1St Floor,2252.00, 14-Feb-2017,
1037,Revenue,CAHD,Bed Purchasing - Southmead Hospital,Permanent Nursing,Fshc  1St Floor,2548.00, 14-Feb-2017,
1038,Revenue,CAHD,South Glos Users in South Glos Homes,Permanent Nursing,Fshc  1St Floor,625.00, 14-Feb-2017,
1039,Revenue,CAHD,South Glos Users in South Glos Homes,Permanent Nursing,Fshc  1St Floor,625.00, 14-Feb-2017,
1040,Revenue,CAHD,Bed Purchasing - Southmead Hospital,Permanent Nursing,Fshc  1St Floor,2038.72, 14-Feb-2017,
1041,Revenue,CAHD,South Glos Users in South Glos Homes,Permanent Nursing,Fshc  1St Floor,625.00, 14-Feb-2017,
1042,Revenue,CAHD,Bed Purchasing - Southmead Hospital,Permanent Nursing,Fshc  1St Floor,2038.72, 14-Feb-2017,
1043,Revenue,CAHD,South Glos Users in South Glos Homes,Permanent Nursing,Fshc  1St Floor,1383.93, 14-Feb-2017,
1044,Revenue,CAHD,Bed Purchasing - Southmead Hospital,Respite Emergency - Residential,Fshc  1St Floor,7977.86, 14-Feb-2017,
1045,Revenue,CAHD,Bed Purchasing - Southmead Hospital,Respite Emergency - Residential,Fshc  1St Floor,1202.14, 14-Feb-2017,
1046,Revenue,CAHD,South Glos Users in South Glos Homes,Permanent Nursing,Fshc  1St Floor,1361.61, 14-Feb-2017,
1047,Revenue,CAHD,South Glos Users in South Glos Homes,Permanent Nursing,Fshc  1St Floor,625.00, 14-Feb-2017,
1048,Revenue,CAHD,South Glos Users in South Glos Homes,Permanent Nursing,Fshc  1St Floor,625.00, 14-Feb-2017,
1049,Revenue,CAHD,Bed Purchasing - South,Permanent Nursing,Fshc  1St Floor,2282.64, 14-Feb-2017,
1050,Revenue,CAHD,Bed Purchasing - Southmead Hospital,Permanent Nursing,Fshc  1St Floor,2282.64, 14-Feb-2017,
1051,Revenue,CAHD,South Glos Users in South Glos Homes,Permanent Nursing,Fshc  1St Floor,625.00, 14-Feb-2017,
1052,Revenue,CAHD,Bed Purchasing - South,Permanent Nursing,Fshc  1St Floor,4906.14, 14-Feb-2017,
1053,Revenue,CAHD,South Glos Users in South Glos Homes,Permanent Nursing,Fshc  1St Floor,1361.61, 14-Feb-2017,
1054,Revenue,CAHD,Bed Purchasing - South,Permanent Nursing,Fshc  1St Floor,1849.86, 14-Feb-2017,
1055,Revenue,CAHD,South Glos Users in South Glos Homes,Permanent Nursing,Fshc  1St Floor,625.00, 14-Feb-2017,
1056,Revenue,CAHD,Bed Purchasing - South,Fees & Charges Income - General,Fshc  1St Floor,1120.29, 14-Feb-2017,
1057,Revenue,CAHD,Bed Purchasing - Southmead Hospital,Permanent Nursing,Fshc  1St Floor,2038.72, 14-Feb-2017,
1058,Revenue,CAHD,South Glos Users in South Glos Homes,Permanent Nursing,Fshc  1St Floor,625.00, 14-Feb-2017,
1059,Revenue,CAHD,Bed Purchasing - Southmead Hospital,Permanent Nursing,Fshc  1St Floor,2252.00, 14-Feb-2017,
1060,Revenue,CAHD,South Glos Users in South Glos Homes,Permanent Nursing,Fshc  1St Floor,625.00, 14-Feb-2017,
1061,Revenue,CAHD,Bed Purchasing - South,Permanent Nursing,Fshc  1St Floor,2038.72, 14-Feb-2017,
1062,Revenue,CAHD,South Glos Users in South Glos Homes,Permanent Nursing,Fshc  1St Floor,625.00, 14-Feb-2017,
1063,Revenue,CAHD,Bed Purchasing - Southmead Hospital,Permanent Nursing,Fshc  1St Floor,2038.72, 14-Feb-2017,
1064,Revenue,CAHD,South Glos Users in South Glos Homes,Permanent Nursing,Fshc  1St Floor,625.00, 14-Feb-2017,
1065,Revenue,CAHD,South Glos Users in South Glos Homes,Permanent Nursing,Fshc  1St Floor,2901.79, 14-Feb-2017,
1066,Revenue,CAHD,South Glos Users in South Glos Homes,Permanent Nursing,Fshc  1St Floor,625.00, 14-Feb-2017,
1067,Revenue,CAHD,Bed Purchasing - Southmead Hospital,Permanent Residential,Fshc  1St Floor,1901.52, 14-Feb-2017,
1068,Revenue,CAHD,Bed Purchasing - North,Permanent Nursing,Fshc  1St Floor,2252.00, 14-Feb-2017,
1069,Revenue,CAHD,South Glos Users in South Glos Homes,Permanent Nursing,Fshc  1St Floor,1383.93, 14-Feb-2017,
1070,Revenue,CAHD,South Glos Users in South Glos Homes,Permanent Nursing,Fshc  1St Floor,625.00, 14-Feb-2017,
1071,Revenue,CAHD,Bed Purchasing - South,Permanent Nursing,Fshc  1St Floor,2038.72, 14-Feb-2017,
1072,Revenue,CAHD,Bed Purchasing - North,Permanent Nursing,Fshc  1St Floor,2038.72, 14-Feb-2017,
1073,Revenue,CAHD,South Glos Users in South Glos Homes,Permanent Nursing,Fshc  1St Floor,625.00, 14-Feb-2017,
1074,Revenue,CAHD,Bed Purchasing - South,Permanent Nursing,Fshc  1St Floor,2252.00, 14-Feb-2017,
1075,Revenue,CAHD,South Glos Users in South Glos Homes,Permanent Nursing,Fshc  1St Floor,625.00, 14-Feb-2017,
1076,Revenue,CAHD,Bed Purchasing - Southmead Hospital,Permanent Nursing,Fshc  1St Floor,2038.72, 14-Feb-2017,
1077,Revenue,CAHD,South Glos Users in South Glos Homes,Permanent Nursing,Fshc  1St Floor,625.00, 14-Feb-2017,
1078,Revenue,CAHD,South Glos Users in South Glos Homes,Permanent Nursing,Fshc  1St Floor,625.00, 14-Feb-2017,
1079,Revenue,CAHD,Bed Purchasing - South,Permanent Nursing,Fshc  1St Floor,2038.72, 14-Feb-2017,
1080,Revenue,CAHD,South Glos Users in South Glos Homes,Permanent Nursing,Fshc  1St Floor,625.00, 14-Feb-2017,
1081,Revenue,CAHD,South Glos Users in South Glos Homes,Permanent Nursing,Fshc  1St Floor,892.86, 14-Feb-2017,
1082,Revenue,CAHD,Bed Purchasing - North,Permanent Nursing,Fshc  1St Floor,2282.64, 14-Feb-2017,
1083,Revenue,CAHD,South Glos Users in South Glos Homes,Permanent Nursing,Fshc  1St Floor,625.00, 14-Feb-2017,
1084,Revenue,CAHD,Bed Purchasing - Southmead Hospital,Permanent Nursing,Fshc  1St Floor,2038.72, 14-Feb-2017,
1085,Revenue,CAHD,South Glos Users in South Glos Homes,Permanent Nursing,Fshc  1St Floor,625.00, 14-Feb-2017,
1086,Revenue,CAHD,Bed Purchasing - Southmead Hospital,Respite Planned - Nursing,Fshc  1St Floor,4825.71, 14-Feb-2017,
1087,Revenue,CAHD,Bed Purchasing - Southmead Hospital,Respite Emergency - Residential,Fshc  1St Floor,4725.00, 14-Feb-2017,
1088,Revenue,CAHD,Bed Purchasing - Southmead Hospital,Respite Emergency - Residential,Fshc  1St Floor,675.00, 14-Feb-2017,
1089,Revenue,CAHD,South Glos Users in South Glos Homes,Permanent Nursing,Fshc  1St Floor,625.00, 14-Feb-2017,
1090,Revenue,CAHD,Bed Purchasing - North,Permanent Nursing,Fshc  1St Floor,2038.72, 14-Feb-2017,
1091,Revenue,CAHD,South Glos Users in South Glos Homes,Permanent Nursing,Fshc  1St Floor,625.00, 14-Feb-2017,
1092,Revenue,CAHD,Bed Purchasing - North,Permanent Nursing,Fshc  1St Floor,8912.00, 14-Feb-2017,
1093,Revenue,CAHD,Bed Purchasing - Southmead Hospital,Permanent Residential,Fshc  1St Floor,2228.00, 14-Feb-2017,
1094,Revenue,CAHD,Bed Purchasing - South,Permanent Nursing,Fshc  1St Floor,2228.00, 14-Feb-2017,
1095,Revenue,CAHD,South Glos Users in South Glos Homes,Permanent Nursing,Fshc  1St Floor,625.00, 14-Feb-2017,
1096,Revenue,CAHD,Bed Purchasing - South,Permanent Nursing,Fshc  1St Floor,795.71, 14-Feb-2017,
1097,Revenue,CAHD,Bed Purchasing - Southmead Hospital,Permanent Nursing,Fshc  1St Floor,2038.72, 14-Feb-2017,
1098,Revenue,CAHD,South Glos Users in South Glos Homes,Permanent Nursing,Fshc  1St Floor,625.00, 14-Feb-2017,
1099,Revenue,CAHD,Bed Purchasing - Southmead Hospital,Permanent Nursing,Fshc  1St Floor,2227.20, 14-Feb-2017,
1100,Revenue,CAHD,South Glos Users in South Glos Homes,Permanent Nursing,Fshc  1St Floor,625.00, 14-Feb-2017,
1101,Revenue,CAHD,Bed Purchasing - North,Permanent Nursing,Fshc  1St Floor,2188.00, 14-Feb-2017,
1102,Revenue,CAHD,South Glos Users in South Glos Homes,Permanent Nursing,Fshc  1St Floor,625.00, 14-Feb-2017,
1103,Revenue,CAHD,South Glos Users in South Glos Homes,Permanent Nursing,Fshc  1St Floor,625.00, 14-Feb-2017,
1104,Revenue,CAHD,Bed Purchasing - Southmead Hospital,Permanent Nursing,Fshc  1St Floor,2038.72, 14-Feb-2017,
1105,Revenue,CAHD,South Glos Users in South Glos Homes,Permanent Nursing,Fshc  1St Floor,625.00, 14-Feb-2017,
1106,Revenue,CAHD,Bed Purchasing - Southmead Hospital,Permanent Residential,Fshc  1St Floor,1901.52, 14-Feb-2017,
1107,Revenue,CAHD,Bed Purchasing - Southmead Hospital,Respite Emergency - Nursing,Fshc  1St Floor,2164.00, 14-Feb-2017,
1108,Revenue,CAHD,South Glos Users in South Glos Homes,Permanent Nursing,Fshc  1St Floor,625.00, 14-Feb-2017,
1109,Revenue,CAHD,South Glos Users in South Glos Homes,Permanent Nursing,Fshc  1St Floor,625.00, 14-Feb-2017,
1110,Revenue,CAHD,Bed Purchasing - Southmead Hospital,Permanent Nursing,Fshc  1St Floor,2038.72, 14-Feb-2017,
1111,Revenue,CAHD,South Glos Users in South Glos Homes,Permanent Nursing,Fshc  1St Floor,625.00, 14-Feb-2017,
1112,Revenue,CAHD,Bed Purchasing - Southmead Hospital,Permanent Nursing,Fshc  1St Floor,2038.72, 14-Feb-2017,
1113,Revenue,CAHD,South Glos Users in South Glos Homes,Permanent Nursing,Fshc  1St Floor,625.00, 14-Feb-2017,
1114,Revenue,CAHD,South Glos Users in South Glos Homes,Permanent Nursing,Fshc  1St Floor,625.00, 14-Feb-2017,
1115,Revenue,CAHD,South Glos Users in South Glos Homes,Permanent Nursing,Fshc  1St Floor,625.00, 14-Feb-2017,
1116,Revenue,CAHD,Bed Purchasing - North,Permanent Nursing,Fshc  1St Floor,2193.44, 14-Feb-2017,
1117,Revenue,CAHD,Bed Purchasing - North,Permanent Nursing,Fshc  1St Floor,2038.72, 14-Feb-2017,
1118,Revenue,CAHD,South Glos Users in South Glos Homes,Permanent Nursing,Fshc  1St Floor,625.00, 14-Feb-2017,
1119,Revenue,CAHD,Bed Purchasing - North,Permanent Nursing,Fshc  1St Floor,2228.00, 14-Feb-2017,
1120,Revenue,CAHD,South Glos Users in South Glos Homes,Permanent Nursing,Fshc  1St Floor,625.00, 14-Feb-2017,
1121,Revenue,CAHD,South Glos Users in South Glos Homes,Permanent Nursing,Fshc  1St Floor,625.00, 14-Feb-2017,
1122,Revenue,CAHD,South Glos Users in South Glos Homes,Permanent Nursing,Fshc  1St Floor,625.00, 14-Feb-2017,
1123,Revenue,CAHD,Bed Purchasing - Southmead Hospital,Permanent Nursing,Fshc  1St Floor,3800.00, 14-Feb-2017,
1124,Revenue,CAHD,South Glos Users in South Glos Homes,Permanent Nursing,Fshc  1St Floor,625.00, 14-Feb-2017,
1125,Revenue,CAHD,Bed Purchasing - Southmead Hospital,Permanent Nursing,Fshc  1St Floor,2227.20, 14-Feb-2017,
1126,Revenue,CAHD,South Glos Users in South Glos Homes,Permanent Nursing,Fshc  1St Floor,625.00, 14-Feb-2017,
1127,Revenue,CAHD,Bed Purchasing - North,Permanent Nursing,Fshc  1St Floor,2038.72, 14-Feb-2017,
1128,Revenue,CAHD,South Glos Users in South Glos Homes,Permanent Nursing,Fshc  1St Floor,625.00, 14-Feb-2017,
1129,Revenue,CAHD,Bed Purchasing - Southmead Hospital,Permanent Residential,Fshc  1St Floor,1901.52, 14-Feb-2017,
1130,Revenue,CAHD,Bed Purchasing - North,Permanent Nursing,Fshc  1St Floor,2038.72, 14-Feb-2017,
1131,Revenue,CAHD,South Glos Users in South Glos Homes,Permanent Nursing,Fshc  1St Floor,625.00, 14-Feb-2017,
1132,Revenue,CAHD,Bed Purchasing - North,Permanent Nursing,Fshc  1St Floor,2038.72, 14-Feb-2017,
1133,Revenue,CAHD,South Glos Users in South Glos Homes,Permanent Nursing,Fshc  1St Floor,625.00, 14-Feb-2017,
1134,Revenue,CAHD,South Glos Users in South Glos Homes,Permanent Nursing,Fshc  1St Floor,1250.00, 14-Feb-2017,
1135,Revenue,CAHD,South Glos Users in South Glos Homes,Permanent Nursing,Fshc  1St Floor,625.00, 14-Feb-2017,
1136,Revenue,CAHD,Bed Purchasing - North,Permanent Nursing,Fshc  1St Floor,2038.72, 14-Feb-2017,
1137,Revenue,CAHD,South Glos Users in South Glos Homes,Permanent Nursing,Fshc  1St Floor,625.00, 14-Feb-2017,
1138,Revenue,CAHD,Bed Purchasing - North,Permanent Nursing,Fshc  1St Floor,2038.72, 14-Feb-2017,
1139,Revenue,CAHD,South Glos Users in South Glos Homes,Permanent Nursing,Fshc  1St Floor,625.00, 14-Feb-2017,
1140,Revenue,CAHD,Bed Purchasing - North,Permanent Residential,Fshc  1St Floor,2228.00, 14-Feb-2017,
1141,Revenue,CAHD,South Glos Users in South Glos Homes,Permanent Nursing,Fshc  1St Floor,625.00, 14-Feb-2017,
1142,Revenue,CAHD,Bed Purchasing - North,Permanent Nursing,Fshc  1St Floor,2038.72, 14-Feb-2017,
1143,Revenue,CAHD,South Glos Users in South Glos Homes,Permanent Nursing,Fshc  1St Floor,625.00, 14-Feb-2017,
1144,Revenue,CAHD,South Glos Users in South Glos Homes,Permanent Nursing,Fshc  1St Floor,3236.61, 14-Feb-2017,
1145,Revenue,CAHD,Bed Purchasing - Southmead Hospital,Permanent Nursing,Fshc  1St Floor,4637.14, 14-Feb-2017,
1146,Revenue,CAHD,Bed Purchasing - Southmead Hospital,Permanent Nursing,Fshc  1St Floor,2164.00, 14-Feb-2017,
1147,Revenue,CAHD,South Glos Users in South Glos Homes,Permanent Nursing,Fshc  1St Floor,625.00, 14-Feb-2017,
1148,Revenue,CAHD,Bed Purchasing - Southmead Hospital,Fees & Charges Income - General,Fshc  1St Floor,1206.72, 14-Feb-2017,
1149,Revenue,CAHD,Bed Purchasing - North,Permanent Nursing,Fshc  1St Floor,2038.72, 14-Feb-2017,
1150,Revenue,CAHD,South Glos Users in South Glos Homes,Permanent Nursing,Fshc  1St Floor,625.00, 14-Feb-2017,
1151,Revenue,CAHD,South Glos Users in South Glos Homes,Permanent Nursing,Fshc  1St Floor,625.00, 14-Feb-2017,
1152,Revenue,CAHD,South Glos Users in South Glos Homes,Permanent Nursing,Fshc  1St Floor,625.00, 14-Feb-2017,
1153,Revenue,CAHD,Bed Purchasing - North,Permanent Nursing,Fshc  1St Floor,2038.72, 14-Feb-2017,
1154,Revenue,CAHD,South Glos Users in South Glos Homes,Permanent Nursing,Fshc  1St Floor,625.00, 14-Feb-2017,
1155,Revenue,CAHD,Bed Purchasing - North,Permanent Nursing,Fshc  1St Floor,2108.28, 14-Feb-2017,
1156,Revenue,CAHD,South Glos Users in South Glos Homes,Permanent Nursing,Fshc  1St Floor,625.00, 14-Feb-2017,
1157,Revenue,CAHD,Bed Purchasing - Southmead Hospital,Permanent Nursing,Fshc  1St Floor,2352.00, 14-Feb-2017,
1158,Revenue,CAHD,South Glos Users in South Glos Homes,Permanent Nursing,Fshc  1St Floor,625.00, 14-Feb-2017,
1159,Revenue,CAHD,Bed Purchasing - North,Permanent Nursing,Fshc  1St Floor,2038.72, 14-Feb-2017,
1160,Revenue,CAHD,South Glos Users in South Glos Homes,Permanent Nursing,Fshc  1St Floor,625.00, 14-Feb-2017,
1161,Revenue,CAHD,Bed Purchasing - Southmead Hospital,Permanent Nursing,Fshc  1St Floor,2156.92, 14-Feb-2017,
1162,Revenue,CAHD,South Glos Users in South Glos Homes,Permanent Nursing,Fshc  1St Floor,625.00, 14-Feb-2017,
1163,Revenue,CAHD,Bed Purchasing - Southmead Hospital,Fees & Charges Income - General,Fshc  1St Floor,541.65, 14-Feb-2017,
1164,Revenue,CAHD,South Glos Users in South Glos Homes,Permanent Nursing,Fshc  1St Floor,625.00, 14-Feb-2017,
1165,Revenue,CAHD,Bed Purchasing - North,Permanent Nursing,Fshc  1St Floor,2375.00, 14-Feb-2017,
1166,Revenue,CAHD,South Glos Users in South Glos Homes,Permanent Nursing,Fshc  1St Floor,625.00, 14-Feb-2017,
1167,Revenue,CAHD,South Glos Users in South Glos Homes,Permanent Nursing,Fshc  1St Floor,625.00, 14-Feb-2017,
1168,Revenue,CAHD,Bed Purchasing - North,Permanent Nursing,Fshc  1St Floor,2038.72, 14-Feb-2017,
1169,Revenue,CAHD,South Glos Users in South Glos Homes,Permanent Nursing,Fshc  1St Floor,625.00, 14-Feb-2017,
1170,Revenue,CAHD,Bed Purchasing - Southmead Hospital,Respite Planned - Nursing,Fshc  1St Floor,892.29, 14-Feb-2017,
1171,Revenue,CAHD,South Glos Users in South Glos Homes,Permanent Nursing,Fshc  1St Floor,625.00, 14-Feb-2017,
1172,Revenue,CAHD,South Glos Users in South Glos Homes,Permanent Nursing,Fshc  1St Floor,625.00, 14-Feb-2017,
1173,Revenue,CAHD,Bed Purchasing - Southmead Hospital,Permanent Residential,Fshc  1St Floor,1901.52, 14-Feb-2017,
1174,Revenue,CAHD,South Glos Users in South Glos Homes,Permanent Nursing,Fshc  1St Floor,625.00, 14-Feb-2017,
1175,Revenue,CAHD,South Glos Users in South Glos Homes,Permanent Nursing,Fshc  1St Floor,625.00, 14-Feb-2017,
1176,Revenue,CAHD,Bed Purchasing - Southmead Hospital,Respite Planned - Nursing,Fshc  1St Floor,2775.00, 14-Feb-2017,
1177,Revenue,CAHD,Bed Purchasing - Southmead Hospital,Respite Planned - Nursing,Fshc  1St Floor,2477.68, 14-Feb-2017,
1178,Revenue,CAHD,South Glos Users in South Glos Homes,Permanent Nursing,Fshc  1St Floor,625.00, 14-Feb-2017,
1179,Revenue,CAHD,Bed Purchasing - Southmead Hospital,Permanent Nursing,Fshc  1St Floor,2375.00, 14-Feb-2017,
1180,Revenue,CAHD,Bed Purchasing - North,Respite Emergency - Residential,Fshc  1St Floor,2600.00, 14-Feb-2017,
1181,Revenue,CAHD,Bed Purchasing - North,Respite Emergency - Residential,Fshc  1St Floor,1857.14, 14-Feb-2017,
1182,Revenue,CAHD,Bed Purchasing - Southmead Hospital,Permanent Nursing,Fshc  1St Floor,2038.72, 14-Feb-2017,
1183,Revenue,CAHD,South Glos Users in South Glos Homes,Permanent Nursing,Fshc  1St Floor,625.00, 14-Feb-2017,
1184,Revenue,CAHD,Bed Purchasing - Southmead Hospital,Permanent Nursing,Fshc  1St Floor,3624.11, 14-Feb-2017,
1185,Revenue,CAHD,Bed Purchasing - Southmead Hospital,Permanent Nursing,Fshc  1St Floor,2475.00, 14-Feb-2017,
1186,Revenue,CAHD,South Glos Users in South Glos Homes,Permanent Nursing,Fshc  1St Floor,915.18, 14-Feb-2017,
1187,Revenue,CAHD,South Glos Users in South Glos Homes,Permanent Nursing,Fshc  1St Floor,625.00, 14-Feb-2017,
1188,Revenue,CAHD,Bed Purchasing - North,Permanent Nursing,Fshc  1St Floor,2038.72, 14-Feb-2017,
1189,Revenue,CAHD,South Glos Users in South Glos Homes,Permanent Nursing,Fshc  1St Floor,625.00, 14-Feb-2017,
1190,Revenue,CAHD,South Glos Users in South Glos Homes,Permanent Nursing,Fshc  1St Floor,625.00, 14-Feb-2017,
1191,Revenue,CAHD,Bed Purchasing - Southmead Hospital,Permanent Nursing,Fshc  1St Floor,2038.72, 14-Feb-2017,
1192,Revenue,CAHD,South Glos Users in South Glos Homes,Permanent Nursing,Fshc  1St Floor,625.00, 14-Feb-2017,
1193,Revenue,CAHD,Bed Purchasing - North,Permanent Nursing,Fshc  1St Floor,2038.72, 14-Feb-2017,
1194,Revenue,CAHD,South Glos Users in South Glos Homes,Permanent Nursing,Fshc  1St Floor,625.00, 14-Feb-2017,
1195,Revenue,CAHD,Bed Purchasing - South,Respite Planned - Nursing,Fshc  1St Floor,3100.00, 14-Feb-2017,
1196,Revenue,CAHD,Bed Purchasing - Southmead Hospital,Permanent Nursing,Fshc  1St Floor,2038.72, 14-Feb-2017,
1197,Revenue,CAHD,South Glos Users in South Glos Homes,Permanent Nursing,Fshc  1St Floor,625.00, 14-Feb-2017,
1198,Revenue,CAHD,South Glos Users in South Glos Homes,Permanent Nursing,Fshc  1St Floor,625.00, 14-Feb-2017,
1199,Revenue,CAHD,Bed Purchasing - South,Permanent Residential,Fshc  1St Floor,2200.00, 14-Feb-2017,
1200,Revenue,CAHD,Bed Purchasing - South,Permanent Nursing,Fshc  1St Floor,2400.00, 14-Feb-2017,
1201,Revenue,CAHD,South Glos Users in South Glos Homes,Permanent Nursing,Fshc  1St Floor,625.00, 14-Feb-2017,
1202,Revenue,CAHD,Bed Purchasing - South,Permanent Nursing,Fshc  1St Floor,2038.72, 14-Feb-2017,
1203,Revenue,CAHD,South Glos Users in South Glos Homes,Permanent Nursing,Fshc  1St Floor,625.00, 14-Feb-2017,
1204,Revenue,CAHD,Bed Purchasing - Southmead Hospital,Permanent Nursing,Fshc  1St Floor,2922.80, 14-Feb-2017,
1205,Revenue,CAHD,Bed Purchasing - Southmead Hospital,Permanent Nursing,Fshc  1St Floor,521.93, 14-Feb-2017,
1206,Revenue,CAHD,Bed Purchasing - Southmead Hospital,Permanent Nursing,Fshc  1St Floor,2038.72, 14-Feb-2017,
1207,Revenue,CAHD,South Glos Users in South Glos Homes,Permanent Nursing,Fshc  1St Floor,625.00, 14-Feb-2017,
1208,Revenue,CAHD,Bed Purchasing - North,Permanent Nursing,Fshc  1St Floor,2038.72, 14-Feb-2017,
1209,Revenue,CAHD,South Glos Users in South Glos Homes,Permanent Nursing,Fshc  1St Floor,625.00, 14-Feb-2017,
1210,Revenue,CAHD,Bed Purchasing - Southmead Hospital,Permanent Residential,Fshc  1St Floor,2111.52, 14-Feb-2017,
1211,Revenue,CAHD,South Glos Users in South Glos Homes,Permanent Nursing,Fshc  1St Floor,625.00, 14-Feb-2017,
1212,Revenue,CAHD,South Glos Users in South Glos Homes,Permanent Nursing,Fshc  1St Floor,625.00, 14-Feb-2017,
1213,Revenue,CAHD,Bed Purchasing - South,Permanent Residential,Fshc  1St Floor,2154.36, 14-Feb-2017,
1214,Revenue,CAHD,Bed Purchasing - North,Permanent Nursing,Fshc  1St Floor,2038.72, 14-Feb-2017,
1215,Revenue,CAHD,South Glos Users in South Glos Homes,Permanent Nursing,Fshc  1St Floor,625.00, 14-Feb-2017,
1216,Revenue,CAHD,South Glos Users in South Glos Homes,Permanent Nursing,Fshc  1St Floor,625.00, 14-Feb-2017,
1217,Revenue,CAHD,Bed Purchasing - Southmead Hospital,Permanent Nursing,Fshc  1St Floor,2038.72, 14-Feb-2017,
1218,Revenue,CAHD,South Glos Users in South Glos Homes,Permanent Nursing,Fshc  1St Floor,625.00, 14-Feb-2017,
1219,Revenue,CAHD,Bed Purchasing - South,Permanent Nursing,Fshc  1St Floor,2145.80, 14-Feb-2017,
1220,Revenue,CAHD,South Glos Users in South Glos Homes,Permanent Nursing,Fshc  1St Floor,625.00, 14-Feb-2017,
1221,Revenue,CAHD,South Glos Users in South Glos Homes,Permanent Nursing,Fshc  1St Floor,625.00, 14-Feb-2017,
1222,Revenue,CAHD,Bed Purchasing - South,Fees & Charges Income - General,Fshc  1St Floor,3136.80, 14-Feb-2017,
1223,Revenue,CAHD,Bed Purchasing - Southmead Hospital,Permanent Nursing,Fshc  1St Floor,628.57, 14-Feb-2017,
1224,Revenue,CAHD,Bed Purchasing - South,Fees & Charges Income - General,Fshc  1St Floor,634.83, 14-Feb-2017,
1225,Revenue,CAHD,Bed Purchasing - Southmead Hospital,Permanent Nursing,Fshc  1St Floor,2038.72, 14-Feb-2017,
1226,Revenue,CAHD,South Glos Users in South Glos Homes,Permanent Nursing,Fshc  1St Floor,625.00, 14-Feb-2017,
1227,Revenue,CAHD,Bed Purchasing - Southmead Hospital,Permanent Nursing,Fshc  1St Floor,2229.92, 14-Feb-2017,
1228,Revenue,CAHD,South Glos Users in South Glos Homes,Permanent Nursing,Fshc  1St Floor,625.00, 14-Feb-2017,
1229,Revenue,CAHD,Bed Purchasing - South,Permanent Nursing,Fshc  1St Floor,2038.72, 14-Feb-2017,
1230,Revenue,CAHD,South Glos Users in South Glos Homes,Permanent Nursing,Fshc  1St Floor,625.00, 14-Feb-2017,
1231,Revenue,CAHD,Bed Purchasing - North,Respite Planned - Residential,Fshc  1St Floor,942.86, 14-Feb-2017,
1232,Revenue,CAHD,South Glos Users in South Glos Homes,Permanent Nursing,Fshc  1St Floor,625.00, 14-Feb-2017,
1233,Revenue,CAHD,South Glos Users in South Glos Homes,Permanent Nursing,Fshc  1St Floor,625.00, 14-Feb-2017,
1234,Revenue,CAHD,Bed Purchasing - North,Respite Planned - Residential,Fshc  1St Floor,7428.57, 14-Feb-2017,
1235,Revenue,CAHD,Bed Purchasing - North,Respite Planned - Residential,Fshc  1St Floor,2000.00, 14-Feb-2017,
1236,Revenue,CAHD,Bed Purchasing - Southmead Hospital,Respite Emergency - Residential,Fshc  1St Floor,2071.43, 14-Feb-2017,
1237,Revenue,CAHD,Bed Purchasing - South,Permanent Residential,Fshc  1St Floor,8957.14, 14-Feb-2017,
1238,Revenue,CAHD,Bed Purchasing - South,Permanent Nursing,Fshc  1St Floor,2692.86, 14-Feb-2017,
1239,Revenue,CAHD,Bed Purchasing - South,Permanent Residential,Fshc  1St Floor,1901.52, 14-Feb-2017,
1240,Revenue,CAHD,Bed Purchasing - Southmead Hospital,Permanent Nursing,Fshc  1St Floor,2038.72, 14-Feb-2017,
1241,Revenue,CAHD,South Glos Users in South Glos Homes,Permanent Nursing,Fshc  1St Floor,625.00, 14-Feb-2017,
1242,Revenue,CAHD,Bed Purchasing - South,Permanent Nursing,Fshc  1St Floor,2800.00, 14-Feb-2017,
1243,Revenue,CAHD,Bed Purchasing - Southmead Hospital,Permanent Nursing,Fshc  1St Floor,2038.72, 14-Feb-2017,
1244,Revenue,CAHD,South Glos Users in South Glos Homes,Permanent Nursing,Fshc  1St Floor,625.00, 14-Feb-2017,
1245,Revenue,CAHD,Bed Purchasing - Southmead Hospital,Permanent Nursing,Fshc  1St Floor,2038.72, 14-Feb-2017,
1246,Revenue,CAHD,South Glos Users in South Glos Homes,Permanent Nursing,Fshc  1St Floor,625.00, 14-Feb-2017,
1247,Revenue,CAHD,South Glos Users in South Glos Homes,Permanent Nursing,Fshc  1St Floor,691.96, 14-Feb-2017,
1248,Revenue,CAHD,South Glos Users in South Glos Homes,Permanent Nursing,Fshc  1St Floor,625.00, 14-Feb-2017,
1249,Revenue,CAHD,Bed Purchasing - South,Permanent Nursing,Fshc  1St Floor,2600.00, 14-Feb-2017,
1250,Revenue,CAHD,Bed Purchasing - South,Permanent Nursing,Fshc  1St Floor,1952.00, 14-Feb-2017,
1251,Revenue,CAHD,Bed Purchasing - South,Permanent Nursing,Fshc  1St Floor,2038.72, 14-Feb-2017,
1252,Revenue,CAHD,South Glos Users in South Glos Homes,Permanent Nursing,Fshc  1St Floor,625.00, 14-Feb-2017,
1253,Revenue,CAHD,Bed Purchasing - South,Permanent Nursing,Fshc  1St Floor,2324.08, 14-Feb-2017,
1254,Revenue,CAHD,South Glos Users in South Glos Homes,Permanent Nursing,Fshc  1St Floor,625.00, 14-Feb-2017,
1255,Revenue,CAHD,Bed Purchasing - South,Permanent Nursing,Fshc  1St Floor,2111.52, 14-Feb-2017,
1256,Revenue,CAHD,South Glos Users in South Glos Homes,Permanent Nursing,Fshc  1St Floor,625.00, 14-Feb-2017,
1257,Revenue,CAHD,Bed Purchasing - South,Permanent Residential,Fshc  1St Floor,2154.36, 14-Feb-2017,
1258,Revenue,CAHD,Bed Purchasing - South,Permanent Nursing,Fshc  1St Floor,1929.88, 14-Feb-2017,
1259,Revenue,CAHD,Bed Purchasing - Southmead Hospital,Permanent Nursing,Fshc  1St Floor,2838.08, 14-Feb-2017,
1260,Revenue,CAHD,Bed purchasing - Elderly S117 - South,Permanent Nursing,Fshc  1St Floor,1929.88, 14-Feb-2017,
1261,Revenue,CAHD,Bed Purchasing - South,Permanent Nursing,Fshc  1St Floor,3400.00, 14-Feb-2017,
1262,Revenue,CAHD,Bed Purchasing - South,Fees & Charges Income - General,Fshc  1St Floor,753.38, 14-Feb-2017,
1263,Revenue,CAHD,Bed Purchasing - North,Respite Emergency - Nursing,Fshc  1St Floor,1214.29, 14-Feb-2017,
1264,Revenue,CAHD,South Glos Users in South Glos Homes,Permanent Nursing,Fshc  1St Floor,535.71, 14-Feb-2017,
1265,Revenue,CAHD,Bed Purchasing - Southmead Hospital,Permanent Nursing,Fshc  1St Floor,1929.88, 14-Feb-2017,
1266,Revenue,CAHD,Bed Purchasing - Southmead Hospital,Permanent Nursing,Fshc  1St Floor,1929.88, 14-Feb-2017,
1267,Revenue,CAHD,Bed Purchasing - Southmead Hospital,Permanent Nursing,Fshc  1St Floor,1929.88, 14-Feb-2017,
1268,Revenue,CAHD,Bed Purchasing - South,Permanent Nursing,Fshc  1St Floor,1929.88, 14-Feb-2017,
1269,Revenue,CAHD,Bed Purchasing - South,Permanent Residential,Fshc  1St Floor,3542.08, 14-Feb-2017,
1270,Revenue,CAHD,Bed Purchasing - Southmead Hospital,Permanent Residential,Fshc  1St Floor,1946.08, 14-Feb-2017,
1271,Revenue,CAHD,Bed Purchasing - North,Permanent Nursing,Fshc  1St Floor,2189.40, 14-Feb-2017,
1272,Revenue,CAHD,Bed Purchasing - Southmead Hospital,Respite Planned - Nursing,Fshc  1St Floor,2189.40, 14-Feb-2017,
1273,Revenue,CAHD,Bed Purchasing - North,Permanent Nursing,Fshc  1St Floor,1988.44, 14-Feb-2017,
1274,Revenue,CAHD,South Glos Users in South Glos Homes,Permanent Nursing,Fshc  1St Floor,625.00, 14-Feb-2017,
1275,Revenue,CAHD,Bed Purchasing - North,Permanent Nursing,Fshc  1St Floor,2189.40, 14-Feb-2017,
1276,Revenue,CAHD,Bed Purchasing - North,Permanent Nursing,Fshc  1St Floor,2189.40, 14-Feb-2017,
1277,Revenue,CAHD,South Glos Users in South Glos Homes,Permanent Nursing,Fshc  1St Floor,625.00, 14-Feb-2017,
1278,Revenue,CAHD,Bed Purchasing - Southmead Hospital,Permanent Nursing,Fshc  1St Floor,2360.00, 14-Feb-2017,
1279,Revenue,CAHD,Bed Purchasing - Southmead Hospital,Permanent Nursing,Fshc  1St Floor,1432.86, 14-Feb-2017,
1280,Revenue,CAHD,Bed Purchasing - Southmead Hospital,Permanent Nursing,Fshc  1St Floor,7428.32, 14-Feb-2017,
1281,Revenue,CAHD,Bed Purchasing - Southmead Hospital,Permanent Nursing,Fshc  1St Floor,2189.40, 14-Feb-2017,
1282,Revenue,CAHD,Bed Purchasing - Southmead Hospital,Fees & Charges Income - General,Fshc  1St Floor,2577.61, 14-Feb-2017,
1283,Revenue,CAHD,Bed Purchasing - North,Permanent Nursing,Fshc  1St Floor,1929.88, 14-Feb-2017,
1284,Revenue,CAHD,Bed Purchasing - South,Permanent Residential,Fshc  1St Floor,2200.00, 14-Feb-2017,
1285,Revenue,CAHD,Bed Purchasing - North,Permanent Residential,Fshc  1St Floor,1831.32, 14-Feb-2017,
1286,Revenue,CAHD,Bed Purchasing - Southmead Hospital,Permanent Residential,Fshc  1St Floor,1669.68, 14-Feb-2017,
1287,Revenue,CAHD,Statemented Support Equipment,Educational Supplies & Equipment,G & S Smirthwaite Limited,974.00, 09-Feb-2017,
1288,Revenue,CAHD,Bed Purchasing - South,Permanent Residential,Gladstone House,5676.16, 14-Feb-2017,
1289,Revenue,CAHD,Bed Purchasing - South,Permanent Residential,Glasallt Fawr,5056.12, 14-Feb-2017,
1290,Revenue,CAHD,South Glos Users in South Glos Homes,Permanent Nursing,Glebe House Nursing Home,625.00, 14-Feb-2017,
1291,Revenue,CAHD,South Glos Users in South Glos Homes,Permanent Nursing,Glebe House Nursing Home,625.00, 14-Feb-2017,
1292,Revenue,CAHD,South Glos Users in South Glos Homes,Permanent Nursing,Glebe House Nursing Home,625.00, 14-Feb-2017,
1293,Revenue,CAHD,South Glos Users in South Glos Homes,Permanent Nursing,Glebe House Nursing Home,625.00, 14-Feb-2017,
1294,Revenue,CAHD,Bed Purchasing - North,Permanent Nursing,Glebe House Nursing Home,3113.76, 14-Feb-2017,
1295,Revenue,CAHD,South Glos Users in South Glos Homes,Permanent Nursing,Glebe House Nursing Home,625.00, 14-Feb-2017,
1296,Revenue,CAHD,South Glos Users in South Glos Homes,Permanent Nursing,Glebe House Nursing Home,625.00, 14-Feb-2017,
1297,Revenue,CAHD,South Glos Users in South Glos Homes,Permanent Nursing,Glebe House Nursing Home,625.00, 14-Feb-2017,
1298,Revenue,CAHD,Bed Purchasing - North,Permanent Residential,Glebe House Nursing Home,3030.88, 14-Feb-2017,
1299,Revenue,CAHD,South Glos Users in South Glos Homes,Permanent Nursing,Glebe House Nursing Home,625.00, 14-Feb-2017,
1300,Revenue,CAHD,South Glos Users in South Glos Homes,Permanent Nursing,Glebe House Nursing Home,625.00, 14-Feb-2017,
1301,Revenue,CAHD,Bed Purchasing - North,Permanent Nursing,Glebe House Nursing Home,3004.32, 14-Feb-2017,
1302,Revenue,CAHD,South Glos Users in South Glos Homes,Permanent Nursing,Glebe House Nursing Home,625.00, 14-Feb-2017,
1303,Revenue,CAHD,South Glos Users in South Glos Homes,Permanent Nursing,Glebe House Nursing Home,625.00, 14-Feb-2017,
1304,Revenue,CAHD,South Glos Users in South Glos Homes,Permanent Nursing,Glebe House Nursing Home,625.00, 14-Feb-2017,
1305,Revenue,CAHD,South Glos Users in South Glos Homes,Permanent Nursing,Glebe House Nursing Home,625.00, 14-Feb-2017,
1306,Revenue,CAHD,South Glos Users in South Glos Homes,Permanent Nursing,Glebe House Nursing Home,625.00, 14-Feb-2017,
1307,Revenue,CAHD,South Glos Users in South Glos Homes,Permanent Nursing,Glebe House Nursing Home,625.00, 14-Feb-2017,
1308,Revenue,CAHD,South Glos Users in South Glos Homes,Permanent Nursing,Glebe House Nursing Home,625.00, 14-Feb-2017,
1309,Revenue,CAHD,Bed Purchasing - South,Permanent Residential,Glebe House Nursing Home,19682.14, 14-Feb-2017,
1310,Revenue,CAHD,Bed Purchasing - South,Permanent Residential,Glebe House Nursing Home,9900.00, 14-Feb-2017,
1311,Revenue,CAHD,Bed Purchasing - South,Fees & Charges Income - General,Glebe House Nursing Home,2128.92, 14-Feb-2017,
1312,Revenue,CAHD,Bed Purchasing - South,Fees & Charges Income - General,Glebe House Nursing Home,4056.00, 14-Feb-2017,
1313,Revenue,CAHD,Bed Purchasing - South,Fees & Charges Income - General,Glebe House Nursing Home,4257.84, 14-Feb-2017,
1314,Revenue,CAHD,Bed Purchasing - South,Fees & Charges Income - General,Glebe House Nursing Home,8112.00, 14-Feb-2017,
1315,Revenue,CAHD,Bed Purchasing - South,Permanent Residential,Glebe House Nursing Home,3182.14, 14-Feb-2017,
1316,Revenue,CAHD,Bed Purchasing - South,Fees & Charges Income - General,Glebe House Nursing Home,1878.43, 14-Feb-2017,
1317,Revenue,CAHD,Bed Purchasing - South,Fees & Charges Income - General,Glebe House Nursing Home,1303.71, 14-Feb-2017,
1318,Revenue,CAHD,Bed Purchasing - South,Permanent Residential,Glebe House Nursing Home,3300.00, 14-Feb-2017,
1319,Revenue,CAHD,Bed Purchasing - South,Fees & Charges Income - General,Glebe House Nursing Home,966.68, 14-Feb-2017,
1320,Revenue,CAHD,Bed Purchasing - South,Fees & Charges Income - General,Glebe House Nursing Home,709.64, 14-Feb-2017,
1321,Revenue,CAHD,Bed Purchasing - South,Fees & Charges Income - General,Glebe House Nursing Home,981.32, 14-Feb-2017,
1322,Revenue,CAHD,Bed Purchasing - South,Fees & Charges Income - General,Glebe House Nursing Home,1352.00, 14-Feb-2017,
1323,Revenue,CAHD,Bed Purchasing - South,Fees & Charges Income - General,Glebe House Nursing Home,1352.00, 14-Feb-2017,
1324,Revenue,CAHD,Bed Purchasing - South,Fees & Charges Income - General,Glebe House Nursing Home,4967.48, 14-Feb-2017,
1325,Revenue,CAHD,Bed Purchasing - South,Fees & Charges Income - General,Glebe House Nursing Home,9464.00, 14-Feb-2017,
1326,Revenue,CAHD,South Glos Users in South Glos Homes,Permanent Nursing,Glebe House Nursing Home,625.00, 14-Feb-2017,
1327,Revenue,CAHD,Bed Purchasing - North,Permanent Nursing,Glebe House Nursing Home,2702.48, 14-Feb-2017,
1328,Revenue,CAHD,South Glos Users in South Glos Homes,Permanent Nursing,Glebe House Nursing Home,625.00, 14-Feb-2017,
1329,Revenue,CAHD,South Glos Users in South Glos Homes,Permanent Nursing,Glebe House Nursing Home,2924.11, 14-Feb-2017,
1330,Revenue,CAHD,South Glos Users in South Glos Homes,Permanent Nursing,Glebe House Nursing Home,625.00, 14-Feb-2017,
1331,Revenue,CAHD,South Glos Users in South Glos Homes,Permanent Nursing,Glebe House Nursing Home,625.00, 14-Feb-2017,
1332,Revenue,CAHD,Bed Purchasing - North,Permanent Nursing,Glebe House Nursing Home,3175.00, 14-Feb-2017,
1333,Revenue,CAHD,South Glos Users in South Glos Homes,Permanent Nursing,Glebe House Nursing Home,1941.96, 14-Feb-2017,
1334,Revenue,CAHD,South Glos Users in South Glos Homes,Permanent Nursing,Glebe House Nursing Home,625.00, 14-Feb-2017,
1335,Revenue,CAHD,South Glos Users in South Glos Homes,Permanent Nursing,Glebe House Nursing Home,625.00, 14-Feb-2017,
1336,Revenue,CAHD,South Glos Users in South Glos Homes,Permanent Nursing,Glebe House Nursing Home,625.00, 14-Feb-2017,
1337,Revenue,CAHD,South Glos Users in South Glos Homes,Permanent Nursing,Glebe House Nursing Home,625.00, 14-Feb-2017,
1338,Revenue,CAHD,Sexual Health,Other Small Contracts,Gloucestershire Care Services NHST,595.07, 03-Feb-2017,
1339,Revenue,CAHD,Bed Purchasing - South,Permanent Residential,Goldcare House,2941.04, 14-Feb-2017,
1340,Revenue,CAHD,Bed Purchasing - South,Permanent Residential,Gordena Care Home,2511.44, 14-Feb-2017,
1341,Revenue,CAHD,Bed Purchasing - South,Permanent Residential,Gordena Care Home,3575.56, 14-Feb-2017,
1342,Revenue,CAHD,Bed Purchasing - South,Permanent Residential,Gordena Care Home,2507.36, 14-Feb-2017,
1343,Revenue,CAHD,Bed Purchasing - South,Permanent Residential,Gordena Care Home,4168.80, 14-Feb-2017,
1344,Revenue,CAHD,Bed Purchasing - South,Permanent Residential,Gordena Care Home,3586.44, 14-Feb-2017,
1345,Revenue,CAHD,Bed Purchasing - South,Permanent Residential,Gordena Care Limited,4686.28, 14-Feb-2017,
1346,Revenue,CAHD,Bed Purchasing - South,Permanent Residential,Gordena Care Limited,4647.04, 14-Feb-2017,
1347,Revenue,CAHD,Bed purchasing - S28A Under 65 - South,Permanent Residential,Gordena Care Limited,4557.68, 14-Feb-2017,
1348,Revenue,CAHD,Bed Purchasing - North,Permanent Residential,Gordena Care Limited,4750.12, 14-Feb-2017,
1349,Revenue,CAHD,Bed Purchasing - South,Permanent Nursing,Gracefields Nursing Home,2454.60, 14-Feb-2017,
1350,Revenue,CAHD,South Glos Users in South Glos Homes,Permanent Nursing,Gracefields Nursing Home,625.00, 14-Feb-2017,
1351,Revenue,CAHD,South Glos Users in South Glos Homes,Permanent Nursing,Gracefields Nursing Home,625.00, 14-Feb-2017,
1352,Revenue,CAHD,Bed Purchasing - Southmead Hospital,Permanent Nursing,Gracefields Nursing Home,2414.28, 14-Feb-2017,
1353,Revenue,CAHD,South Glos Users in South Glos Homes,Permanent Nursing,Gracefields Nursing Home,625.00, 14-Feb-2017,
1354,Revenue,CAHD,South Glos Users in South Glos Homes,Permanent Nursing,Gracefields Nursing Home,625.00, 14-Feb-2017,
1355,Revenue,CAHD,Bed purchasing - Elderly S117 - South,Permanent Nursing,Gracefields Nursing Home,2414.28, 14-Feb-2017,
1356,Revenue,CAHD,South Glos Users in South Glos Homes,Permanent Nursing,Gracefields Nursing Home,625.00, 14-Feb-2017,
1357,Revenue,CAHD,South Glos Users in South Glos Homes,Permanent Nursing,Gracefields Nursing Home,1941.96, 14-Feb-2017,
1358,Revenue,CAHD,South Glos Users in South Glos Homes,Permanent Nursing,Gracefields Nursing Home,625.00, 14-Feb-2017,
1359,Revenue,CAHD,South Glos Users in South Glos Homes,Permanent Nursing,Gracefields Nursing Home,625.00, 14-Feb-2017,
1360,Revenue,CAHD,South Glos Users in South Glos Homes,Permanent Nursing,Gracefields Nursing Home,625.00, 14-Feb-2017,
1361,Revenue,CAHD,Bed Purchasing - South,Permanent Nursing,Gracefields Nursing Home,3055.00, 14-Feb-2017,
1362,Revenue,CAHD,South Glos Users in South Glos Homes,Permanent Nursing,Gracefields Nursing Home,625.00, 14-Feb-2017,
1363,Revenue,CAHD,South Glos Users in South Glos Homes,Permanent Nursing,Gracefields Nursing Home,625.00, 14-Feb-2017,
1364,Revenue,CAHD,South Glos Users in South Glos Homes,Permanent Nursing,Gracefields Nursing Home,625.00, 14-Feb-2017,
1365,Revenue,CAHD,South Glos Users in South Glos Homes,Permanent Nursing,Gracefields Nursing Home,625.00, 14-Feb-2017,
1366,Revenue,CAHD,South Glos Users in South Glos Homes,Permanent Nursing,Gracefields Nursing Home,625.00, 14-Feb-2017,
1367,Revenue,CAHD,South Glos Users in South Glos Homes,Permanent Nursing,Gracefields Nursing Home,625.00, 14-Feb-2017,
1368,Revenue,CAHD,South Glos Users in South Glos Homes,Permanent Nursing,Gracefields Nursing Home,625.00, 14-Feb-2017,
1369,Revenue,CAHD,South Glos Users in South Glos Homes,Permanent Nursing,Gracefields Nursing Home,625.00, 14-Feb-2017,
1370,Revenue,CAHD,South Glos Users in South Glos Homes,Permanent Nursing,Gracefields Nursing Home,625.00, 14-Feb-2017,
1371,Revenue,CAHD,South Glos Users in South Glos Homes,Permanent Nursing,Gracefields Nursing Home,625.00, 14-Feb-2017,
1372,Revenue,CAHD,South Glos Users in South Glos Homes,Permanent Nursing,Gracefields Nursing Home,625.00, 14-Feb-2017,
1373,Revenue,CAHD,Bed Purchasing - Southmead Hospital,Permanent Nursing,Gracefields Nursing Home,2755.00, 14-Feb-2017,
1374,Revenue,CAHD,Bed Purchasing - Southmead Hospital,Permanent Nursing,Gracefields Nursing Home,3055.00, 14-Feb-2017,
1375,Revenue,CAHD,South Glos Users in South Glos Homes,Permanent Nursing,Gracefields Nursing Home,625.00, 14-Feb-2017,
1376,Revenue,CAHD,South Glos Users in South Glos Homes,Permanent Nursing,Gracefields Nursing Home,625.00, 14-Feb-2017,
1377,Revenue,CAHD,South Glos Users in South Glos Homes,Permanent Nursing,Gracefields Nursing Home,580.36, 14-Feb-2017,
1378,Revenue,CAHD,South Glos Users in South Glos Homes,Permanent Nursing,Gracefields Nursing Home,5758.93, 14-Feb-2017,
1379,Revenue,CAHD,Bed Purchasing - South,Permanent Nursing,Gracefields Nursing Home,2932.00, 14-Feb-2017,
1380,Revenue,CAHD,South Glos Users in South Glos Homes,Permanent Nursing,Gracefields Nursing Home,625.00, 14-Feb-2017,
1381,Revenue,CAHD,South Glos Users in South Glos Homes,Permanent Nursing,Gracefields Nursing Home,625.00, 14-Feb-2017,
1382,Revenue,CAHD,South Glos Users in South Glos Homes,Permanent Nursing,Gracefields Nursing Home,625.00, 14-Feb-2017,
1383,Revenue,CAHD,South Glos Users in South Glos Homes,Permanent Nursing,Gracefields Nursing Home,625.00, 14-Feb-2017,
1384,Revenue,CAHD,South Glos Users in South Glos Homes,Permanent Nursing,Gracefields Nursing Home,625.00, 14-Feb-2017,
1385,Revenue,CAHD,Bed Purchasing - South,Permanent Nursing,Gracefields Nursing Home,2414.28, 14-Feb-2017,
1386,Revenue,CAHD,South Glos Users in South Glos Homes,Permanent Nursing,Gracefields Nursing Home,625.00, 14-Feb-2017,
1387,Revenue,CAHD,South Glos Users in South Glos Homes,Permanent Nursing,Gracefields Nursing Home,625.00, 14-Feb-2017,
1388,Revenue,CAHD,Bed Purchasing - South,Permanent Nursing,Gracefields Nursing Home,2832.00, 14-Feb-2017,
1389,Revenue,CAHD,South Glos Users in South Glos Homes,Permanent Nursing,Gracefields Nursing Home,625.00, 14-Feb-2017,
1390,Revenue,CAHD,Bed Purchasing - Southmead Hospital,Permanent Nursing,Gracefields Nursing Home,3055.00, 14-Feb-2017,
1391,Revenue,CAHD,South Glos Users in South Glos Homes,Permanent Nursing,Gracefields Nursing Home,625.00, 14-Feb-2017,
1392,Revenue,CAHD,Bed Purchasing - Southmead Hospital,Permanent Nursing,Gracefields Nursing Home,18731.25, 14-Feb-2017,
1393,Revenue,CAHD,Bed Purchasing - Southmead Hospital,Permanent Nursing,Gracefields Nursing Home,2081.25, 14-Feb-2017,
1394,Revenue,CAHD,Bed Purchasing - Southmead Hospital,Fees & Charges Income - General,Gracefields Nursing Home,18632.14, 14-Feb-2017,
1395,Revenue,CAHD,Bed Purchasing - Southmead Hospital,Permanent Nursing,Gracefields Nursing Home,18731.25, 14-Feb-2017,
1396,Revenue,CAHD,Bed Purchasing - Southmead Hospital,Fees & Charges Income - General,Gracefields Nursing Home,3510.23, 14-Feb-2017,
1397,Revenue,CAHD,Bed Purchasing - Southmead Hospital,Permanent Nursing,Gracefields Nursing Home,2414.28, 14-Feb-2017,
1398,Revenue,CAHD,South Glos Users in South Glos Homes,Permanent Nursing,Gracefields Nursing Home,625.00, 14-Feb-2017,
1399,Revenue,CAHD,Bed Purchasing - Southmead Hospital,Permanent Residential,Granada House Residential Home,1831.32, 14-Feb-2017,
1400,Revenue,CAHD,Bed Purchasing - North,Permanent Residential,Greensleeves,2010.60, 14-Feb-2017,
1401,Revenue,CAHD,Bed Purchasing - Southmead Hospital,Respite Planned - Residential,Grove Care,2800.00, 14-Feb-2017,
1402,Revenue,CAHD,Bed Purchasing - Southmead Hospital,Respite Planned - Residential,Grove Care,1200.00, 14-Feb-2017,
1403,Revenue,CAHD,Bed Purchasing - South,Permanent Residential,Gwendoline House,2209.64, 14-Feb-2017,
1404,Revenue,CAHD,Bed Purchasing - Southmead Hospital,Permanent Residential,Gwendoline House,2205.60, 14-Feb-2017,
1405,Revenue,CAHD,Bed Purchasing - South,Permanent Residential,Gwendoline House,2209.64, 14-Feb-2017,
1406,Revenue,CAHD,Bed Purchasing - South,Permanent Residential,Gwendoline House,1959.68, 14-Feb-2017,
1407,Revenue,CAHD,Bed Purchasing - Southmead Hospital,Permanent Residential,Gwendoline House,2008.00, 14-Feb-2017,
1408,Revenue,CAHD,Supporting People Programme,Grants to Voluntary Bodies,Habinteg Housing Association,666.00, 01-Feb-2017,
1409,Revenue,CAHD,Social Lettings Agency,Fees - General,Individual,16.46, 27-Feb-2017,
1410,Revenue,CAHD,Social Lettings Agency,Other Supplies & Services,Individual,559.60, 27-Feb-2017,
1411,Revenue,CAHD,CSC - Through & Leaving Care Team,Agency Staff (Admin/Support Staff) Pay,Hampton`s Resourcing,1431.00, 13-Feb-2017,
1412,Revenue,CAHD,CSC - Through & Leaving Care Team,Agency Staff (Admin/Support Staff) Pay,Hampton`s Resourcing,1998.00, 14-Feb-2017,
1413,Revenue,CAHD,CSC - Through & Leaving Care Team,Agency Staff (Admin/Support Staff) Pay,Hampton`s Resourcing,1998.00, 21-Feb-2017,
1414,Revenue,CAHD,CSC - Through & Leaving Care Team,Agency Staff (Admin/Support Staff) Pay,Hampton`s Resourcing,1998.00, 28-Feb-2017,
1415,Revenue,CAHD,Breakthrough and Inclusion Work,Project Funding,Hands Free Computing Ltd,735.00, 22-Feb-2017,
1416,Revenue,CAHD,Sexual Health,Other Small Contracts,Hanham Health,2353.80, 20-Feb-2017,
1417,Revenue,CAHD,Supporting People Programme,Grants to Voluntary Bodies,Hanover Housing Association,996.16, 01-Feb-2017,
1418,Revenue,CAHD,Home Care - Elderly - North,Other Supplies & Services,Hanover Housing Association,1869.25, 28-Feb-2017,
1419,Revenue,CAHD,Bed Purchasing - South,Permanent Residential,Harefield Hall,2663.84, 14-Feb-2017,
1420,Revenue,CAHD,Bed Purchasing - South,Permanent Residential,Harefield Hall,2351.36, 14-Feb-2017,
1421,Revenue,CAHD,Bed Purchasing - South,Permanent Residential,Harefield Hall,2635.36, 14-Feb-2017,
1422,Revenue,CAHD,Bed Purchasing - South,Permanent Residential,Harefield Hall,2224.04, 14-Feb-2017,
1423,Revenue,CAHD,Bed Purchasing - South,Permanent Residential,Harefield Hall,2412.12, 14-Feb-2017,
1424,Revenue,CAHD,Bed Purchasing - South,Permanent Residential,Harefield Hall,2561.36, 14-Feb-2017,
1425,Revenue,CAHD,Home Care Monitoring (CM2000),Other Supplies & Services,HAS Technology Limited T/A CM2000,9432.36, 27-Feb-2017,
1426,Revenue,CAHD,CSC - LAT Placements,Day Care / Social Activities,Hazel Lomas,628.35, 17-Feb-2017,
1427,Revenue,CAHD,Bed Purchasing - Southmead Hospital,Respite Planned - Nursing,Hazelwood Gardens Nursing Home,1257.14, 14-Feb-2017,
1428,Revenue,CAHD,Bed Purchasing - Southmead Hospital,Respite Planned - Nursing,Hazelwood Gardens Nursing Home,685.71, 14-Feb-2017,
1429,Revenue,CAHD,Bed Purchasing - Southmead Hospital,Permanent Nursing,Hazelwood Gardens Nursing Home,2217.04, 14-Feb-2017,
1430,Revenue,CAHD,Bed Purchasing - Southmead Hospital,Permanent Nursing,Hc-One Ltd,2182.88, 14-Feb-2017,
1431,Revenue,CAHD,Bed Purchasing - Southmead Hospital,Respite Planned - Residential,Hc-One Ltd,1377.03, 14-Feb-2017,
1432,Revenue,CAHD,Bed Purchasing - Southmead Hospital,Permanent Nursing,Hc-One Ltd,2107.84, 14-Feb-2017,
1433,Revenue,CAHD,Bed Purchasing - North,Permanent Nursing,Hc-One Ltd,2103.28, 14-Feb-2017,
1434,Revenue,CAHD,Bed Purchasing - North,Permanent Nursing,Hc-One Ltd,2089.20, 14-Feb-2017,
1435,Revenue,CAHD,Bed Purchasing - Southmead Hospital,Permanent Nursing,Hc-One Ltd,2103.28, 14-Feb-2017,
1436,Revenue,CAHD,Bed Purchasing - Southmead Hospital,Permanent Nursing,Hc-One Ltd,3079.80, 14-Feb-2017,
1437,Revenue,CAHD,Bed Purchasing - Southmead Hospital,Fees & Charges Income - General,Hc-One Ltd,1133.36, 14-Feb-2017,
1438,Revenue,CAHD,Bed Purchasing - Southmead Hospital,Fees & Charges Income - General,Hc-One Ltd,1584.11, 14-Feb-2017,
1439,Revenue,CAHD,Bed Purchasing - South,Permanent Residential,Hc-One Ltd,2112.00, 14-Feb-2017,
1440,Revenue,CAHD,Bed Purchasing - Southmead Hospital,Permanent Nursing,Hc-One Ltd,2728.28, 14-Feb-2017,
1441,Revenue,CAHD,Bed Purchasing - North,Permanent Nursing,Hc-One Ltd,5258.20, 14-Feb-2017,
1442,Revenue,CAHD,Bed Purchasing - Southmead Hospital,Fees & Charges Income - General,Hc-One Ltd,522.80, 14-Feb-2017,
1443,Revenue,CAHD,Bed Purchasing - Southmead Hospital,Respite Emergency - Nursing,Hc-One Ltd,2103.28, 14-Feb-2017,
1444,Revenue,CAHD,Bed Purchasing - Southmead Hospital,Respite Emergency - Residential,Hc-One Ltd,1427.23, 14-Feb-2017,
1445,Revenue,CAHD,Bed Purchasing - North,Respite Emergency - Residential,Hc-One Ltd,5250.00, 14-Feb-2017,
1446,Revenue,CAHD,Bed Purchasing - North,Respite Emergency - Nursing,Hc-One Ltd,975.00, 14-Feb-2017,
1447,Revenue,CAHD,Bed Purchasing - Southmead Hospital,Permanent Nursing,Hc-One Ltd,2728.28, 14-Feb-2017,
1448,Revenue,CAHD,Bed Purchasing - North,Respite Planned - Residential,Hc-One Ltd,743.70, 14-Feb-2017,
1449,Revenue,CAHD,Bed Purchasing - Southmead Hospital,Permanent Nursing,Hc-One Ltd,2527.92, 14-Feb-2017,
1450,Revenue,CAHD,Bed Purchasing - Southmead Hospital,Permanent Residential,Head Office,2229.92, 14-Feb-2017,
1451,Revenue,CAHD,Home Care - Elderly - South,Day Care / Social Activities,Headway Bristol,991.38, 06-Feb-2017,
1452,Revenue,CAHD,Home Care - Elderly - South,Other Small Contracts,Headway Bristol,341.12, 06-Feb-2017,
1453,Revenue,CAHD,Home Care - Elderly - North,Day Care / Social Activities,Headway Bristol,644.93, 06-Feb-2017,
1454,Revenue,CAHD,Home Care - Elderly - North,Other Small Contracts,Headway Bristol,191.88, 06-Feb-2017,
1455,Revenue,CAHD,Home Care - Elderly - South,Day Care / Social Activities,Headway Bristol,703.56, 13-Feb-2017,
1456,Revenue,CAHD,Home Care - Elderly - South,Other Small Contracts,Headway Bristol,421.07, 13-Feb-2017,
1457,Revenue,CAHD,Home Care - Elderly - North,Day Care / Social Activities,Headway Bristol,698.23, 13-Feb-2017,
1458,Revenue,CAHD,Home Care - Elderly - North,Other Small Contracts,Headway Bristol,191.88, 13-Feb-2017,
1459,Revenue,CAHD,Home Care - Elderly - South,Day Care / Social Activities,Headway Bristol,852.80, 20-Feb-2017,
1460,Revenue,CAHD,Home Care - Elderly - South,Other Small Contracts,Headway Bristol,426.40, 20-Feb-2017,
1461,Revenue,CAHD,Home Care - Elderly - North,Day Care / Social Activities,Headway Bristol,788.84, 20-Feb-2017,
1462,Revenue,CAHD,Home Care - Elderly - North,Other Small Contracts,Headway Bristol,191.88, 20-Feb-2017,
1463,Revenue,CAHD,Home Care - Elderly - South,Day Care / Social Activities,Headway Bristol,740.87, 28-Feb-2017,
1464,Revenue,CAHD,Home Care - Elderly - South,Other Small Contracts,Headway Bristol,533.00, 28-Feb-2017,
1465,Revenue,CAHD,Home Care - Elderly - North,Day Care / Social Activities,Headway Bristol,698.23, 28-Feb-2017,
1466,Revenue,CAHD,Home Care - Elderly - North,Other Small Contracts,Headway Bristol,165.23, 28-Feb-2017,
1467,Revenue,CAHD,Home Care - Elderly - North,Other Small Contracts,Helping Hands Homecare,7330.56, 02-Feb-2017,
1468,Revenue,CAHD,Home Care - Elderly - South,Other Small Contracts,Helping Hands Homecare,910.52, 03-Feb-2017,
1469,Revenue,CAHD,Home Care - Elderly - North,Day Care / Social Activities,Helping Hands Homecare,123.76, 03-Feb-2017,
1470,Revenue,CAHD,Home Care - Elderly - North,Other Small Contracts,Helping Hands Homecare,1917.54, 03-Feb-2017,
1471,Revenue,CAHD,S117 Placements PCT,Permanent Residential,Hesley Hall,18656.52, 14-Feb-2017,
1472,Revenue,CAHD,Bed Purchasing - North,Permanent Residential,High Border Lodge,1976.00, 14-Feb-2017,
1473,Revenue,CAHD,Bed Purchasing - Southmead Hospital,Permanent Residential,Highfield House,2121.00, 14-Feb-2017,
1474,Revenue,CAHD,Bed Purchasing - Southmead Hospital,Permanent Residential,Highgate Studios,2348.16, 14-Feb-2017,
1475,Revenue,CAHD,Bed Purchasing - North,Permanent Residential,Holmleigh Care Homes Ltd,4520.36, 14-Feb-2017,
1476,Revenue,CAHD,Bed Purchasing - South,Permanent Residential,Holmleigh Care Homes Ltd,4318.00, 14-Feb-2017,
1477,Revenue,CAHD,Jointly Funded H&SC Packages,Permanent Residential,Holmleigh Care Homes Ltd,1237.08, 14-Feb-2017,
1478,Revenue,CAHD,Bed Purchasing - North,Permanent Residential,Home Farm Trust Ltd  5-6 Brook Office Pa,3273.68, 14-Feb-2017,
1479,Revenue,CAHD,Bed Purchasing - South,Permanent Residential,Home Farm Trust Ltd  5-6 Brook Office Pa,748.95, 14-Feb-2017,
1480,Revenue,CAHD,Bed Purchasing - North,Permanent Residential,Home Farm Trust Ltd  5-6 Brook Office Pa,3802.88, 14-Feb-2017,
1481,Revenue,CAHD,18-25 Year Olds,Permanent Residential,Home From Home Care Ltd,9615.76, 14-Feb-2017,
1482,Revenue,CAHD,Home Care - Elderly - South,Other Small Contracts,Homecare 4U,172.38, 08-Feb-2017,
1483,Revenue,CAHD,Home Care - Elderly - North,Other Small Contracts,Homecare 4U,994.50, 08-Feb-2017,
1484,Revenue,CAHD,Home Care - Elderly - South,Other Small Contracts,Homecare 4U,172.38, 08-Feb-2017,
1485,Revenue,CAHD,Home Care - Elderly - North,Other Small Contracts,Homecare 4U,857.48, 08-Feb-2017,
1486,Revenue,CAHD,Home Care - Elderly - South,Other Small Contracts,Homecare 4U,172.38, 07-Feb-2017,
1487,Revenue,CAHD,Home Care - Elderly - North,Other Small Contracts,Homecare 4U,751.40, 07-Feb-2017,
1488,Revenue,CAHD,Home Care - Elderly - South,Other Small Contracts,Homecare 4U,198.90, 14-Feb-2017,
1489,Revenue,CAHD,Home Care - Elderly - North,Other Small Contracts,Homecare 4U,424.32, 14-Feb-2017,
1490,Revenue,CAHD,Bed Purchasing - North,Permanent Residential,Homes Caring For Autism Ltd  Churchill H,8071.00, 14-Feb-2017,
1491,Revenue,CAHD,Jointly Funded H&SC Packages,Permanent Residential,Homes Caring For Autism Ltd  Churchill H,2438.64, 14-Feb-2017,
1492,Revenue,CAHD,18-25 Year Olds,Permanent Residential,Homes Caring For Autism Ltd  Churchill H,5691.32, 14-Feb-2017,
1493,Revenue,CAHD,Jointly Funded H&SC Packages,Permanent Residential,Homes Caring For Autism Ltd  Churchill H,7936.08, 14-Feb-2017,
1494,Revenue,CAHD,Bed Purchasing - Southmead Hospital,Permanent Nursing,Horfield Care Limited,1493.76, 07-Feb-2017,
1495,Revenue,CAHD,Bed Purchasing - Southmead Hospital,Permanent Nursing,Horfield Care Limited,1877.05, 07-Feb-2017,
1496,Revenue,CAHD,Bed Purchasing - Southmead Hospital,Permanent Nursing,Horfield Care Limited,1381.58, 07-Feb-2017,
1497,Revenue,CAHD,Bed Purchasing - South,Permanent Nursing,Horfield Care Limited,1379.37, 07-Feb-2017,
1498,Revenue,CAHD,Bed Purchasing - South,Respite Emergency - Nursing,Horfield Care Limited,1401.02, 07-Feb-2017,
1499,Revenue,CAHD,Home Care - Elderly - North,Day Care / Social Activities,Housing & Care 21,1221.68, 09-Feb-2017,
1500,Revenue,CAHD,Home Care - Elderly - North,Day Care / Social Activities,Housing & Care 21,1237.60, 07-Feb-2017,
1501,Revenue,CAHD,Supporting People Programme,Grants to Voluntary Bodies,Housing 21,631.50, 01-Feb-2017,
1502,Revenue,CAHD,Supporting People Programme,Grants to Voluntary Bodies,Housing 21,957.66, 01-Feb-2017,
1503,Revenue,CAHD,Extra Care Housing,Private & Voluntary Home Care,Housing 21,40614.39, 10-Feb-2017,
1504,Revenue,CAHD,Extra Care Housing,Private & Voluntary Home Care,Housing 21,25849.77, 01-Feb-2017,
1505,Revenue,CAHD,Hospital Promoting Independence Team,Other Supplies & Services,Hypertec Limited,900.00, 20-Feb-2017,
1506,Revenue,CAHD,SEN High Needs - Not at School Base,Other Private Contractors,Impact Mentoring,3000.00, 02-Feb-2017,
1507,Revenue,CAHD,SEN High Needs - Not at School Base,Other Private Contractors,Impact Mentoring,2400.00, 02-Feb-2017,
1508,Revenue,CAHD,SEN High Needs - Not at School Base,Other Private Contractors,Impact Mentoring,3300.00, 02-Feb-2017,
1509,Revenue,CAHD,SEN High Needs - Not at School Base,Other Private Contractors,Impact Mentoring,4800.00, 02-Feb-2017,
1510,Revenue,CAHD,SEN High Needs - Not at School Base,Other Private Contractors,Impact Mentoring,1800.00, 02-Feb-2017,
1511,Revenue,CAHD,SEN High Needs - Not at School Base,Other Private Contractors,Impact Mentoring,3150.00, 16-Feb-2017,
1512,Revenue,CAHD,CSC - Vinney Green Secure Unit,Premises Maintenance by Contractor,Integral UK Limited,17200.00, 07-Feb-2017,
1513,Revenue,CAHD,CSC - Vinney Green Secure Unit,Premises Maintenance by Contractor,Integral UK Limited,4300.00, 15-Feb-2017,
1514,Revenue,CAHD,CSC - Vinney Green Secure Unit,Premises Maintenance by Contractor,Integral UK Limited,1212.87, 17-Feb-2017,
1515,Revenue,CAHD,CSC - Adoption Support Fund,Post Adoption,Intramosaic Counselling and Psychotherapy Limited,970.45, 21-Feb-2017,
1516,Revenue,CAHD,Care Management Team - South,Agency Staff (Operational)/PCT Pay,IPE,812.51, 10-Feb-2017,
1517,Revenue,CAHD,Social Lettings Agency,Fees - General,Individual,12.22, 10-Feb-2017,
1518,Revenue,CAHD,Social Lettings Agency,Other Supplies & Services,Individual,592.32, 10-Feb-2017,
1519,Revenue,CAHD,Tenancy Start Up Scheme,Other Supplies & Services,Individual,800.00, 17-Feb-2017,
1520,Revenue,CAHD,Implementation of Education Commission,Consultants Fees,Jane Davies School Improvement Limited,778.00, 17-Feb-2017,
1521,Revenue,CAHD,Social Lettings Agency,Fees - General,Individual,10.53, 01-Feb-2017,
1522,Revenue,CAHD,Social Lettings Agency,Other Supplies & Services,Individual,595.11, 01-Feb-2017,
1523,Revenue,CAHD,"Education, Learning and Skills",Consultants Fees,Jenny Sutton-Kirby,1440.00, 20-Feb-2017,
1524,Revenue,CAHD,ASSIST - Health Promotion in Schools,Other Supplies & Services,Jigsaw PSHE Ltd,5500.00, 02-Feb-2017,
1525,Revenue,CAHD,ASSIST - Health Promotion in Schools,Other Supplies & Services,Jigsaw PSHE Ltd,1000.00, 13-Feb-2017,
1526,Revenue,CAHD,Bed Purchasing - South,Permanent Residential,Jonen House,4026.92, 14-Feb-2017,
1527,Revenue,CAHD,CSC - Care Leavers Independent Living,Adults - Family Support,Jordan Xavier Ltd,2957.14, 01-Feb-2017,
1528,Revenue,CAHD,Virtual School for Looked After Children,Consultants Fees,Judith Mee Education,1600.00, 10-Feb-2017,
1529,Revenue,CAHD,Virtual School for Looked After Children,Consultants Fees,Judith Mee Education,3600.00, 10-Feb-2017,
1530,Revenue,CAHD,Home Care - Elderly - South,Supported Living,Julia Simone- Supp. Ind.,1194.40, 14-Feb-2017,
1531,Revenue,CAHD,Younger MH non-res purchasing,Supported Living,Julia Simone- Supp. Ind.,1194.40, 14-Feb-2017,
1532,Revenue,CAHD,Younger MH non-res purchasing,Supported Living,Julia Simone- Supp. Ind.,1194.40, 14-Feb-2017,
1533,Revenue,CAHD,Home Care - Elderly - North,Supported Living,Julia Simone- Supp. Ind.,1228.80, 14-Feb-2017,
1534,Revenue,CAHD,Younger MH non-res purchasing,Supported Living,Julia Simone- Supp. Ind.,1194.24, 14-Feb-2017,
1535,Revenue,CAHD,Section 117 Placements MH Younger,Supported Living,Julia Simone- Supp. Ind.,1178.36, 14-Feb-2017,
1536,Revenue,CAHD,Section 117 Placements MH Younger,Supported Living,Julia Simone- Supp. Ind.,631.26, 14-Feb-2017,
1537,Revenue,CAHD,Younger MH non-res purchasing,Supported Living,Julia Simone- Supp. Ind.,1194.36, 14-Feb-2017,
1538,Revenue,CAHD,Bed Purchasing - South,Permanent Residential,Julia Simone- Supp. Ind.,4417.88, 14-Feb-2017,
1539,Revenue,CAHD,Bed purchasing -S28A  Under 65 - North,Permanent Residential,Julia Simone- Supp. Ind.,3936.88, 14-Feb-2017,
1540,Revenue,CAHD,CSC - Corporate Parenting Manager,Agency Staff (Admin/Support Staff) Pay,Karen Gazzard,5200.00, 14-Feb-2017,
1541,Revenue,CAHD,Statemented Support Payments to OLAs,Other L.A.'s - General,Katharine Lady Berkeley School,533.30, 28-Feb-2017,
1542,Revenue,CAHD,Sexual Health,Other Small Contracts,Kennedy Way Surgery,1053.00, 20-Feb-2017,
1543,Revenue,CAHD,Bed Purchasing - Southmead Hospital,Permanent Residential,Kenver House Residential Home,2220.08, 14-Feb-2017,
1544,Revenue,CAHD,Bed Purchasing - Southmead Hospital,Permanent Residential,Kenver House Residential Home,2220.08, 14-Feb-2017,
1545,Revenue,CAHD,Bed Purchasing - Southmead Hospital,Permanent Residential,Kenver House Residential Home,2431.48, 14-Feb-2017,
1546,Revenue,CAHD,Bed Purchasing - South,Permanent Residential,Kenver House Residential Home,2223.12, 14-Feb-2017,
1547,Revenue,CAHD,Bed Purchasing - South,Permanent Residential,Kenver House Residential Home,2220.08, 14-Feb-2017,
1548,Revenue,CAHD,Bed Purchasing - North,Permanent Residential,Kenver House Residential Home,2220.08, 14-Feb-2017,
1549,Revenue,CAHD,Bed Purchasing - Southmead Hospital,Permanent Residential,Kenver House Residential Home,2286.28, 14-Feb-2017,
1550,Revenue,CAHD,Bed Purchasing - South,Permanent Residential,Kenver House Residential Home,2431.48, 14-Feb-2017,
1551,Revenue,CAHD,Bed purchasing - Elderly S117 - South,Permanent Residential,Kenver House Residential Home,2431.48, 14-Feb-2017,
1552,Revenue,CAHD,Bed purchasing - Elderly S117 - South,Permanent Residential,Kenver House Residential Home,1563.09, 14-Feb-2017,
1553,Revenue,CAHD,Bed Purchasing - South,Permanent Residential,Kenver House Residential Home,2431.48, 14-Feb-2017,
1554,Revenue,CAHD,Bed Purchasing - South,Permanent Residential,Kenver House Residential Home,2431.48, 14-Feb-2017,
1555,Revenue,CAHD,Bed Purchasing - North,Respite Emergency - Residential,Kenver House Residential Home,2431.48, 14-Feb-2017,
1556,Revenue,CAHD,Bed Purchasing - North,Permanent Residential,Kenver House Residential Home,955.22, 14-Feb-2017,
1557,Revenue,CAHD,Bed Purchasing - South,Permanent Residential,Kenver House Residential Home,2431.48, 14-Feb-2017,
1558,Revenue,CAHD,Bed Purchasing - South,Permanent Residential,Kenver House Residential Home,2431.48, 14-Feb-2017,
1559,Revenue,CAHD,Bed Purchasing - South,Permanent Residential,Kenver House Residential Home,2220.08, 14-Feb-2017,
1560,Revenue,CAHD,Mental Capacity Act / DOLS,Legal Fees,Kevin Farquharson,450.00, 27-Feb-2017,
1561,Revenue,CAHD,CSC - Care Leavers Independent Living,Adults - Family Support,Key2 Futures Limited,947.05, 20-Feb-2017,
1562,Revenue,CAHD,CSC - Care Leavers Independent Living,Adults - Family Support,Key2 Futures Limited,2430.40, 20-Feb-2017,
1563,Revenue,CAHD,CSC - Care Leavers Independent Living,Adults - Family Support,Key2 Futures Limited,2967.01, 20-Feb-2017,
1564,Revenue,CAHD,CSC - Care Leavers Independent Living,Adults - Family Support,Key2 Futures Limited,2430.40, 20-Feb-2017,
1565,Revenue,CAHD,CSC - Care Leavers Independent Living,Adults - Family Support,Key2 Futures Limited,2967.01, 20-Feb-2017,
1566,Revenue,CAHD,Supporting People Programme,Grants to Voluntary Bodies,Keyring Living Support Networks,2988.58, 01-Feb-2017,
1567,Revenue,CAHD,Bed Purchasing - North,Permanent Residential,Kilkhampton Lodge,17500.00, 14-Feb-2017,
1568,Revenue,CAHD,Grange School Holding Account,Cleaning & Domestic Services,Kingdom Security Ltd,523.96, 21-Feb-2017,
1569,Revenue,CAHD,Grange School Holding Account,Cleaning & Domestic Services,Kingdom Security Ltd,523.96, 21-Feb-2017,
1570,Revenue,CAHD,Grange School Holding Account,Cleaning & Domestic Services,Kingdom Security Ltd,523.96, 21-Feb-2017,
1571,Revenue,CAHD,Grange School Holding Account,Cleaning & Domestic Services,Kingdom Security Ltd,523.96, 09-Feb-2017,
1572,Revenue,CAHD,Bed Purchasing - North,Permanent Nursing,Kingfisher Lodge Care Centre,3286.36, 14-Feb-2017,
1573,Revenue,CAHD,ICES / NRS Contract,Operational Equipment,Kingkraft Limited,4926.00, 20-Feb-2017,
1574,Revenue,CAHD,Sexual Health,Other Small Contracts,Kingswood Health Centre,1951.18, 20-Feb-2017,
1575,Revenue,CAHD,Supporting People Programme,Grants to Voluntary Bodies,Kingswood Young Homeless Project,17359.58, 01-Feb-2017,
1576,Revenue,CAHD,Community Care Contact Centre,Office Supplies & Equipment,Kinnarps UK Limited (Invoice Account),418.25, 22-Feb-2017,
1577,Revenue,CAHD,CSC - Adoption West Project,Consultants Fees,Kirsty Howie,4400.00, 28-Feb-2017,
1578,Revenue,CAHD,Bed Purchasing - North,Permanent Residential,Kisimul Group,12079.48, 14-Feb-2017,
1579,Revenue,CAHD,Supporting People Programme,Grants to Voluntary Bodies,Knightstone Housing Association Limited,2544.33, 01-Feb-2017,
1580,Revenue,CAHD,Supporting People Programme,Grants to Voluntary Bodies,Knightstone Housing Association Limited,865.25, 01-Feb-2017,
1581,Revenue,CAHD,Supporting People Programme,Grants to Voluntary Bodies,Knightstone Housing Association Limited,2543.75, 01-Feb-2017,
1582,Revenue,CAHD,Supporting People Programme,Grants to Voluntary Bodies,Knightstone Housing Association Limited,1833.66, 01-Feb-2017,
1583,Revenue,CAHD,Supporting People Programme,Grants to Voluntary Bodies,Knightstone Housing Association Limited,7789.00, 01-Feb-2017,
1584,Revenue,CAHD,Supporting People Programme,Grants to Voluntary Bodies,Knightstone Housing Association Limited,8747.50, 01-Feb-2017,
1585,Revenue,CAHD,Supporting People Programme,Grants to Voluntary Bodies,Knightstone Housing Association Limited,13845.33, 01-Feb-2017,
1586,Revenue,CAHD,Home Care - Elderly - South,Other Small Contracts,Kumari Care Limited,1726.56, 08-Feb-2017,
1587,Revenue,CAHD,Home Care - Elderly - North,Other Small Contracts,Kumari Care Limited,847.31, 08-Feb-2017,
1588,Revenue,CAHD,Home Care - Elderly - South,Other Small Contracts,Kumari Care Limited,1739.64, 14-Feb-2017,
1589,Revenue,CAHD,Home Care - Elderly - North,Other Small Contracts,Kumari Care Limited,847.31, 14-Feb-2017,
1590,Revenue,CAHD,CSC - Vinney Green Secure Unit,Premises Maintenance by Contractor,Lancer Scott Limited,5237.00, 08-Feb-2017,
1591,Revenue,CAHD,CSC - Vinney Green Secure Unit,Service Contracts (Premises),Lancer Scott Limited,1830.00, 08-Feb-2017,
1592,Revenue,CAHD,CSC - Vinney Green Secure Unit,Other Premises Costs,Lancer Scott Limited,19406.00, 08-Feb-2017,
1593,Revenue,CAHD,CSC - Social Work Team - NORTH,Interpreting & Translation,Language Line Solutions,1162.90, 10-Feb-2017,
1594,Revenue,CAHD,CSC - Social Work Team - NORTH,Interpreting & Translation,Language Line Solutions,1026.55, 10-Feb-2017,
1595,Revenue,CAHD,Bed Purchasing - North,Permanent Nursing,Larchfield Care Home,3029.00, 14-Feb-2017,
1596,Revenue,CAHD,Sexual Health,Other Small Contracts,Leap Valley Surgery,578.12, 20-Feb-2017,
1597,Revenue,CAHD,Bed Purchasing - North,Permanent Residential,Leonard Cheshire  National Account Centr,3414.72, 14-Feb-2017,
1598,Revenue,CAHD,Bed Purchasing - South,Permanent Residential,Leonard Cheshire  National Account Centr,3776.36, 14-Feb-2017,
1599,Revenue,CAHD,Bed Purchasing - North,Permanent Nursing,Leonard Cheshire  National Account Centr,3963.80, 14-Feb-2017,
1600,Revenue,CAHD,Bed Purchasing - North,Permanent Nursing,Leonard Cheshire  National Account Centr,3263.68, 14-Feb-2017,
1601,Revenue,CAHD,18-25 Year Olds,Permanent Residential,Leonard Cheshire  National Account Centr,3709.52, 14-Feb-2017,
1602,Revenue,CAHD,Bed Purchasing - North,Permanent Residential,Leonard Cheshire  National Account Centr,6433.00, 14-Feb-2017,
1603,Revenue,CAHD,Bed Purchasing - North,Permanent Nursing,Leonard Cheshire  National Account Centr,5093.96, 14-Feb-2017,
1604,Revenue,CAHD,Bed Purchasing - North,Permanent Nursing,Leonard Cheshire  National Account Centr,4912.03, 14-Feb-2017,
1605,Revenue,CAHD,Bed Purchasing - North,Permanent Nursing,Leonard Cheshire  National Account Centr,3303.68, 14-Feb-2017,
1606,Revenue,CAHD,Bed Purchasing - North,Permanent Nursing,Leonard Cheshire  National Account Centr,5435.88, 14-Feb-2017,
1607,Revenue,CAHD,Bed Purchasing - North,Permanent Residential,Leonard Cheshire  National Account Centr,3356.88, 14-Feb-2017,
1608,Revenue,CAHD,Bed Purchasing - North,Permanent Nursing,Leonard Cheshire  National Account Centr,3206.68, 14-Feb-2017,
1609,Revenue,CAHD,Bed Purchasing - North,Permanent Nursing,Leonard Cheshire  National Account Centr,5740.64, 14-Feb-2017,
1610,Revenue,CAHD,Bed Purchasing - South,Permanent Nursing,Leonard Cheshire  National Account Centr,3386.96, 14-Feb-2017,
1611,Revenue,CAHD,Bed Purchasing - Southmead Hospital,Permanent Nursing,Leonard Cheshire  National Account Centr,3468.24, 14-Feb-2017,
1612,Revenue,CAHD,South Glos Users in all other LA Homes,Permanent Nursing,Leonard Cheshire  National Account Centr,860.16, 14-Feb-2017,
1613,Revenue,CAHD,Bed Purchasing - North,Permanent Nursing,Leonard Cheshire  National Account Centr,3796.60, 14-Feb-2017,
1614,Revenue,CAHD,Bed Purchasing - North,Permanent Nursing,Leonard Cheshire  National Account Centr,4555.68, 14-Feb-2017,
1615,Revenue,CAHD,Home Care - Elderly - North,Other Small Contracts,Lifeways Community Care (Gloucester) Limited,10686.24, 14-Feb-2017,
1616,Revenue,CAHD,CSC - Allowances,Membership Fees,Link Maker Systems,2200.00, 22-Feb-2017,
1617,Revenue,CAHD,Bed Purchasing - Southmead Hospital,Permanent Residential,Little Croft,1831.32, 14-Feb-2017,
1618,Revenue,CAHD,Bed Purchasing - Southmead Hospital,Permanent Residential,Little Croft,1831.32, 14-Feb-2017,
1619,Revenue,CAHD,Bed Purchasing - North,Permanent Residential,Little Croft,1831.32, 14-Feb-2017,
1620,Revenue,CAHD,Bed Purchasing - South,Permanent Residential,Little Croft,2027.20, 14-Feb-2017,
1621,Revenue,CAHD,Bed Purchasing - Southmead Hospital,Permanent Residential,Little Croft,1831.32, 14-Feb-2017,
1622,Revenue,CAHD,Bed Purchasing - North,Permanent Residential,Little Croft,1831.32, 14-Feb-2017,
1623,Revenue,CAHD,Bed Purchasing - Southmead Hospital,Permanent Residential,Little Croft,2229.92, 14-Feb-2017,
1624,Revenue,CAHD,Bed Purchasing - South,Respite Emergency - Residential,Little Croft,2989.29, 14-Feb-2017,
1625,Revenue,CAHD,Bed Purchasing - South,Permanent Residential,Little Croft,2300.00, 14-Feb-2017,
1626,Revenue,CAHD,Bed Purchasing - Southmead Hospital,Permanent Residential,Little Croft,2700.00, 14-Feb-2017,
1627,Revenue,CAHD,Bed Purchasing - South,Permanent Residential,Little Croft,1831.32, 14-Feb-2017,
1628,Revenue,CAHD,Bed Purchasing - Southmead Hospital,Permanent Residential,Little Croft,2304.52, 14-Feb-2017,
1629,Revenue,CAHD,Bed Purchasing - Southmead Hospital,Permanent Residential,Little Croft,1813.52, 14-Feb-2017,
1630,Revenue,CAHD,Bed Purchasing - Southmead Hospital,Permanent Residential,Little Croft,1989.28, 14-Feb-2017,
1631,Revenue,CAHD,Bed Purchasing - Southmead Hospital,Permanent Residential,Little Croft,2500.00, 14-Feb-2017,
1632,Revenue,CAHD,Bed Purchasing - Southmead Hospital,Permanent Residential,Little Croft,1831.32, 14-Feb-2017,
1633,Revenue,CAHD,Bed Purchasing - South,Permanent Residential,Little Croft,2300.00, 14-Feb-2017,
1634,Revenue,CAHD,Bed Purchasing - Southmead Hospital,Permanent Residential,Little Croft,2200.00, 14-Feb-2017,
1635,Revenue,CAHD,Bed Purchasing - South,Respite Emergency - Residential,Little Croft,1832.14, 14-Feb-2017,
1636,Revenue,CAHD,Bed Purchasing - South,Respite Emergency - Residential,Little Croft,1832.14, 14-Feb-2017,
1637,Revenue,CAHD,Bed Purchasing - Southmead Hospital,Permanent Residential,Little Croft,2700.00, 14-Feb-2017,
1638,Revenue,CAHD,Bed Purchasing - Southmead Hospital,Permanent Residential,Little Croft,2700.00, 14-Feb-2017,
1639,Revenue,CAHD,Bed Purchasing - Southmead Hospital,Permanent Residential,Little Croft,2989.29, 14-Feb-2017,
1640,Revenue,CAHD,Bed Purchasing - Southmead Hospital,Fees & Charges Income - General,Little Croft,560.14, 14-Feb-2017,
1641,Revenue,CAHD,Bed Purchasing - Southmead Hospital,Permanent Residential,Little Croft,2700.00, 14-Feb-2017,
1642,Revenue,CAHD,Bed Purchasing - Southmead Hospital,Permanent Residential,Little Croft,2989.29, 14-Feb-2017,
1643,Revenue,CAHD,Bed Purchasing - Southmead Hospital,Fees & Charges Income - General,Little Croft,586.47, 14-Feb-2017,
1644,Revenue,CAHD,Bed Purchasing - Southmead Hospital,Fees & Charges Income - General,Little Croft,560.14, 14-Feb-2017,
1645,Revenue,CAHD,Bed Purchasing - Southmead Hospital,Permanent Residential,Little Croft,1800.00, 14-Feb-2017,
1646,Revenue,CAHD,Bed Purchasing - South,Permanent Residential,Little Croft,2010.40, 14-Feb-2017,
1647,Revenue,CAHD,Bed Purchasing - Southmead Hospital,Permanent Residential,Little Croft,1831.32, 14-Feb-2017,
1648,Revenue,CAHD,Bed Purchasing - Southmead Hospital,Permanent Residential,Little Croft,1831.32, 14-Feb-2017,
1649,Revenue,CAHD,Bed Purchasing - South,Permanent Residential,Little Croft,2008.00, 14-Feb-2017,
1650,Revenue,CAHD,Bed Purchasing - South,Permanent Residential,Little Croft,2200.00, 14-Feb-2017,
1651,Revenue,CAHD,Bed Purchasing - North,Permanent Residential,Littlecroft Residential Homes  Longcroft,6967.60, 14-Feb-2017,
1652,Revenue,CAHD,18-25 Year Olds,Supported Living,Lloyds TSB Commercial Finance Limited,2878.40, 28-Feb-2017,
1653,Revenue,CAHD,Home Care - Elderly - South,Day Care / Social Activities,Lloyds TSB Commercial Finance Limited,5016.70, 28-Feb-2017,
1654,Revenue,CAHD,Home Care - Elderly - South,Other Small Contracts,Lloyds TSB Commercial Finance Limited,6272.15, 28-Feb-2017,
1655,Revenue,CAHD,Home Care - Elderly - South,Supported Living,Lloyds TSB Commercial Finance Limited,8879.27, 28-Feb-2017,
1656,Revenue,CAHD,Home Care - Elderly - North,Supported Living,Lloyds TSB Commercial Finance Limited,1728.22, 28-Feb-2017,
1657,Revenue,CAHD,Younger MH non-res purchasing,Other Small Contracts,Lloyds TSB Commercial Finance Limited,10809.43, 28-Feb-2017,
1658,Revenue,CAHD,18-25 Year Olds,Supported Living,Lloyds TSB Commercial Finance Limited,2878.40, 28-Feb-2017,
1659,Revenue,CAHD,Home Care - Elderly - South,Day Care / Social Activities,Lloyds TSB Commercial Finance Limited,5502.90, 28-Feb-2017,
1660,Revenue,CAHD,Home Care - Elderly - South,Other Small Contracts,Lloyds TSB Commercial Finance Limited,6555.03, 28-Feb-2017,
1661,Revenue,CAHD,Home Care - Elderly - South,Supported Living,Lloyds TSB Commercial Finance Limited,8558.57, 28-Feb-2017,
1662,Revenue,CAHD,Home Care - Elderly - North,Supported Living,Lloyds TSB Commercial Finance Limited,1980.16, 28-Feb-2017,
1663,Revenue,CAHD,Younger MH non-res purchasing,Other Small Contracts,Lloyds TSB Commercial Finance Limited,10755.65, 28-Feb-2017,
1664,Revenue,CAHD,18-25 Year Olds,Supported Living,Lloyds TSB Commercial Finance Limited,2878.40, 28-Feb-2017,
1665,Revenue,CAHD,Home Care - Elderly - South,Day Care / Social Activities,Lloyds TSB Commercial Finance Limited,5441.02, 28-Feb-2017,
1666,Revenue,CAHD,Home Care - Elderly - South,Other Small Contracts,Lloyds TSB Commercial Finance Limited,6629.98, 28-Feb-2017,
1667,Revenue,CAHD,Home Care - Elderly - South,Supported Living,Lloyds TSB Commercial Finance Limited,8807.98, 28-Feb-2017,
1668,Revenue,CAHD,Home Care - Elderly - North,Supported Living,Lloyds TSB Commercial Finance Limited,1759.16, 28-Feb-2017,
1669,Revenue,CAHD,Younger MH non-res purchasing,Other Small Contracts,Lloyds TSB Commercial Finance Limited,10825.26, 28-Feb-2017,
1670,Revenue,CAHD,CSC - Adoption Support Fund,Post Adoption,Lloyds TSB Commercial Finance Limited,550.00, 17-Feb-2017,
1671,Revenue,CAHD,Turnberries,Other Supplies & Services,Lloyds TSB Commercial Finance Limited,3125.00, 10-Feb-2017,
1672,Revenue,CAHD,CSC - Vinney Green Secure Unit,"Holidays, Outings & Visits",Lloyds TSB Commercial Finance Limited,2086.50, 20-Feb-2017,
1673,Revenue,CAHD,Bed Purchasing - South,Permanent Nursing,Lodge House,16059.46, 14-Feb-2017,
1674,Revenue,CAHD,Bed Purchasing - South,Permanent Nursing,Lodge House,3235.00, 14-Feb-2017,
1675,Revenue,CAHD,South Glos Users in South Glos Homes,Permanent Nursing,Lodge House,625.00, 14-Feb-2017,
1676,Revenue,CAHD,Bed Purchasing - South,Permanent Nursing,Lodge House,2219.88, 14-Feb-2017,
1677,Revenue,CAHD,South Glos Users in South Glos Homes,Permanent Nursing,Lodge House,625.00, 14-Feb-2017,
1678,Revenue,CAHD,South Glos Users in South Glos Homes,Permanent Nursing,Lodge House,625.00, 14-Feb-2017,
1679,Revenue,CAHD,South Glos Users in South Glos Homes,Permanent Nursing,Lodge House,625.00, 14-Feb-2017,
1680,Revenue,CAHD,South Glos Users in South Glos Homes,Permanent Nursing,Lodge House,625.00, 14-Feb-2017,
1681,Revenue,CAHD,Bed Purchasing - South,Permanent Nursing,Lodge House,2709.44, 14-Feb-2017,
1682,Revenue,CAHD,South Glos Users in South Glos Homes,Permanent Nursing,Lodge House,625.00, 14-Feb-2017,
1683,Revenue,CAHD,Bed Purchasing - South,Permanent Nursing,Lodge House,2692.68, 14-Feb-2017,
1684,Revenue,CAHD,South Glos Users in South Glos Homes,Permanent Nursing,Lodge House,625.00, 14-Feb-2017,
1685,Revenue,CAHD,South Glos Users in South Glos Homes,Permanent Nursing,Lodge House,625.00, 14-Feb-2017,
1686,Revenue,CAHD,South Glos Users in South Glos Homes,Permanent Nursing,Lodge House,625.00, 14-Feb-2017,
1687,Revenue,CAHD,Bed Purchasing - South,Permanent Nursing,Lodge House,3070.00, 14-Feb-2017,
1688,Revenue,CAHD,South Glos Users in South Glos Homes,Permanent Nursing,Lodge House,625.00, 14-Feb-2017,
1689,Revenue,CAHD,South Glos Users in South Glos Homes,Permanent Nursing,Lodge House,937.50, 14-Feb-2017,
1690,Revenue,CAHD,South Glos Users in South Glos Homes,Permanent Nursing,Lodge House,625.00, 14-Feb-2017,
1691,Revenue,CAHD,South Glos Users in South Glos Homes,Permanent Nursing,Lodge House,625.00, 14-Feb-2017,
1692,Revenue,CAHD,Bed Purchasing - Southmead Hospital,Permanent Nursing,Lodge House,3070.00, 14-Feb-2017,
1693,Revenue,CAHD,South Glos Users in South Glos Homes,Permanent Nursing,Lodge House,625.00, 14-Feb-2017,
1694,Revenue,CAHD,South Glos Users in South Glos Homes,Permanent Nursing,Lodge House,625.00, 14-Feb-2017,
1695,Revenue,CAHD,Bed Purchasing - Southmead Hospital,Permanent Nursing,Lodge House,1683.50, 14-Feb-2017,
1696,Revenue,CAHD,South Glos Users in South Glos Homes,Permanent Nursing,Lodge House,625.00, 14-Feb-2017,
1697,Revenue,CAHD,Bed Purchasing - North,Permanent Nursing,Lodge House,2949.48, 14-Feb-2017,
1698,Revenue,CAHD,South Glos Users in South Glos Homes,Permanent Nursing,Lodge House,625.00, 14-Feb-2017,
1699,Revenue,CAHD,South Glos Users in South Glos Homes,Permanent Nursing,Lodge House,625.00, 14-Feb-2017,
1700,Revenue,CAHD,South Glos Users in South Glos Homes,Permanent Nursing,Lodge House,625.00, 14-Feb-2017,
1701,Revenue,CAHD,South Glos Users in South Glos Homes,Permanent Nursing,Lodge House,625.00, 14-Feb-2017,
1702,Revenue,CAHD,South Glos Users in South Glos Homes,Permanent Nursing,Lodge House,625.00, 14-Feb-2017,
1703,Revenue,CAHD,Bed Purchasing - Southmead Hospital,Permanent Nursing,Lodge House,3235.00, 14-Feb-2017,
1704,Revenue,CAHD,Bed Purchasing - Southmead Hospital,Respite Planned - Nursing,Lodge House,3235.00, 14-Feb-2017,
1705,Revenue,CAHD,Bed Purchasing - Southmead Hospital,Respite Planned - Nursing,Lodge House,2888.39, 14-Feb-2017,
1706,Revenue,CAHD,South Glos Users in South Glos Homes,Permanent Nursing,Lodge House,625.00, 14-Feb-2017,
1707,Revenue,CAHD,Bed Purchasing - Southmead Hospital,Permanent Nursing,Lodge House,3235.00, 14-Feb-2017,
1708,Revenue,CAHD,South Glos Users in South Glos Homes,Permanent Nursing,Lodge House,625.00, 14-Feb-2017,
1709,Revenue,CAHD,South Glos Users in South Glos Homes,Permanent Nursing,Lodge House,625.00, 14-Feb-2017,
1710,Revenue,CAHD,South Glos Users in South Glos Homes,Permanent Nursing,Lodge House,625.00, 14-Feb-2017,
1711,Revenue,CAHD,South Glos Users in South Glos Homes,Permanent Nursing,Lodge House,625.00, 14-Feb-2017,
1712,Revenue,CAHD,Bed Purchasing - Southmead Hospital,Permanent Nursing,Lodge House,3207.04, 14-Feb-2017,
1713,Revenue,CAHD,South Glos Users in South Glos Homes,Permanent Nursing,Lodge House,625.00, 14-Feb-2017,
1714,Revenue,CAHD,South Glos Users in South Glos Homes,Permanent Nursing,Lodge House,625.00, 14-Feb-2017,
1715,Revenue,CAHD,South Glos Users in South Glos Homes,Permanent Nursing,Lodge House,625.00, 14-Feb-2017,
1716,Revenue,CAHD,Bed Purchasing - South,Permanent Nursing,Lodge House,3235.00, 14-Feb-2017,
1717,Revenue,CAHD,South Glos Users in South Glos Homes,Permanent Nursing,Lodge House,625.00, 14-Feb-2017,
1718,Revenue,CAHD,South Glos Users in South Glos Homes,Permanent Nursing,Lodge House,625.00, 14-Feb-2017,
1719,Revenue,CAHD,South Glos Users in South Glos Homes,Permanent Nursing,Lodge House,625.00, 14-Feb-2017,
1720,Revenue,CAHD,South Glos Users in South Glos Homes,Permanent Nursing,Lodge House,625.00, 14-Feb-2017,
1721,Revenue,CAHD,South Glos Users in South Glos Homes,Permanent Nursing,Lodge House,625.00, 14-Feb-2017,
1722,Revenue,CAHD,South Glos Users in South Glos Homes,Permanent Nursing,Lodge House,625.00, 14-Feb-2017,
1723,Revenue,CAHD,Bed Purchasing - Southmead Hospital,Permanent Nursing,Lodge House,3384.00, 14-Feb-2017,
1724,Revenue,CAHD,South Glos Users in South Glos Homes,Permanent Nursing,Lodge House,625.00, 14-Feb-2017,
1725,Revenue,CAHD,South Glos Users in South Glos Homes,Permanent Nursing,Lodge House,625.00, 14-Feb-2017,
1726,Revenue,CAHD,Bed Purchasing - Southmead Hospital,Permanent Nursing,Lodge House,3235.00, 14-Feb-2017,
1727,Revenue,CAHD,South Glos Users in South Glos Homes,Permanent Nursing,Lodge House,625.00, 14-Feb-2017,
1728,Revenue,CAHD,Bed Purchasing - South,Permanent Nursing,Lodge House,3367.00, 14-Feb-2017,
1729,Revenue,CAHD,South Glos Users in South Glos Homes,Permanent Nursing,Lodge House,625.00, 14-Feb-2017,
1730,Revenue,CAHD,Bed Purchasing - Southmead Hospital,Permanent Nursing,Lodge House,3860.00, 14-Feb-2017,
1731,Revenue,CAHD,South Glos Users in South Glos Homes,Permanent Nursing,Lodge House,625.00, 14-Feb-2017,
1732,Revenue,CAHD,Bed Purchasing - South,Permanent Nursing,Lodge House,3081.36, 14-Feb-2017,
1733,Revenue,CAHD,South Glos Users in South Glos Homes,Permanent Nursing,Lodge House,625.00, 14-Feb-2017,
1734,Revenue,CAHD,South Glos Users in South Glos Homes,Permanent Nursing,Lodge House,625.00, 14-Feb-2017,
1735,Revenue,CAHD,Tenancy Start Up Scheme,Other Supplies & Services,Individual,1200.00, 20-Feb-2017,
1736,Revenue,CAHD,Home Care - Elderly - North,Day Care / Social Activities,Lower Kilcott,1481.84, 14-Feb-2017,
1738,Revenue,CAHD,Social Lettings Agency,Fees - General,Individual,13.60, 03-Feb-2017,
1739,Revenue,CAHD,Social Lettings Agency,Other Supplies & Services,Individual,768.40, 03-Feb-2017,
1741,Revenue,CAHD,Mental Health and Emotional Wellbeing,Project Funding,Maggie Cameron,500.00, 23-Feb-2017,
1742,Revenue,CAHD,Bed Purchasing - Southmead Hospital,Permanent Nursing,Majestic 3 Limited,2037.00, 14-Feb-2017,
1743,Revenue,CAHD,18-25 Year Olds,Day Care / Social Activities,Make it Mentoring CIC Limited,980.00, 03-Feb-2017,
1744,Revenue,CAHD,18-25 Year Olds,Day Care / Social Activities,Make it Mentoring CIC Limited,567.00, 16-Feb-2017,
1745,Revenue,CAHD,18-25 Year Olds,Day Care / Social Activities,Make it Mentoring CIC Limited,689.28, 01-Feb-2017,
1746,Revenue,CAHD,18-25 Year Olds,Day Care / Social Activities,Make it Mentoring CIC Limited,1033.92, 17-Feb-2017,
1747,Revenue,CAHD,18-25 Year Olds,Day Care / Social Activities,Make it Mentoring CIC Limited,861.60, 01-Feb-2017,
1748,Revenue,CAHD,Home Care - Elderly - North,Other Small Contracts,Make it Mentoring CIC Limited,2139.64, 10-Feb-2017,
1749,Revenue,CAHD,18-25 Year Olds,Day Care / Social Activities,Make it Mentoring CIC Limited,2240.16, 16-Feb-2017,
1750,Revenue,CAHD,18-25 Year Olds,Day Care / Social Activities,Make it Mentoring CIC Limited,1981.68, 16-Feb-2017,
1751,Revenue,CAHD,Statemented Support Academies,Schools Funding,Mangotsfield Secondary School,524.97, 24-Feb-2017,
1752,Revenue,CAHD,Statemented Support Academies,Schools Funding,Mangotsfield Secondary School,699.97, 24-Feb-2017,
1753,Revenue,CAHD,Statemented Support Academies,Schools Funding,Mangotsfield Secondary School,508.30, 24-Feb-2017,
1754,Revenue,CAHD,Statemented Support Academies,Schools Funding,Mangotsfield Secondary School,874.97, 24-Feb-2017,
1755,Revenue,CAHD,Bed Purchasing - Southmead Hospital,Permanent Residential,Manor Cottage,1831.32, 14-Feb-2017,
1756,Revenue,CAHD,Bed Purchasing - South,Permanent Residential,Manor Cottage,2400.00, 14-Feb-2017,
1757,Revenue,CAHD,Bed Purchasing - South,Permanent Residential,Manor Cottage,3000.00, 14-Feb-2017,
1758,Revenue,CAHD,Bed Purchasing - South,Permanent Residential,Manor Cottage,2351.56, 14-Feb-2017,
1759,Revenue,CAHD,Bed Purchasing - South,Permanent Residential,Manor Cottage,2980.00, 14-Feb-2017,
1760,Revenue,CAHD,Bed Purchasing - Southmead Hospital,Permanent Residential,Manor Cottage,1831.32, 14-Feb-2017,
1761,Revenue,CAHD,Bed Purchasing - South,Permanent Residential,Manor Cottage,2049.08, 14-Feb-2017,
1762,Revenue,CAHD,Younger MH non-res purchasing,Other Small Contracts,Maples Community Care Limited,566.72, 07-Feb-2017,
1763,Revenue,CAHD,Younger MH non-res purchasing,Supported Living,Maples Community Care Limited,1214.40, 06-Feb-2017,
1764,Revenue,CAHD,Home Care - Elderly - South,Supported Living,Maples Community Care Limited,961.40, 24-Feb-2017,
1765,Revenue,CAHD,Younger MH non-res purchasing,Other Small Contracts,Maples Community Care Limited,566.72, 07-Feb-2017,
1766,Revenue,CAHD,Younger MH non-res purchasing,Supported Living,Maples Community Care Limited,809.60, 24-Feb-2017,
1767,Revenue,CAHD,Younger MH non-res purchasing,Supported Living,Maples Community Care Limited,809.60, 24-Feb-2017,
1768,Revenue,CAHD,Home Care - Elderly - South,Supported Living,Maples Community Care Limited,971.52, 24-Feb-2017,
1769,Revenue,CAHD,Younger MH non-res purchasing,Supported Living,Maples Community Care Limited,1214.40, 24-Feb-2017,
1770,Revenue,CAHD,Younger MH non-res purchasing,Supported Living,Maples Community Care Limited,1184.04, 24-Feb-2017,
1771,Revenue,CAHD,Younger MH non-res purchasing,Supported Living,Maples Community Care Limited,1194.16, 24-Feb-2017,
1772,Revenue,CAHD,Younger MH non-res purchasing,Supported Living,Maples Community Care Limited,1214.40, 24-Feb-2017,
1773,Revenue,CAHD,Younger MH non-res purchasing,Other Small Contracts,Maples Community Care Limited,566.72, 02-Feb-2017,
1774,Revenue,CAHD,Younger MH non-res purchasing,Other Small Contracts,Maples Community Care Limited,789.36, 10-Feb-2017,
1775,Revenue,CAHD,Younger MH non-res purchasing,Supported Living,Maples Community Care Limited,809.60, 10-Feb-2017,
1776,Revenue,CAHD,Younger MH non-res purchasing,Supported Living,Maples Community Care Limited,880.44, 10-Feb-2017,
1777,Revenue,CAHD,Younger MH non-res purchasing,Supported Living,Maples Community Care Limited,1047.42, 10-Feb-2017,
1778,Revenue,CAHD,Home Care - Elderly - South,Supported Living,Maples Community Care Limited,964.77, 10-Feb-2017,
1779,Revenue,CAHD,Home Care - Elderly - South,Supported Living,Maples Community Care Limited,3329.48, 10-Feb-2017,
1780,Revenue,CAHD,Home Care - Elderly - South,Supported Living,Maples Community Care Limited,506.00, 10-Feb-2017,
1781,Revenue,CAHD,Younger MH non-res purchasing,Supported Living,Maples Community Care Limited,809.60, 10-Feb-2017,
1782,Revenue,CAHD,Younger MH non-res purchasing,Supported Living,Maples Community Care Limited,1182.33, 24-Feb-2017,
1783,Revenue,CAHD,Younger MH non-res purchasing,Other Small Contracts,Maples Community Care Limited,541.42, 10-Feb-2017,
1784,Revenue,CAHD,Younger MH non-res purchasing,Supported Living,Maples Community Care Limited,1419.04, 14-Feb-2017,
1785,Revenue,CAHD,Home Care - Elderly - South,Supported Living,Maples Community Care Limited,1419.04, 14-Feb-2017,
1786,Revenue,CAHD,Home Care - Elderly - South,Supported Living,Maples Community Care Limited,1419.04, 14-Feb-2017,
1787,Revenue,CAHD,Younger MH non-res purchasing,Supported Living,Maples Community Care Limited,1419.04, 14-Feb-2017,
1788,Revenue,CAHD,Younger MH non-res purchasing,Supported Living,Maples Community Care Limited,1419.04, 14-Feb-2017,
1790,Revenue,CAHD,Social Lettings Agency,Fees - General,Individual,12.22, 20-Feb-2017,
1791,Revenue,CAHD,Social Lettings Agency,Other Supplies & Services,Individual,690.32, 20-Feb-2017,
1792,Revenue,CAHD,CSC - Safeguarding Board,Training Expenses,Marie Collins Foundation,800.00, 27-Feb-2017,
1793,Revenue,CAHD,Independent Special Placements - Post 16,Other Private Contractors,Mark College,13581.00, 22-Feb-2017,
1794,Revenue,CAHD,Independent Special Placements - Pre 16,Other Private Contractors,Mark College,7909.00, 22-Feb-2017,
1795,Revenue,CAHD,Independent Special Placements - Pre 16,Other Private Contractors,Mark College,13952.00, 16-Feb-2017,
1796,Revenue,CAHD,Bed Purchasing - North,Permanent Residential,Marsden Healthcare Ltd,4372.00, 14-Feb-2017,
1797,Revenue,CAHD,Bed Purchasing - South,Permanent Residential,Marsden Healthcare Ltd,1647.88, 14-Feb-2017,
1798,Revenue,CAHD,Bed Purchasing - South,Permanent Residential,Marsden Healthcare Ltd,2086.60, 14-Feb-2017,
1799,Revenue,CAHD,Independent Special Placements - Pre 16,Other Private Contractors,Mary Hare School,11538.00, 03-Feb-2017,
1800,Revenue,CAHD,Independent Special Placements - Pre 16,Other Private Contractors,Mary Hare School,11538.00, 03-Feb-2017,
1801,Revenue,CAHD,CSC - Agency Fostering,Foster Parent Allowances,Match Foster Care Ltd,6200.00, 20-Feb-2017,
1802,Revenue,CAHD,CSC - Agency Fostering,Foster Parent Allowances,Match Foster Care Ltd,5600.00, 22-Feb-2017,
1803,Revenue,CAHD,Bed Purchasing - Southmead Hospital,Permanent Nursing,Meadow Care Home,4800.00, 14-Feb-2017,
1804,Revenue,CAHD,Bed Purchasing - South,Permanent Nursing,Meadow Care Home,2484.20, 14-Feb-2017,
1805,Revenue,CAHD,Bed Purchasing - Elderly S117- North,Permanent Nursing,Meadow Care Home,3851.68, 14-Feb-2017,
1806,Revenue,CAHD,Bed Purchasing - Elderly S117- North,Permanent Nursing,Meadow Care Home,4175.00, 14-Feb-2017,
1807,Revenue,CAHD,Bed Purchasing - North,Permanent Nursing,Meadow Care Home,4800.00, 14-Feb-2017,
1808,Revenue,CAHD,Home Care - Elderly - South,Day Care / Social Activities,Mears Care,193.16, 21-Feb-2017,
1809,Revenue,CAHD,Home Care - Elderly - South,Other Small Contracts,Mears Care,3663.37, 21-Feb-2017,
1810,Revenue,CAHD,Home Care - Elderly - North,Other Small Contracts,Mears Care,3425.92, 21-Feb-2017,
1811,Revenue,CAHD,Home Care - Elderly - South,Day Care / Social Activities,Mears Care,171.21, 21-Feb-2017,
1812,Revenue,CAHD,Home Care - Elderly - South,Other Small Contracts,Mears Care,4006.79, 21-Feb-2017,
1813,Revenue,CAHD,Home Care - Elderly - North,Other Small Contracts,Mears Care,3285.44, 21-Feb-2017,
